Workbook

Sheet Notes
A1: NoiseEliminationTechnology.xlsm; Traders Tip spreadsheet created for the December 2020 Issue
A2: Coded beginning 2020-October-3 by Ronald McAllister (rpmac_xltt@sprynet.com)
A4: This Workbook demonstrates an EXCEL version of the ideas presented
A5: by John Ehlers in an article titled "Noise Elimination Technology"
A6: which originally appeared in the December 2020 issue of
A7: "Technical Analysis of Stocks and Commodities" magazine.
A9: * * * * * * * * * * * * * * * *
A11: Development Notes:
A13: Evaluation of Mr. Ehlers (slightly) modified Kendall Correlation requires a loop within a loop.
A14: The cell formula equivalent of single loop structurs can sometimes be created by way of Offset combined with other EXCEL builtin functions.
A15: In the time available to publication deadline, I have not been able to figure out any EXCEL native cell formula constructs that can accomplish a loop with in a loop equivalent.
A17: Fall back position: I have coded the necesary computations into a VBA User Defined Function (UDF) called N_E_T.
A19: My N_E_T function is designed to be a multi-cell array entered function. Performance is the main advantage of a multi-cell Array Entry.
A20: The function is only called once to evaluate values for each cell in the calling array area.
A21: As opposed to being called multiple times, with the execution time overhead of passing arguments back and forth, once for each cell in the calling area.
A23: For those who wish to explore the VBA code for the N_E_T function, it is contained in VBA module "EhlersNoiseElimTechnology"
A28: New for August 2020
A29: Restructured my Symbol-Not-Found detection and now stop further processing in the not found case
A31: New with the May 2020 version of my T-Tips template: VBA to implement a "Perpetual" U.S. Markets Closed Holiday Calendar.
A33: Why we need one: The Yahoo Finance recently has begun having occasional filtration problems where bars for U.S. Market Closed Holidays
A34: make their way onto the Historical Data web page and into the Historical Data download.
A36: While testing this May 2020 spreadsheet with different symbols, I found that I sometimes had bars with the text "null" in the price fields.
A37: My code always translates the "null" text price values to zeros.
A38: The resulting zeros cause real problems with indicator computations and the amount of blank space below price candles on the price chart.
A40: "null" price bars can be valid for very lightly traded penny sheet symbols which may not trade every day the markets are open.
A41: But is definitely not normal for symbols on the big boards.
A43: A closer look determined that these "bars" were for holiday dates when the US markets are normally closed.
A44: I found it interesting that some times the next download for the same symbol would not contain any of these "holiday" bars. Weird!
A46: My approach here was to write code to determine if the DATE on a null price values bar falls on one of the 9 market closed U.S. Holidays.
A47: If the bar date corresponds to one of these market closed holidays, I drop the bar before it reaches the InputPriceData tab.
A48: If the date is not a holiday, I let the bar through with the resulting zero values.
A50: No messy tables to update over the years as there are good solid rules that can be used in VBA or any other programming language to determine
A51: the dates for U.S. Market Closed Holidays for any given calendar year.
A53: This workbook contains and uses VBA macros and may take advantage of user defined VBA Class structures.
A54: Input Data:
A55: The data in this workbook is sorted date-descending (most recent date at the top). All cell formulas and
A56: VBA routines are built assuming this date sequence.
A58: ERROR 9 (already fixed in this spreadsheet)
A59: On or about Jan 29, 2020 Yahoo Finance changed the format of the split factor expression used their historical data downloads.
A60: The Split expression went from using "/" as in "New Share Number/Old Share Number",
A61: to using ":" as in "New Share Number:Old Share Number".
A62: This caused the then current version of my VBA code to fail with a "Runtime Error '9': subscript out of range".
A64: Fix for this ERROR 9
A65: For T-Tip spreadsheets from September 2018 up to present:
A66: Selecting the Debug option takes one into the VBA at the code line which causes the failure:
A67: CellArray(C_A_RowNdx, C_A_ColNdx + 1) = SplitFactors(1)
A68: Two lines above the failing VBA line is a line that reads:
A69: SplitFactors = Split(CsvColumns(CsvColNdx), "/")
A70: Change the / to a :
A71: The corrected line should now read
A72: SplitFactors = Split(CsvColumns(CsvColNdx), ":")
A74: If you are fixing several spreadsheets and do not want to use the failure to find the fix location,
A75: you can use VBA’s FIND dialog (Ctrl F) to look for the substring
A76: SplitFactors =
A77: Do include one space and the equal sign in your FIND string
A78: Select the "Current Project" option
A79: There should only be one instance.
A81: T-Tip spreadsheets prior to the September 2018 spreadsheet do not hard fail.
A83: They just get weird results in the split columns of the Input Price Data tab (soft fail).
A84: These older spreadsheets used different data retrieval and formatting logic.
A86: To fix these older spreadsheets:
A87: In the VBA editor, use find (CTRL-F).
A88: Select the "Current Project" option, and search for the following:
A89: OtherChar:="/"
A90: You are looking for a hit in a line reading:
A91: Other:=True, OtherChar:="/", _
A92: This line is part of a multiline block of code starting with a line that reads:
A93: SplitRange.Offset(0, 1).Resize(SpRows, 1).TextToColumns
A94: Change the / to a : so that the line reads
A95: Other:=True, OtherChar:=":", _
A98: 2019-04-04 Finally came up with a mechanism to align the left location and overall length of the cursor scroll bar so that the left most and right most
A99: scroll bar thumb positions visually align reasonably well with the left and right ends of the price chart horizontal axis.
A100: Makes it a little easier to visually align the Thumb and thus the cursor with points of interest on the charts.
A102: Older:
B103: My sincere apologies to our Macintosh based readers: Neither MSXML nor WinHttpRequest are supported in your environment. So as it stands this version of the spreadsheet will not work for you.
B104: See "Why this approach does not work for Macintosh" below.
B105: I am investigating cURL as a non-Querytable based approach for the Macintosh environment.
A107: The new Yahoo Finance history download interface has changed rather radically. The biggest hurdle being a pseudo-security requirement of adding a
B108: crumb character string to any URL requesting any type of history download. That crumb must match up (by way of some sort of hash algorithm) with
B109: the Yahoo Finance cookie that must also be sent with any request to the new Yahoo History down load interface.
B111: A crumb value is returned, buried in the HTML for any of what I call the "entry level" Yahoo Finance web pages (no crumb security requirement for entry level pages).
B112: A crumb may come with other Yahoo Finance pages. A crumb may even accompany some of the secured pages as well. I have not checked.
B114: Entry level pages are the top level pages of the various Yahoo Finance dialogs and include: Quote Lookup, Stock Summary Quote, and any of the pages
B115: with links in the horizontal row with the "Summary" link on the quote summary page such as Options, Historical Data, and the rest.
B117: To date I have found no way to get at this crumb value using any native EXCEL capabilities.
B119: So this crumb requirement effectively shuts out any solution that attempts to exclusively use built-in facilities of EXCEL, which is to say a purely Querytables solution.
B121: The approach built for this Traders Tip spreadsheet uses WINHTTP calls to Load the InputPriceData worksheet.
B123: First I call to get the HTML text for the Yahoo Summary Quote page using the requested symbol. From this HTML text I extract the full company name,
B124: the market it trades, the market status and time stamp, and finally the associated crumb string. There is a bunch of other useful bits buried in this HTML
B125: text that do not necessarily appear on the web page your browser presents. Perhaps some day I will go after and build a worksheet with these other bits.
B127: Next I add the freshly extracted crumb string to the URLs I use in three separate WINHTTP calls to retrieve Price history, Split history, and Dividend history respectively.
B129: From there VBA code proceeds as in the past to fill in the cell formulas and formatting that make the "prettied up" InputPriceData sheet.
A131: Why this approach works for Windows:
B132: WINHTTP maintains a temporary computer memory cache where cookies are maintained for as long as the WINHTTP object is instantiated.
B133: WINHTTP updates this cache any time a "set cookie" header accompanies a web response.
B134: Subsequent WINHTTP calls automatically search this cache for cookies and add any "appropriate" cookies to the headers
B135: of any web requests that get sent out.
B136: This cookie handling automation means that even if the response to our WINHTTP call for the Summary web page includes a new version of
B137: the Yahoo Finance cookie, the imbedded Crumb value will always match the cookie newly installed in the cache!
A140: Why this approach does not work for Macintosh:
B141: For what it is worth, the Macintosh version of the MS Office suite of products do in fact maintain a special, shared amongst themselves only, cookie cache.
B142: They automate cookie handling into and from this cache JUST for the Office products and any Querytable activity they might originate.
B144: This cache is not tied to, nor shared with, any browser that might be installed on the MAC. And I have not found anything with HTTP capabilities similar to
B145: MSXML that can work with that Office product cookie cache.
B147: When working in the MAC EXCEL environment, I have not yet become conversant with a Mac based WINHTTP like capability.
B148: So l currently have no mechanism to replicate the non-Querytable data retrieval process I am using in Windows environments.
B149: A software product called CURL has been suggested as providing this capability in the MAC environment.
B150: A version of CURL is available for the Windows So some day I may explore its capabilities and how to access those capabilities from VBA.
A152: Calculation and Chart Worksheet Usage Comments:
C153: In General, Items in Bolded BLUE are items you may freely change to play what-if games.
C154: Be sure to have a backup copy of the spreadsheet before you alter anything else.
A156: Features carried forward from the June 2016 version of my T-Tips Template
A157: Added a pair of buttons near cell F12 that will allow the user to step the charting window forward or backward one bar for each click.
A158: I find this to be a good way to test my understanding of the author's ideas as I step through the evolution of the price behavior and the indicators.
B160: First: In the "Help! I would like to plot data" area.
B161: Added button to resolve #NA problems by locating the bar in the input data with a slightly more recent date than what the user actually requested.
B162: I find this particularly useful when I have a general idea of where I want to be date wise. Now I can pick a set of dates "out of the air".
B163: If either (or both) of my date specifications fall between dates that are available in the price history,
B164: this button will resolve them to the dates of the nearest, slightly more recent input bars.
B165: I can then refine my data interval search as necessary from there.
B166: Really great when working with Weekly or Monthly studies!
C167: 2016Jun11 - added logic to the "I would like to chart.." button to detect #N/A values and terminate
C168: gracefully with a message instead of blowing up in the charting logic.
B170: Second: In the "Price Chart Windowing Controls" area. (A11 and A12)
B171: When retrieving data for a new symbol or when changing from daily to weekly or monthly data, there was the possibility that the
B172: residual settings in A11 and A12 would fall outside of the number bars available on the input data tab after the new data retrieval.
B173: In certain combinations, this could create a serious error in the chart sizing logic and crash the spreadsheet.
B174: I have taken this opportunity to update the validity checking logic used in the chart sizing macros
B175: to adjust these values as necessary so that they fall within the boundaries of the newly retrieved input data.
A176: Features carried forward from the October 2015 Traders Tips Template
B177: Improved automation: changes to any of the following will automatically initiate calculations appropriate to reflect a change.
C178: Changing either of cells A11 (pan) or A12 (zoom) will automatically initiate the same chart sizing macros that the manual
C179: "Set Chart" button uses.

Sheet InputPriceData
A1: SPDR S&P 500 ETF Trust (SPY) -NYSEArca (Daily) | B1: SPDR S&P 500 ETF Trust (SPY)
M2: To retrieve data for symbols traded on non US Exchanges, | IJ2: 241.79
A3: Request Online Yahoo History for: | F3: Market State == > | G3: As of | H3: 13:14:00 | I3: EDT. Market open. | M3: you will need to append the dot-suffix for the exchange to the symbol.
A4: Symbol | B4: SPY | D4: Valid | I4: =OFFSET(I4,-2,0,1,1) -> 0 | M4: The following links provide a description of how to use the exchange suffix
A5: From | B5: 1950-10-01 | D5: Data | M5: along with a list of suffixes for the major world exchanges. | AD5: Trailing 12 Div return (Cur Close)
A6: To | B6: =NOW() -> 2020-10-14T16:43:03.200 | D6: Types | E6: =VLOOKUP(B7,D7:E10,2,FALSE) -> d | M6: https://help.yahoo.com/kb/finance/SLN2310.html
A7: Data Type | B7: Daily | D7: Daily | E7: d | M7: And
A8: Crumb | B8: aeGdx8CVdMC | D8: Weekly | E8: w | M8: https://www.stockmarketeye.com/users-guide/ticker-symbols-and-data-providers/data-providers.html
A9: Available Data | D9: Monthly | E9: m
A10: Bar Count: | B10: 6972 | M10: You may search on “exchange suffixes” for additional discussions | AD10: =OFFSET(AC15,1,0,1,1)/OFFSET(N15,1,0,1,1) -> 0.0167714699
A11: From: | B11: =IF(B10<=0,"",OFFSET(B15,B10,IF(HistReqDataType="v",1,0),1,1)) -> 1993-01-29 | W11: Trailing 12 Month Dividend Returns
A12: To: | B12: =IF(B10<=0,"",IF(HistReqDataType="v",OFFSET(B15,2,1,1,1),OFFSET(B15,1,0,1,1))) -> 2020-10-05 | W12: Raw Close price on Dividend date | X12: Div Year and Month | Y12: Looking for year ago Div Year and Month | Z12: Year ago Div Date we found | AA12: row offset to year ago div Date | AB12: Same month flag | AC12: Trailing 12 Div Total | AD12: Trailing 12 Div return
Q13: Split History | S13: 0 | T13: Running | U13: Dividend History
B14: Raw Data Values | H14: Adjusted | I14: Price Adjust | J14: Vol Adjust | K14: Adjusted Values | P14: Last | Q14: Effective | R14: Shares | T14: Vol Adjust | V14: 115
A15: RelRow | B15: Date | C15: Open | D15: High | E15: Low | F15: Close | G15: Volume | H15: Close | I15: Factor | J15: Factor | K15: Open | L15: High | M15: Low | N15: Close | O15: Volume | P15: Trade | Q15: 44110 | R15: New | S15: Old | T15: 1 | U15: Date | V15: $ / Share
A16: 1 | B16: 2020-10-05 | C16: 336.059998 | D16: 338.869995 | E16: 336.01001 | F16: 338.730011 | G16: 18602671 | H16: 338.730011 | I16: =IF(F16=0,1,H16/F16) -> 1 | J16: =INDEX(OFFSET($T$15,0,0,$S$13+1,1),MATCH(B16,OFFSET($Q$15,0,0,$S$13+1,1),-1)) -> 1 | K16: =ROUND($I16*C16,2) -> 336.06 | L16: =ROUND($I16*D16,2) -> 338.87 | M16: =ROUND($I16*E16,2) -> 336.01 | N16: =ROUND($I16*F16,2) -> 338.73 | O16: =G16*J16 -> 18602671 | U16: 2020-09-18 | V16: 1.339 | W16: =(INDEX(OFFSET($F$15,1,0,$B$10,1),MATCH(U16,OFFSET($B$15,1,0,$B$10,1),-1))) -> 330.649994 | X16: =YEAR(U16)&RIGHT("0"&MONTH(U16),2) -> 202009 | Y16: =YEAR(U16)-1&RIGHT("0"&MONTH(U16),2) -> 201909 | Z16: =OFFSET(U15,AA16,0,1,1) -> 2019-09-20 | AA16: =MATCH(Y16,OFFSET($X$15,A16,0,$V$14+1-A16,1),-1) -> 5 | AB16: =IF(OR(AND(YEAR(U16)=YEAR(Z16),MONTH(U16)=MONTH(Z16)),MONTH(U16)=MONTH(Z16)),1,0) -> 1 | AC16: =(V16+IF(AA16-AB16=0,0,IFERROR(SUM(OFFSET(V16,1,0,AA16-AB16-1,1)),0))) -> 5.681 | AD16: =AC16/(INDEX(OFFSET($F$15,1,0,$B$10,1),MATCH(U16,OFFSET($B$15,1,0,$B$10,1),-1))) -> 0.01718130985
A17: 2 | B17: 2020-10-02 | C17: 331.700012 | D17: 337.01001 | E17: 331.190002 | F17: 333.839996 | G17: 89206500 | H17: 333.839996 | I17: =IF(F17=0,1,H17/F17) -> 1 | J17: =INDEX(OFFSET($T$15,0,0,$S$13+1,1),MATCH(B17,OFFSET($Q$15,0,0,$S$13+1,1),-1)) -> 1 | K17: =ROUND($I17*C17,2) -> 331.7 | L17: =ROUND($I17*D17,2) -> 337.01 | M17: =ROUND($I17*E17,2) -> 331.19 | N17: =ROUND($I17*F17,2) -> 333.84 | O17: =G17*J17 -> 89206500 | U17: 2020-06-19 | V17: 1.366 | W17: =(INDEX(OFFSET($F$15,1,0,$B$10,1),MATCH(U17,OFFSET($B$15,1,0,$B$10,1),-1))) -> 308.640015 | X17: =YEAR(U17)&RIGHT("0"&MONTH(U17),2) -> 202006 | Y17: =YEAR(U17)-1&RIGHT("0"&MONTH(U17),2) -> 201906 | Z17: =OFFSET(U16,AA17,0,1,1) -> 2019-06-21 | AA17: =MATCH(Y17,OFFSET($X$15,A17,0,$V$14+1-A17,1),-1) -> 5 | AB17: =IF(OR(AND(YEAR(U17)=YEAR(Z17),MONTH(U17)=MONTH(Z17)),MONTH(U17)=MONTH(Z17)),1,0) -> 1 | AC17: =(V17+IF(AA17-AB17=0,0,IFERROR(SUM(OFFSET(V17,1,0,AA17-AB17-1,1)),0))) -> 5.726 | AD17: =AC17/(INDEX(OFFSET($F$15,1,0,$B$10,1),MATCH(U17,OFFSET($B$15,1,0,$B$10,1),-1))) -> 0.01855235783
A18: 3 | B18: 2020-10-01 | C18: 337.690002 | D18: 338.73999 | E18: 335.01001 | F18: 337.040009 | G18: 88698700 | H18: 337.040009 | I18: 1 | J18: 1 | K18: 337.69 | L18: 338.74 | M18: 335.01 | N18: 337.04 | O18: 88698700 | U18: 2020-03-20 | V18: 1.406 | W18: 228.800003 | X18: 202003 | Y18: 201903 | Z18: 2019-03-15 | AA18: 5 | AB18: 1 | AC18: 5.792 | AD18: 0.02531468498
A19: 4 | B19: 2020-09-30 | C19: 333.089996 | D19: 338.290009 | E19: 332.880005 | F19: 334.890015 | G19: 103653800 | H19: 334.890015 | I19: 1 | J19: 1 | K19: 333.09 | L19: 338.29 | M19: 332.88 | N19: 334.89 | O19: 103653800 | U19: 2019-12-20 | V19: 1.57 | W19: 320.730011 | X19: 201912 | Y19: 201812 | Z19: 2018-12-21 | AA19: 5 | AB19: 1 | AC19: 5.619 | AD19: 0.01751940825
A20: 5 | B20: 2020-09-29 | C20: 333.970001 | D20: 334.769989 | E20: 331.619995 | F20: 332.369995 | G20: 51304000 | H20: 332.369995 | I20: 1 | J20: 1 | K20: 333.97 | L20: 334.77 | M20: 331.62 | N20: 332.37 | O20: 51304000 | U20: 2019-09-20 | V20: 1.384 | W20: 298.279999 | X20: 201909 | Y20: 201809 | Z20: 2018-09-21 | AA20: 5 | AB20: 1 | AC20: 5.484 | AD20: 0.01838540974
A21: 6 | B21: 2020-09-28 | C21: 333.220001 | D21: 334.959991 | E21: 332.149994 | F21: 334.190002 | G21: 64584600 | H21: 334.190002 | I21: 1 | J21: 1 | K21: 333.22 | L21: 334.96 | M21: 332.15 | N21: 334.19 | O21: 64584600 | U21: 2019-06-21 | V21: 1.432 | W21: 294 | X21: 201906 | Y21: 201806 | Z21: 2018-06-15 | AA21: 5 | AB21: 1 | AC21: 5.423 | AD21: 0.01844557823
A22: 7 | B22: 2020-09-25 | C22: 322.579987 | D22: 329.579987 | E22: 321.640015 | F22: 328.730011 | G22: 71069400 | H22: 328.730011 | I22: 1 | J22: 1 | K22: 322.58 | L22: 329.58 | M22: 321.64 | N22: 328.73 | O22: 71069400 | U22: 2019-03-15 | V22: 1.233 | W22: 281.309998 | X22: 201903 | Y22: 201803 | Z22: 2018-03-16 | AA22: 5 | AB22: 1 | AC22: 5.237 | AD22: 0.01861647306
A23: 8 | B23: 2020-09-24 | C23: 321.220001 | D23: 326.799988 | E23: 319.799988 | F23: 323.5 | G23: 76681300 | H23: 323.5 | I23: 1 | J23: 1 | K23: 321.22 | L23: 326.8 | M23: 319.8 | N23: 323.5 | O23: 76681300 | U23: 2018-12-21 | V23: 1.435 | W23: 240.699997 | X23: 201812 | Y23: 201712 | Z23: 2017-12-15 | AA23: 5 | AB23: 1 | AC23: 5.101 | AD23: 0.02119235589
A24: 9 | B24: 2020-09-23 | C24: 330.899994 | D24: 331.200012 | E24: 322.100006 | F24: 322.640015 | G24: 93112200 | H24: 322.640015 | I24: 1 | J24: 1 | K24: 330.9 | L24: 331.2 | M24: 322.1 | N24: 322.64 | O24: 93112200 | U24: 2018-09-21 | V24: 1.323 | W24: 291.98999 | X24: 201809 | Y24: 201709 | Z24: 2017-09-15 | AA24: 5 | AB24: 1 | AC24: 5.017 | AD24: 0.01718209587
A25: 10 | B25: 2020-09-22 | C25: 328.570007 | D25: 330.899994 | E25: 325.859985 | F25: 330.299988 | G25: 63612100 | H25: 330.299988 | I25: 1 | J25: 1 | K25: 328.57 | L25: 330.9 | M25: 325.86 | N25: 330.3 | O25: 63612100 | U25: 2018-06-15 | V25: 1.246 | W25: 277.130005 | X25: 201806 | Y25: 201706 | Z25: 2017-06-16 | AA25: 5 | AB25: 1 | AC25: 4.929 | AD25: 0.01778587634
A26: 11 | B26: 2020-09-21 | C26: 325.700012 | D26: 327.130005 | E26: 321.730011 | F26: 326.970001 | G26: 99450800 | H26: 326.970001 | I26: 1 | J26: 1 | K26: 325.7 | L26: 327.13 | M26: 321.73 | N26: 326.97 | O26: 99450800 | U26: 2018-03-16 | V26: 1.097 | W26: 274.200012 | X26: 201803 | Y26: 201703 | Z26: 2017-03-17 | AA26: 5 | AB26: 1 | AC26: 4.866 | AD26: 0.0177461699
A27: 12 | B27: 2020-09-18 | C27: 335.369995 | D27: 335.48999 | E27: 327.970001 | F27: 330.649994 | G27: 105877900 | H27: 330.649994 | I27: 1 | J27: 1 | K27: 335.37 | L27: 335.49 | M27: 327.97 | N27: 330.65 | O27: 105877900 | U27: 2017-12-15 | V27: 1.351 | W27: 266.51001 | X27: 201712 | Y27: 201612 | Z27: 2016-12-16 | AA27: 5 | AB27: 1 | AC27: 4.802 | AD27: 0.01801808495
A28: 13 | B28: 2020-09-17 | C28: 333.559998 | D28: 337.700012 | E28: 332.98999 | F28: 335.839996 | G28: 91523300 | H28: 334.501007 | I28: 0.9960130151 | J28: 1 | K28: 332.23 | L28: 336.35 | M28: 331.66 | N28: 334.5 | O28: 91523300 | U28: 2017-09-15 | V28: 1.235 | W28: 249.190002 | X28: 201709 | Y28: 201609 | Z28: 2016-09-16 | AA28: 5 | AB28: 1 | AC28: 4.78 | AD28: 0.01918215001
A29: 14 | B29: 2020-09-16 | C29: 341.51001 | D29: 343.059998 | E29: 338.519989 | F29: 338.820007 | G29: 82096000 | H29: 337.469116 | I29: 0.9960129539 | J29: 1 | K29: 340.15 | L29: 341.69 | M29: 337.17 | N29: 337.47 | O29: 82096000 | U29: 2017-06-16 | V29: 1.183 | W29: 242.639999 | X29: 201706 | Y29: 201606 | Z29: 2016-06-17 | AA29: 5 | AB29: 1 | AC29: 4.627 | AD29: 0.01906940331
A30: 15 | B30: 2020-09-15 | C30: 341.119995 | D30: 342.019989 | E30: 338.470001 | F30: 340.170013 | G30: 52920900 | H30: 338.813751 | I30: 0.9960129878 | J30: 1 | K30: 339.76 | L30: 340.66 | M30: 337.12 | N30: 338.81 | O30: 52920900 | U30: 2017-03-17 | V30: 1.033 | W30: 237.029999 | X30: 201703 | Y30: 201603 | Z30: 2016-03-18 | AA30: 5 | AB30: 1 | AC30: 4.522 | AD30: 0.01907775395
A31: 16 | B31: 2020-09-14 | C31: 337.48999 | D31: 340.380005 | E31: 334.220001 | F31: 338.459991 | G31: 65605700 | H31: 337.110535 | I31: 0.9960129527 | J31: 1 | K31: 336.14 | L31: 339.02 | M31: 332.89 | N31: 337.11 | O31: 65605700 | U31: 2016-12-16 | V31: 1.329 | W31: 225.039993 | X31: 201612 | Y31: 201512 | Z31: 2015-12-18 | AA31: 5 | AB31: 1 | AC31: 4.539 | AD31: 0.02016974823
A32: 17 | B32: 2020-09-11 | C32: 335.820007 | D32: 336.970001 | E32: 331 | F32: 334.059998 | G32: 84680200 | H32: 332.728088 | I32: 0.9960129617 | J32: 1 | K32: 334.48 | L32: 335.63 | M32: 329.68 | N32: 332.73 | O32: 84680200 | U32: 2016-09-16 | V32: 1.082 | W32: 213.369995 | X32: 201609 | Y32: 201509 | Z32: 2015-09-18 | AA32: 5 | AB32: 1 | AC32: 4.422 | AD32: 0.02072456345
A33: 18 | B33: 2020-09-10 | C33: 341.820007 | D33: 342.529999 | E33: 332.850006 | F33: 333.890015 | G33: 90569500 | H33: 332.558777 | I33: 0.9960129446 | J33: 1 | K33: 340.46 | L33: 341.16 | M33: 331.52 | N33: 332.56 | O33: 90569500 | U33: 2016-06-17 | V33: 1.078 | W33: 206.520004 | X33: 201606 | Y33: 201506 | Z33: 2015-06-19 | AA33: 5 | AB33: 1 | AC33: 4.373 | AD33: 0.02117470422
A34: 19 | B34: 2020-09-09 | C34: 337.549988 | D34: 342.459991 | E34: 336.609985 | F34: 339.790009 | G34: 91462300 | H34: 338.435272 | I34: 0.996013017 | J34: 1 | K34: 336.2 | L34: 341.09 | M34: 335.27 | N34: 338.44 | O34: 91462300 | U34: 2016-03-18 | V34: 1.05 | W34: 204.380005 | X34: 201603 | Y34: 201503 | Z34: 2015-03-20 | AA34: 5 | AB34: 1 | AC34: 4.325 | AD34: 0.02116156128
A35: 20 | B35: 2020-09-08 | C35: 336.709991 | D35: 342.640015 | E35: 332.880005 | F35: 333.209991 | G35: 114465300 | H35: 331.88147 | I35: 0.9960129617 | J35: 1 | K35: 335.37 | L35: 341.27 | M35: 331.55 | N35: 331.88 | O35: 114465300 | U35: 2015-12-18 | V35: 1.212 | W35: 200.020004 | X35: 201512 | Y35: 201412 | Z35: 2014-12-19 | AA35: 5 | AB35: 1 | AC35: 4.206 | AD35: 0.02102789679
A36: 21 | B36: 2020-09-04 | C36: 346.130005 | D36: 347.829987 | E36: 334.869995 | F36: 342.570007 | G36: 139156300 | H36: 341.204163 | I36: 0.9960129493 | J36: 1 | K36: 344.75 | L36: 346.44 | M36: 333.53 | N36: 341.2 | O36: 139156300 | U36: 2015-09-18 | V36: 1.033 | W36: 195.449997 | X36: 201509 | Y36: 201409 | Z36: 2014-09-19 | AA36: 5 | AB36: 1 | AC36: 4.129 | AD36: 0.0211256079
A37: 22 | B37: 2020-09-03 | C37: 355.869995 | D37: 356.380005 | E37: 342.589996 | F37: 345.390015 | G37: 148011100 | H37: 344.012939 | I37: 0.9960129826 | J37: 1 | K37: 354.45 | L37: 354.96 | M37: 341.22 | N37: 344.01 | O37: 148011100 | U37: 2015-06-19 | V37: 1.03 | W37: 210.809998 | X37: 201506 | Y37: 201406 | Z37: 2014-06-20 | AA37: 5 | AB37: 1 | AC37: 4.035 | AD37: 0.01914045841
A38: 23 | B38: 2020-09-02 | C38: 354.670013 | D38: 358.75 | E38: 353.429993 | F38: 357.700012 | G38: 69540000 | H38: 356.273865 | I38: 0.9960130082 | J38: 1 | K38: 353.26 | L38: 357.32 | M38: 352.02 | N38: 356.27 | O38: 69540000 | U38: 2015-03-20 | V38: 0.931 | W38: 210.410004 | X38: 201503 | Y38: 201403 | Z38: 2014-03-21 | AA38: 5 | AB38: 1 | AC38: 3.942 | AD38: 0.01873485065
A39: 24 | B39: 2020-09-01 | C39: 350.209991 | D39: 352.709991 | E39: 349.23999 | F39: 352.600006 | G39: 54999300 | H39: 351.194183 | I39: 0.9960129808 | J39: 1 | K39: 348.81 | L39: 351.3 | M39: 347.85 | N39: 351.19 | O39: 54999300 | U39: 2014-12-19 | V39: 1.135 | W39: 206.520004 | X39: 201412 | Y39: 201312 | Z39: 2013-12-20 | AA39: 5 | AB39: 1 | AC39: 3.836 | AD39: 0.01857447185
A40: 25 | B40: 2020-08-31 | C40: 350.350006 | D40: 351.299988 | E40: 349.059998 | F40: 349.309998 | G40: 66099200 | H40: 347.917297 | I40: 0.9960129942 | J40: 1 | K40: 348.95 | L40: 349.9 | M40: 347.67 | N40: 347.92 | O40: 66099200 | U40: 2014-09-19 | V40: 0.939 | W40: 200.699997 | X40: 201409 | Y40: 201309 | Z40: 2013-09-20 | AA40: 5 | AB40: 1 | AC40: 3.681 | AD40: 0.01834080745
A41: 26 | B41: 2020-08-28 | C41: 349.440002 | D41: 350.720001 | E41: 348.149994 | F41: 350.579987 | G41: 48588900 | H41: 349.18222 | I41: 0.9960129869 | J41: 1 | K41: 348.05 | L41: 349.32 | M41: 346.76 | N41: 349.18 | O41: 48588900 | U41: 2014-06-20 | V41: 0.937 | W41: 195.940002 | X41: 201406 | Y41: 201306 | Z41: 2013-06-21 | AA41: 5 | AB41: 1 | AC41: 3.58 | AD41: 0.01827089907
A42: 27 | B42: 2020-08-27 | C42: 348.51001 | D42: 349.899994 | E42: 346.529999 | F42: 348.329987 | G42: 58034100 | H42: 346.941193 | I42: 0.9960129933 | J42: 1 | K42: 347.12 | L42: 348.5 | M42: 345.15 | N42: 346.94 | O42: 58034100 | U42: 2014-03-21 | V42: 0.825 | W42: 186.199997 | X42: 201403 | Y42: 201303 | Z42: 2013-03-15 | AA42: 5 | AB42: 1 | AC42: 3.482 | AD42: 0.01870032254
A43: 28 | B43: 2020-08-26 | C43: 344.76001 | D43: 347.859985 | E43: 344.170013 | F43: 347.570007 | G43: 50790200 | H43: 346.184235 | I43: 0.9960129701 | J43: 1 | K43: 343.39 | L43: 346.47 | M43: 342.8 | N43: 346.18 | O43: 50790200 | U43: 2013-12-20 | V43: 0.98 | W43: 181.559998 | X43: 201312 | Y43: 201212 | Z43: 2012-12-21 | AA43: 5 | AB43: 1 | AC43: 3.351 | AD43: 0.01845670873
A44: 29 | B44: 2020-08-25 | C44: 343.529999 | D44: 344.209991 | E44: 342.269989 | F44: 344.119995 | G44: 38463400 | H44: 342.747986 | I44: 0.9960129925 | J44: 1 | K44: 342.16 | L44: 342.84 | M44: 340.91 | N44: 342.75 | O44: 38463400 | U44: 2013-09-20 | V44: 0.838 | W44: 170.720001 | X44: 201309 | Y44: 201209 | Z44: 2012-09-21 | AA44: 5 | AB44: 1 | AC44: 3.393 | AD44: 0.01987464843
A45: 30 | B45: 2020-08-24 | C45: 342.119995 | D45: 343 | E45: 339.450012 | F45: 342.920013 | G45: 48588700 | H45: 341.552795 | I45: 0.9960130119 | J45: 1 | K45: 340.76 | L45: 341.63 | M45: 338.1 | N45: 341.55 | O45: 48588700 | U45: 2013-06-21 | V45: 0.839 | W45: 159.070007 | X45: 201306 | Y45: 201206 | Z45: 2012-06-15 | AA45: 5 | AB45: 1 | AC45: 3.334 | AD45: 0.02095932516
A46: 31 | B46: 2020-08-21 | C46: 337.920013 | D46: 339.720001 | E46: 337.549988 | F46: 339.480011 | G46: 55106600 | H46: 338.126495 | I46: 0.9960129729 | J46: 1 | K46: 336.57 | L46: 338.37 | M46: 336.2 | N46: 338.13 | O46: 55106600 | U46: 2013-03-15 | V46: 0.694 | W46: 155.830002 | X46: 201303 | Y46: 201203 | Z46: 2012-03-16 | AA46: 5 | AB46: 1 | AC46: 3.183 | AD46: 0.02042610511
A47: 32 | B47: 2020-08-20 | C47: 335.359985 | D47: 338.799988 | E47: 335.220001 | F47: 338.279999 | G47: 42207800 | H47: 336.931274 | I47: 0.9960129922 | J47: 1 | K47: 334.02 | L47: 337.45 | M47: 333.88 | N47: 336.93 | O47: 42207800 | U47: 2012-12-21 | V47: 1.022 | W47: 142.789993 | X47: 201212 | Y47: 201112 | Z47: 2011-12-16 | AA47: 5 | AB47: 1 | AC47: 3.103 | AD47: 0.02173121474
A48: 33 | B48: 2020-08-19 | C48: 339.049988 | D48: 339.609985 | E48: 336.619995 | F48: 337.230011 | G48: 68054200 | H48: 335.885468 | I48: 0.9960129794 | J48: 1 | K48: 337.7 | L48: 338.26 | M48: 335.28 | N48: 335.89 | O48: 68054200 | U48: 2012-09-21 | V48: 0.779 | W48: 145.869995 | X48: 201209 | Y48: 201109 | Z48: 2011-09-16 | AA48: 5 | AB48: 1 | AC48: 2.851 | AD48: 0.01954480083
A49: 34 | B49: 2020-08-18 | C49: 338.339996 | D49: 339.100006 | E49: 336.609985 | F49: 338.640015 | G49: 38733900 | H49: 337.289856 | I49: 0.9960129963 | J49: 1 | K49: 336.99 | L49: 337.75 | M49: 335.27 | N49: 337.29 | O49: 38733900 | U49: 2012-06-15 | V49: 0.688 | W49: 134.139999 | X49: 201206 | Y49: 201106 | Z49: 2011-06-17 | AA49: 5 | AB49: 1 | AC49: 2.697 | AD49: 0.0201058597
A50: 35 | B50: 2020-08-17 | C50: 337.940002 | D50: 338.339996 | E50: 336.850006 | F50: 337.910004 | G50: 35481000 | H50: 336.562744 | I50: 0.9960129621 | J50: 1 | K50: 336.59 | L50: 336.99 | M50: 335.51 | N50: 336.56 | O50: 35481000 | U50: 2012-03-16 | V50: 0.614 | W50: 140.300003 | X50: 201203 | Y50: 201103 | Z50: 2011-03-18 | AA50: 5 | AB50: 1 | AC50: 2.637 | AD50: 0.01879543794
A51: 36 | B51: 2020-08-14 | C51: 336.410004 | D51: 337.420013 | E51: 335.619995 | F51: 336.839996 | G51: 47260400 | H51: 335.497009 | I51: 0.9960129824 | J51: 1 | K51: 335.07 | L51: 336.07 | M51: 334.28 | N51: 335.5 | O51: 47260400 | U51: 2011-12-16 | V51: 0.77 | W51: 121.589996 | X51: 201112 | Y51: 201012 | Z51: 2010-12-17 | AA51: 5 | AB51: 1 | AC51: 2.576 | AD51: 0.02118595349
A52: 37 | B52: 2020-08-13 | C52: 336.609985 | D52: 338.25 | E52: 335.829987 | F52: 336.829987 | G52: 41816100 | H52: 335.48703 | I52: 0.996012953 | J52: 1 | K52: 335.27 | L52: 336.9 | M52: 334.49 | N52: 335.49 | O52: 41816100 | U52: 2011-09-16 | V52: 0.625 | W52: 121.519997 | X52: 201109 | Y52: 201009 | Z52: 2010-09-17 | AA52: 5 | AB52: 1 | AC52: 2.459 | AD52: 0.0202353527
A53: 38 | B53: 2020-08-12 | C53: 335.440002 | D53: 338.279999 | E53: 335.410004 | F53: 337.440002 | G53: 53826100 | H53: 336.094635 | I53: 0.9960130186 | J53: 1 | K53: 334.1 | L53: 336.93 | M53: 334.07 | N53: 336.09 | O53: 53826100 | U53: 2011-06-17 | V53: 0.628 | W53: 127.050003 | X53: 201106 | Y53: 201006 | Z53: 2010-06-18 | AA53: 5 | AB53: 1 | AC53: 2.436 | AD53: 0.01917355327
A54: 39 | B54: 2020-08-11 | C54: 336.850006 | D54: 337.540009 | E54: 332.01001 | F54: 332.799988 | G54: 69601100 | H54: 331.473114 | I54: 0.9960129987 | J54: 1 | K54: 335.51 | L54: 336.19 | M54: 330.69 | N54: 331.47 | O54: 69601100 | U54: 2011-03-18 | V54: 0.553 | W54: 127.760002 | X54: 201103 | Y54: 201003 | Z54: 2010-03-19 | AA54: 5 | AB54: 1 | AC54: 2.339 | AD54: 0.01830776427
A55: 40 | B55: 2020-08-10 | C55: 335.059998 | D55: 335.769989 | E55: 332.959991 | F55: 335.570007 | G55: 44282100 | H55: 334.232086 | I55: 0.9960129899 | J55: 1 | K55: 333.72 | L55: 334.43 | M55: 331.63 | N55: 334.23 | O55: 44282100 | U55: 2010-12-17 | V55: 0.653 | W55: 124.300003 | X55: 201012 | Y55: 200912 | Z55: 2009-12-18 | AA55: 5 | AB55: 1 | AC55: 2.266 | AD55: 0.01823008806
A56: 41 | B56: 2020-08-07 | C56: 333.279999 | D56: 334.880005 | E56: 332.299988 | F56: 334.570007 | G56: 57265200 | H56: 333.236084 | I56: 0.9960130228 | J56: 1 | K56: 331.95 | L56: 333.54 | M56: 330.98 | N56: 333.24 | O56: 57265200 | U56: 2010-09-17 | V56: 0.602 | W56: 112.489998 | X56: 201009 | Y56: 200909 | Z56: 2009-09-18 | AA56: 5 | AB56: 1 | AC56: 2.203 | AD56: 0.01958396337
A57: 42 | B57: 2020-08-06 | C57: 331.480011 | D57: 334.459991 | E57: 331.130005 | F57: 334.329987 | G57: 43679400 | H57: 332.997009 | I57: 0.996012987 | J57: 1 | K57: 330.16 | L57: 333.13 | M57: 329.81 | N57: 333 | O57: 43679400 | U57: 2010-06-18 | V57: 0.531 | W57: 111.730003 | X57: 201006 | Y57: 200906 | Z57: 2009-06-19 | AA57: 5 | AB57: 1 | AC57: 2.109 | AD57: 0.01887586094
A58: 43 | B58: 2020-08-05 | C58: 331.470001 | D58: 332.390015 | E58: 331.179993 | F58: 332.109985 | G58: 42866400 | H58: 330.785858 | I58: 0.9960129865 | J58: 1 | K58: 330.15 | L58: 331.06 | M58: 329.86 | N58: 330.79 | O58: 42866400 | U58: 2010-03-19 | V58: 0.48 | W58: 115.970001 | X58: 201003 | Y58: 200903 | Z58: 2009-03-20 | AA58: 5 | AB58: 1 | AC58: 2.096 | AD58: 0.01807363958
A59: 44 | B59: 2020-08-04 | C59: 327.859985 | D59: 330.059998 | E59: 327.859985 | F59: 330.059998 | G59: 41917900 | H59: 328.744049 | I59: 0.9960130006 | J59: 1 | K59: 326.55 | L59: 328.74 | M59: 326.55 | N59: 328.74 | O59: 41917900 | U59: 2009-12-18 | V59: 0.59 | W59: 110.209999 | X59: 200912 | Y59: 200812 | Z59: 2008-12-19 | AA59: 5 | AB59: 1 | AC59: 2.177 | AD59: 0.01975319862
A60: 45 | B60: 2020-08-03 | C60: 328.320007 | D60: 329.619995 | E60: 327.730011 | F60: 328.790009 | G60: 53077900 | H60: 327.479126 | I60: 0.9960130084 | J60: 1 | K60: 327.01 | L60: 328.31 | M60: 326.42 | N60: 327.48 | O60: 53077900 | U60: 2009-09-18 | V60: 0.508 | W60: 106.720001 | X60: 200909 | Y60: 200809 | Z60: 2008-09-19 | AA60: 5 | AB60: 1 | AC60: 2.306 | AD60: 0.02160794582
A61: 46 | B61: 2020-07-31 | C61: 325.899994 | D61: 326.630005 | E61: 321.329987 | F61: 326.519989 | G61: 85210800 | H61: 325.21814 | I61: 0.9960129577 | J61: 1 | K61: 324.6 | L61: 325.33 | M61: 320.05 | N61: 325.22 | O61: 85210800 | U61: 2009-06-19 | V61: 0.518 | W61: 92.040001 | X61: 200906 | Y61: 200806 | Z61: 2008-06-20 | AA61: 5 | AB61: 1 | AC61: 2.489 | AD61: 0.02704258988
A62: 47 | B62: 2020-07-30 | C62: 321.899994 | D62: 324.410004 | E62: 319.640015 | F62: 323.959991 | G62: 61861700 | H62: 322.668365 | I62: 0.9960130077 | J62: 1 | K62: 320.62 | L62: 323.12 | M62: 318.37 | N62: 322.67 | O62: 61861700 | U62: 2009-03-20 | V62: 0.561 | W62: 76.709999 | X62: 200903 | Y62: 200803 | Z62: 2008-03-20 | AA62: 5 | AB62: 1 | AC62: 2.64 | AD62: 0.03441533091
A63: 48 | B63: 2020-07-29 | C63: 322.119995 | D63: 325.730011 | E63: 322.079987 | F63: 325.119995 | G63: 48454200 | H63: 323.82373 | I63: 0.9960129644 | J63: 1 | K63: 320.84 | L63: 324.43 | M63: 320.8 | N63: 323.82 | O63: 48454200 | U63: 2008-12-19 | V63: 0.719 | W63: 88.190002 | X63: 200812 | Y63: 200712 | Z63: 2007-12-21 | AA63: 5 | AB63: 1 | AC63: 2.721 | AD63: 0.0308538376
A64: 49 | B64: 2020-07-28 | C64: 322.429993 | D64: 323.640015 | E64: 320.850006 | F64: 321.170013 | G64: 57495000 | H64: 319.889496 | I64: 0.9960129621 | J64: 1 | K64: 321.14 | L64: 322.35 | M64: 319.57 | N64: 319.89 | O64: 57495000 | U64: 2008-09-19 | V64: 0.691 | W64: 124.120003 | X64: 200809 | Y64: 200709 | Z64: 2007-09-21 | AA64: 5 | AB64: 1 | AC64: 2.777 | AD64: 0.02237350897
A65: 50 | B65: 2020-07-27 | C65: 321.630005 | D65: 323.410004 | E65: 320.769989 | F65: 323.220001 | G65: 48293000 | H65: 321.931305 | I65: 0.9960129448 | J65: 1 | K65: 320.35 | L65: 322.12 | M65: 319.49 | N65: 321.93 | O65: 48293000 | U65: 2008-06-20 | V65: 0.669 | W65: 131.580002 | X65: 200806 | Y65: 200706 | Z65: 2007-06-15 | AA65: 5 | AB65: 1 | AC65: 2.805 | AD65: 0.02131782913
A66: 51 | B66: 2020-07-24 | C66: 320.950012 | D66: 321.98999 | E66: 319.25 | F66: 320.880005 | G66: 73766600 | H66: 319.600647 | I66: 0.9960129706 | J66: 1 | K66: 319.67 | L66: 320.71 | M66: 317.98 | N66: 319.6 | O66: 73766600 | U66: 2008-03-20 | V66: 0.642 | W66: 132.080002 | X66: 200803 | Y66: 200703 | Z66: 2007-03-16 | AA66: 5 | AB66: 1 | AC66: 2.792 | AD66: 0.0211387035
A67: 52 | B67: 2020-07-23 | C67: 326.470001 | D67: 327.230011 | E67: 321.480011 | F67: 322.959991 | G67: 75738000 | H67: 321.672333 | I67: 0.9960129489 | J67: 1 | K67: 325.17 | L67: 325.93 | M67: 320.2 | N67: 321.67 | O67: 75738000 | U67: 2007-12-21 | V67: 0.775 | W67: 148.130005 | X67: 200712 | Y67: 200612 | Z67: 2006-12-15 | AA67: 5 | AB67: 1 | AC67: 2.701 | AD67: 0.01823398305
A68: 53 | B68: 2020-07-22 | C68: 324.619995 | D68: 327.200012 | E68: 324.5 | F68: 326.859985 | G68: 57792900 | H68: 325.556793 | I68: 0.9960129962 | J68: 1 | K68: 323.33 | L68: 325.9 | M68: 323.21 | N68: 325.56 | O68: 57792900 | U68: 2007-09-21 | V68: 0.719 | W68: 151.970001 | X68: 200709 | Y68: 200609 | Z68: 2006-09-15 | AA68: 5 | AB68: 1 | AC68: 2.719 | AD68: 0.01789168903
A69: 54 | B69: 2020-07-21 | C69: 326.450012 | D69: 326.929993 | E69: 323.940002 | F69: 325.01001 | G69: 57499000 | H69: 323.714203 | I69: 0.9960130243 | J69: 1 | K69: 325.15 | L69: 325.63 | M69: 322.65 | N69: 323.71 | O69: 57499000 | U69: 2007-06-15 | V69: 0.656 | W69: 153.070007 | X69: 200706 | Y69: 200606 | Z69: 2006-06-16 | AA69: 5 | AB69: 1 | AC69: 2.579 | AD69: 0.01684849992
A70: 55 | B70: 2020-07-20 | C70: 321.429993 | D70: 325.130005 | E70: 320.619995 | F70: 324.320007 | G70: 56308800 | H70: 323.026947 | I70: 0.9960130119 | J70: 1 | K70: 320.15 | L70: 323.83 | M70: 319.34 | N70: 323.03 | O70: 56308800 | U70: 2007-03-16 | V70: 0.551 | W70: 138.529999 | X70: 200703 | Y70: 200603 | Z70: 2006-03-17 | AA70: 5 | AB70: 1 | AC70: 2.478 | AD70: 0.01788782226
A71: 56 | B71: 2020-07-17 | C71: 321.880005 | D71: 322.570007 | E71: 319.73999 | F71: 321.720001 | G71: 62774900 | H71: 320.437286 | I71: 0.9960129461 | J71: 1 | K71: 320.6 | L71: 321.28 | M71: 318.47 | N71: 320.44 | O71: 62774900 | U71: 2006-12-15 | V71: 0.793 | W71: 142.339996 | X71: 200612 | Y71: 200512 | Z71: 2005-12-16 | AA71: 5 | AB71: 1 | AC71: 2.446 | AD71: 0.01718420731
A72: 57 | B72: 2020-07-16 | C72: 319.790009 | D72: 321.279999 | E72: 319.089996 | F72: 320.790009 | G72: 54622500 | H72: 319.511017 | I72: 0.996012993 | J72: 1 | K72: 318.52 | L72: 320 | M72: 317.82 | N72: 319.51 | O72: 54622500 | U72: 2006-09-15 | V72: 0.579 | W72: 131.960007 | X72: 200609 | Y72: 200509 | Z72: 2005-09-16 | AA72: 5 | AB72: 1 | AC72: 2.325 | AD72: 0.01761897451
A73: 58 | B73: 2020-07-15 | C73: 322.410004 | D73: 323.040009 | E73: 319.269989 | F73: 321.850006 | G73: 87196500 | H73: 320.566772 | I73: 0.996012944 | J73: 1 | K73: 321.12 | L73: 321.75 | M73: 318 | N73: 320.57 | O73: 87196500 | U73: 2006-06-16 | V73: 0.555 | W73: 124.650002 | X73: 200606 | Y73: 200506 | Z73: 2005-06-17 | AA73: 5 | AB73: 1 | AC73: 2.268 | AD73: 0.01819494556
A74: 59 | B74: 2020-07-14 | C74: 313.299988 | D74: 319.76001 | E74: 312 | F74: 318.920013 | G74: 93657000 | H74: 317.648468 | I74: 0.9960129658 | J74: 1 | K74: 312.05 | L74: 318.49 | M74: 310.76 | N74: 317.65 | O74: 93657000 | U74: 2006-03-17 | V74: 0.519 | W74: 130.619995 | X74: 200603 | Y74: 200503 | Z74: 2005-03-18 | AA74: 5 | AB74: 1 | AC74: 2.201 | AD74: 0.0168504064
A75: 60 | B75: 2020-07-13 | C75: 320.130005 | D75: 322.709991 | E75: 314.130005 | F75: 314.839996 | G75: 102997500 | H75: 313.584717 | I75: 0.9960129621 | J75: 1 | K75: 318.85 | L75: 321.42 | M75: 312.88 | N75: 313.58 | O75: 102997500 | U75: 2005-12-16 | V75: 0.672 | W75: 126.360001 | X75: 200512 | Y75: 200412 | Z75: 2004-12-17 | AA75: 5 | AB75: 1 | AC75: 2.149 | AD75: 0.01700696409
A76: 61 | B76: 2020-07-10 | C76: 314.309998 | D76: 317.880005 | E76: 312.76001 | F76: 317.589996 | G76: 57550400 | H76: 316.323761 | I76: 0.9960129884 | J76: 1 | K76: 313.06 | L76: 316.61 | M76: 311.51 | N76: 316.32 | O76: 57550400 | U76: 2005-09-16 | V76: 0.522 | W76: 123.5 | X76: 200509 | Y76: 200409 | Z76: 2004-09-17 | AA76: 6 | AB76: 1 | AC76: 2.396 | AD76: 0.01940080972
A77: 62 | B77: 2020-07-09 | C77: 316.839996 | D77: 317.100006 | E77: 310.679993 | F77: 314.380005 | G77: 83354200 | H77: 313.126556 | I77: 0.9960129494 | J77: 1 | K77: 315.58 | L77: 315.84 | M77: 309.44 | N77: 313.13 | O77: 83354200 | U77: 2005-06-17 | V77: 0.488 | W77: 121.360001 | X77: 200506 | Y77: 200406 | Z77: 2004-06-18 | AA77: 6 | AB77: 1 | AC77: 2.343 | AD77: 0.01930619628
A78: 63 | B78: 2020-07-08 | C78: 314.609985 | D78: 316.299988 | E78: 312.700012 | F78: 316.179993 | G78: 54638600 | H78: 314.919373 | I78: 0.9960129672 | J78: 1 | K78: 313.36 | L78: 315.04 | M78: 311.45 | N78: 314.92 | O78: 54638600 | U78: 2005-03-18 | V78: 0.467 | W78: 118.540001 | X78: 200503 | Y78: 200403 | Z78: 2004-03-19 | AA78: 6 | AB78: 1 | AC78: 2.269 | AD78: 0.01914121799
A79: 64 | B79: 2020-07-07 | C79: 315.380005 | D79: 317.519989 | E79: 313.369995 | F79: 313.779999 | G79: 82910000 | H79: 312.528961 | I79: 0.9960130091 | J79: 1 | K79: 314.12 | L79: 316.25 | M79: 312.12 | N79: 312.53 | O79: 82910000 | U79: 2004-12-17 | V79: 0.568 | W79: 119.440002 | X79: 200412 | Y79: 200312 | Z79: 2003-12-19 | AA79: 6 | AB79: 1 | AC79: 2.197 | AD79: 0.0183941725
A80: 65 | B80: 2020-07-06 | C80: 316.369995 | D80: 317.679993 | E80: 315.559998 | F80: 317.049988 | G80: 61713800 | H80: 315.785919 | I80: 0.9960130293 | J80: 1 | K80: 315.11 | L80: 316.41 | M80: 314.3 | N80: 315.79 | O80: 61713800 | U80: 2004-11-15 | V80: 0.351 | W80: 118.730003 | X80: 200411 | Y80: 200311 | Z80: 2003-12-19 | AA80: 5 | AB80: 0 | AC80: 2.145 | AD80: 0.01806620017
A81: 66 | B81: 2020-07-02 | C81: 314.23999 | D81: 315.700012 | E81: 311.51001 | F81: 312.230011 | G81: 69344200 | H81: 310.985138 | I81: =IF(F81=0,1,H81/F81) -> 0.9960129617 | J81: =INDEX(OFFSET($T$15,0,0,$S$13+1,1),MATCH(B81,OFFSET($Q$15,0,0,$S$13+1,1),-1)) -> 1 | K81: =ROUND($I81*C81,2) -> 312.99 | L81: =ROUND($I81*D81,2) -> 314.44 | M81: =ROUND($I81*E81,2) -> 310.27 | N81: =ROUND($I81*F81,2) -> 310.99 | O81: =G81*J81 -> 69344200 | U81: 2004-09-17 | V81: 0.469 | W81: =(INDEX(OFFSET($F$15,1,0,$B$10,1),MATCH(U81,OFFSET($B$15,1,0,$B$10,1),-1))) -> 113.150002 | X81: =YEAR(U81)&RIGHT("0"&MONTH(U81),2) -> 200409 | Y81: =YEAR(U81)-1&RIGHT("0"&MONTH(U81),2) -> 200309 | Z81: =OFFSET(U80,AA81,0,1,1) -> 2003-09-19 | AA81: =MATCH(Y81,OFFSET($X$15,A81,0,$V$14+1-A81,1),-1) -> 5 | AB81: =IF(OR(AND(YEAR(U81)=YEAR(Z81),MONTH(U81)=MONTH(Z81)),MONTH(U81)=MONTH(Z81)),1,0) -> 1 | AC81: =(V81+IF(AA81-AB81=0,0,IFERROR(SUM(OFFSET(V81,1,0,AA81-AB81-1,1)),0))) -> 1.794 | AD81: =AC81/(INDEX(OFFSET($F$15,1,0,$B$10,1),MATCH(U81,OFFSET($B$15,1,0,$B$10,1),-1))) -> 0.01585505938
A82: 67 | B82: 2020-07-01 | C82: 309.570007 | D82: 311.890015 | E82: 309.070007 | F82: 310.519989 | G82: 72396500 | H82: 309.281952 | I82: 0.99601302 | J82: 1 | K82: 308.34 | L82: 310.65 | M82: 307.84 | N82: 309.28 | O82: 72396500 | U82: 2004-06-18 | V82: 0.414 | W82: 113.629997 | X82: 200406 | Y82: 200306 | Z82: 2003-06-20 | AA82: 5 | AB82: 1 | AC82: 1.725 | AD82: 0.01518085053
A83: 68 | B83: 2020-06-30 | C83: 303.98999 | D83: 310.200012 | E83: 303.820007 | F83: 308.359985 | G83: 113394800 | H83: 307.130554 | I83: 0.9960130008 | J83: 1 | K83: 302.78 | L83: 308.96 | M83: 302.61 | N83: 307.13 | O83: 113394800 | U83: 2004-03-19 | V83: 0.395 | W83: 111.059998 | X83: 200403 | Y83: 200303 | Z83: 2003-03-21 | AA83: 5 | AB83: 1 | AC83: 1.671 | AD83: 0.01504592139
A84: 69 | B84: 2020-06-29 | C84: 301.410004 | D84: 304.609985 | E84: 298.929993 | F84: 304.459991 | G84: 79773300 | H84: 303.246094 | I84: 0.9960129507 | J84: 1 | K84: 300.21 | L84: 303.4 | M84: 297.74 | N84: 303.25 | O84: 79773300 | U84: 2003-12-19 | V84: 0.516 | W84: 108.900002 | X84: 200312 | Y84: 200212 | Z84: 2002-12-20 | AA84: 5 | AB84: 1 | AC84: 1.63 | AD84: 0.01496786015
A85: 70 | B85: 2020-06-26 | C85: 306.160004 | D85: 306.390015 | E85: 299.420013 | F85: 300.049988 | G85: 127961000 | H85: 298.853699 | I85: 0.9960130343 | J85: 1 | K85: 304.94 | L85: 305.17 | M85: 298.23 | N85: 298.85 | O85: 127961000 | U85: 2003-09-19 | V85: 0.4 | W85: 103.669998 | X85: 200309 | Y85: 200209 | Z85: 2002-09-20 | AA85: 5 | AB85: 1 | AC85: 1.55 | AD85: 0.01495128803
A86: 71 | B86: 2020-06-25 | C86: 303.470001 | D86: 307.640015 | E86: 301.279999 | F86: 307.350006 | G86: 89468000 | H86: 306.124603 | I86: 0.9960130048 | J86: 1 | K86: 302.26 | L86: 306.41 | M86: 300.08 | N86: 306.12 | O86: 89468000 | U86: 2003-06-20 | V86: 0.36 | W86: 99.440002 | X86: 200306 | Y86: 200206 | Z86: 2002-06-21 | AA86: 5 | AB86: 1 | AC86: 1.528 | AD86: 0.01536604957
A87: 72 | B87: 2020-06-24 | C87: 309.839996 | D87: 310.51001 | E87: 302.100006 | F87: 304.089996 | G87: 132813500 | H87: 302.877594 | I87: 0.9960130158 | J87: 1 | K87: 308.6 | L87: 309.27 | M87: 300.9 | N87: 302.88 | O87: 132813500 | U87: 2003-03-21 | V87: 0.354 | W87: 89.669998 | X87: 200303 | Y87: 200203 | Z87: 2002-03-15 | AA87: 5 | AB87: 1 | AC87: 1.521 | AD87: 0.01696219509
A88: 73 | B88: 2020-06-23 | C88: 313.48999 | D88: 314.5 | E88: 311.609985 | F88: 312.049988 | G88: 68471200 | H88: 310.805847 | I88: 0.9960130074 | J88: 1 | K88: 312.24 | L88: 313.25 | M88: 310.37 | N88: 310.81 | O88: 68471200 | U88: 2002-12-20 | V88: 0.436 | W88: 89.989998 | X88: 200212 | Y88: 200112 | Z88: 2001-12-21 | AA88: 5 | AB88: 1 | AC88: 1.498 | AD88: 0.0166462944
A89: 74 | B89: 2020-06-22 | C89: 307.98999 | D89: 311.049988 | E89: 306.75 | F89: 310.619995 | G89: 74649400 | H89: 309.381561 | I89: 0.9960130255 | J89: 1 | K89: 306.76 | L89: 309.81 | M89: 305.53 | N89: 309.38 | O89: 74649400 | U89: 2002-09-20 | V89: 0.378 | W89: 84.349998 | X89: 200209 | Y89: 200109 | Z89: 2001-09-21 | AA89: 5 | AB89: 1 | AC89: 1.455 | AD89: 0.01724955583
A90: 75 | B90: 2020-06-19 | C90: 314.170013 | D90: 314.380005 | E90: 306.529999 | F90: 308.640015 | G90: 135549600 | H90: 307.409454 | I90: 0.996012957 | J90: 1 | K90: 312.92 | L90: 313.13 | M90: 305.31 | N90: 307.41 | O90: 135549600 | U90: 2002-06-21 | V90: 0.353 | W90: 99.279999 | X90: 200206 | Y90: 200106 | Z90: 2001-06-15 | AA90: 5 | AB90: 1 | AC90: 1.446 | AD90: 0.01456486719
A91: 76 | B91: 2020-06-18 | C91: 310.01001 | D91: 312.299988 | E91: 309.51001 | F91: 311.779999 | G91: 80828700 | H91: 309.176361 | I91: 0.9916491179 | J91: 1 | K91: 307.42 | L91: 309.69 | M91: 306.93 | N91: 309.18 | O91: 80828700 | U91: 2002-03-15 | V91: 0.331 | W91: 116.650002 | X91: 200203 | Y91: 200103 | Z91: 2001-03-16 | AA91: 5 | AB91: 1 | AC91: 1.439 | AD91: 0.0123360478
A92: 77 | B92: 2020-06-17 | C92: 314.070007 | D92: 314.390015 | E92: 310.859985 | F92: 311.660004 | G92: 82954600 | H92: 309.057373 | I92: 0.9916491338 | J92: 1 | K92: 311.45 | L92: 311.76 | M92: 308.26 | N92: 309.06 | O92: 82954600 | U92: 2001-12-21 | V92: 0.393 | W92: 114.949997 | X92: 200112 | Y92: 200012 | Z92: 2000-12-27 | AA92: 5 | AB92: 1 | AC92: 1.424 | AD92: 0.0123879951
A93: 78 | B93: 2020-06-16 | C93: 315.480011 | D93: 315.640015 | E93: 307.670013 | F93: 312.959991 | G93: 137627500 | H93: 310.346527 | I93: 0.9916492073 | J93: 1 | K93: 312.85 | L93: 313 | M93: 305.1 | N93: 310.35 | O93: 137627500 | U93: 2001-09-21 | V93: 0.369 | W93: 97.279999 | X93: 200109 | Y93: 200009 | Z93: 2000-09-15 | AA93: 6 | AB93: 1 | AC93: 1.442 | AD93: 0.01482319094
A94: 79 | B94: 2020-06-15 | C94: 298.019989 | D94: 308.279999 | E94: 296.73999 | F94: 307.049988 | G94: 135782700 | H94: 304.48587 | I94: 0.9916491838 | J94: 1 | K94: 295.53 | L94: 305.71 | M94: 294.26 | N94: 304.49 | O94: 135782700 | U94: 2001-06-15 | V94: 0.346 | W94: 121.849998 | X94: 200106 | Y94: 200006 | Z94: 2000-06-16 | AA94: 7 | AB94: 1 | AC94: 1.448 | AD94: 0.01188346347
A95: 80 | B95: 2020-06-12 | C95: 308.23999 | D95: 309.079987 | E95: 298.600006 | F95: 304.209991 | G95: 194529100 | H95: 301.669586 | I95: 0.991649173 | J95: 1 | K95: 305.67 | L95: 306.5 | M95: 296.11 | N95: 301.67 | O95: 194529100 | U95: 2001-03-16 | V95: 0.316 | W95: 115.010002 | X95: 200103 | Y95: 200003 | Z95: 2000-03-17 | AA95: 7 | AB95: 1 | AC95: 1.45 | AD95: 0.01260759912
A96: 81 | B96: 2020-06-11 | C96: 311.459991 | D96: 312.149994 | E96: 300.01001 | F96: 300.609985 | G96: 209243600 | H96: 298.09964 | I96: 0.991649163 | J96: 1 | K96: 308.86 | L96: 309.54 | M96: 297.5 | N96: 298.1 | O96: 209243600 | U96: 2000-12-27 | V96: 0 | W96: 133.3125 | X96: 200012 | Y96: 199912 | Z96: 1999-12-17 | AA96: 7 | AB96: 1 | AC96: 1.505 | AD96: 0.01128926395
A97: 82 | B97: 2020-06-10 | C97: 321.420013 | D97: 322.390015 | E97: 318.220001 | F97: 319 | G97: 95000800 | H97: 316.33609 | I97: 0.991649185 | J97: 1 | K97: 318.74 | L97: 319.7 | M97: 315.56 | N97: 316.34 | O97: 95000800 | U97: 2000-12-15 | V97: 0.411 | W97: 130.96875 | X97: 200012 | Y97: 199912 | Z97: 1999-12-17 | AA97: 6 | AB97: 1 | AC97: 1.505 | AD97: 0.01149129086
A98: 83 | B98: 2020-06-09 | C98: 320.299988 | D98: 323.279999 | E98: 319.359985 | F98: 320.790009 | G98: 77479200 | H98: 318.111145 | I98: 0.9916491664 | J98: 1 | K98: 317.63 | L98: 320.58 | M98: 316.69 | N98: 318.11 | O98: 77479200 | U98: 2000-09-15 | V98: 0.375 | W98: 146 | X98: 200009 | Y98: 199909 | Z98: 1999-09-17 | AA98: 6 | AB98: 1 | AC98: 1.442 | AD98: 0.009876712329
A99: 84 | B99: 2020-06-08 | C99: 320.220001 | D99: 323.410004 | E99: 319.630005 | F99: 323.200012 | G99: 73641200 | H99: 320.501007 | I99: 0.9916491185 | J99: 1 | K99: 317.55 | L99: 320.71 | M99: 316.96 | N99: 320.5 | O99: 73641200 | U99: 2000-09-14 | V99: 0 | W99: 149.640625 | X99: 200009 | Y99: 199909 | Z99: 1999-09-17 | AA99: 5 | AB99: 1 | AC99: 1.067 | AD99: 0.007130416623
A100: 85 | B100: 2020-06-05 | C100: 317.230011 | D100: 321.269989 | E100: 317.160004 | F100: 319.339996 | G100: 150524700 | H100: 316.673218 | I100: 0.9916490949 | J100: 1 | K100: 314.58 | L100: 318.59 | M100: 314.51 | N100: 316.67 | O100: 150524700 | U100: 2000-06-16 | V100: 0.348 | W100: 146.59375 | X100: 200006 | Y100: 199906 | Z100: 1999-06-18 | AA100: 5 | AB100: 1 | AC100: 1.439 | AD100: 0.009816243871
A101: 86 | B101: 2020-06-04 | C101: 311.109985 | D101: 313 | E101: 309.079987 | F101: 311.359985 | G101: 75794400 | H101: 308.759857 | I101: 0.991649126 | J101: 1 | K101: 308.51 | L101: 310.39 | M101: 306.5 | N101: 308.76 | O101: 75794400 | U101: 2000-03-17 | V101: 0.371 | W101: 146.9375 | X101: 200003 | Y101: 199903 | Z101: 1999-03-19 | AA101: 5 | AB101: 1 | AC101: 1.496 | AD101: 0.01018119949
A102: 87 | B102: 2020-06-03 | C102: 310.23999 | D102: 313.220001 | E102: 309.940002 | F102: 312.179993 | G102: 92567600 | H102: 309.573029 | I102: 0.9916491638 | J102: 1 | K102: 307.65 | L102: 310.6 | M102: 307.35 | N102: 309.57 | O102: 92567600 | U102: 1999-12-17 | V102: 0.348 | W102: 142.6875 | X102: 199912 | Y102: 199812 | Z102: 1998-12-18 | AA102: 5 | AB102: 1 | AC102: 1.445 | AD102: 0.01012702584
A103: 88 | B103: 2020-06-02 | C103: 306.549988 | D103: 308.130005 | E103: 305.100006 | F103: 308.079987 | G103: 74267200 | H103: 305.507233 | I103: 0.9916490713 | J103: 1 | K103: 303.99 | L103: 305.56 | M103: 302.55 | N103: 305.51 | O103: 74267200 | U103: 1999-09-17 | V103: 0.372 | W103: 133.75 | X103: 199909 | Y103: 199809 | Z103: 1998-09-18 | AA103: 5 | AB103: 1 | AC103: 1.489 | AD103: 0.01113271028
A104: 89 | B104: 2020-06-01 | C104: 303.619995 | D104: 306.209991 | E104: 303.059998 | F104: 305.549988 | G104: 55758300 | H104: 302.998383 | I104: 0.9916491406 | J104: 1 | K104: 301.08 | L104: 303.65 | M104: 300.53 | N104: 303 | O104: 55758300 | U104: 1999-06-18 | V104: 0.405 | W104: 134.3125 | X104: 199906 | Y104: 199806 | Z104: 1998-06-19 | AA104: 5 | AB104: 1 | AC104: 1.476 | AD104: 0.01098929735
A105: 90 | B105: 2020-05-29 | C105: 302.459991 | D105: 304.959991 | E105: 299.470001 | F105: 304.320007 | G105: 119265700 | H105: 301.778687 | I105: 0.9916491853 | J105: 1 | K105: 299.93 | L105: 302.41 | M105: 296.97 | N105: 301.78 | O105: 119265700 | U105: 1999-03-19 | V105: 0.32 | W105: 129.6875 | X105: 199903 | Y105: 199803 | Z105: 1998-03-20 | AA105: 5 | AB105: 1 | AC105: 1.423 | AD105: 0.01097253012
A106: 91 | B106: 2020-05-28 | C106: 304.649994 | D106: 306.839996 | E106: 302.23999 | F106: 302.970001 | G106: 90405200 | H106: 300.439941 | I106: 0.9916491402 | J106: 1 | K106: 302.11 | L106: 304.28 | M106: 299.72 | N106: 300.44 | O106: 90405200 | U106: 1998-12-18 | V106: 0.392 | W106: 118.5 | X106: 199812 | Y106: 199712 | Z106: 1997-12-19 | AA106: 5 | AB106: 1 | AC106: 1.416 | AD106: 0.01194936709
A107: 92 | B107: 2020-05-27 | C107: 302.119995 | D107: 303.570007 | E107: 296.869995 | F107: 303.529999 | G107: 104817400 | H107: 300.99527 | I107: 0.9916491648 | J107: 1 | K107: 299.6 | L107: 301.03 | M107: 294.39 | N107: 301 | O107: 104817400 | U107: 1998-09-18 | V107: 0.359 | W107: 102.09375 | X107: 199809 | Y107: 199709 | Z107: 1997-09-19 | AA107: 5 | AB107: 1 | AC107: 1.404 | AD107: 0.01375206612
A108: 93 | B108: 2020-05-26 | C108: 301.929993 | D108: 302.190002 | E108: 295.459991 | F108: 299.079987 | G108: 88951400 | H108: 296.582397 | I108: 0.9916490902 | J108: 1 | K108: 299.41 | L108: 299.67 | M108: 292.99 | N108: 296.58 | O108: 88951400 | U108: 1998-06-19 | V108: 0.352 | W108: 110.0625 | X108: 199806 | Y108: 199706 | Z108: 1997-06-20 | AA108: 5 | AB108: 1 | AC108: 1.393 | AD108: 0.0126564452
A109: 94 | B109: 2020-05-22 | C109: 294.570007 | D109: 295.630005 | E109: 293.220001 | F109: 295.440002 | G109: 63958200 | H109: 292.972839 | I109: 0.9916491911 | J109: 1 | K109: 292.11 | L109: 293.16 | M109: 290.77 | N109: 292.97 | O109: 63958200 | U109: 1998-03-20 | V109: 0.313 | W109: 109.875 | X109: 199803 | Y109: 199703 | Z109: 1997-03-21 | AA109: 5 | AB109: 1 | AC109: 1.391 | AD109: 0.01265984073
A110: 95 | B110: 2020-05-21 | C110: 296.790009 | D110: 297.670013 | E110: 293.690002 | F110: 294.880005 | G110: 78293900 | H110: 292.417511 | I110: 0.9916491659 | J110: 1 | K110: 294.31 | L110: 295.18 | M110: 291.24 | N110: 292.42 | O110: 78293900 | U110: 1997-12-19 | V110: 0.38 | W110: 94.78125 | X110: 199712 | Y110: 199612 | Z110: 1996-12-20 | AA110: 5 | AB110: 1 | AC110: 1.377 | AD110: 0.01452818991
A111: 96 | B111: 2020-05-20 | C111: 295.820007 | D111: 297.869995 | E111: 295.570007 | F111: 296.929993 | G111: 85861700 | H111: 294.450378 | I111: 0.9916491595 | J111: 1 | K111: 293.35 | L111: 295.38 | M111: 293.1 | N111: 294.45 | O111: 85861700 | U111: 1997-09-19 | V111: 0.348 | W111: 95.03125 | X111: 199709 | Y111: 199609 | Z111: 1996-09-20 | AA111: 5 | AB111: 1 | AC111: 1.364 | AD111: 0.0143531733
A112: 97 | B112: 2020-05-19 | C112: 294.350006 | D112: 296.209991 | E112: 291.950012 | F112: 291.970001 | G112: 95189300 | H112: 289.531799 | I112: 0.9916491352 | J112: 1 | K112: 291.89 | L112: 293.74 | M112: 289.51 | N112: 289.53 | O112: 95189300 | U112: 1997-06-20 | V112: 0.35 | W112: 89.578125 | X112: 199706 | Y112: 199606 | Z112: 1996-06-21 | AA112: 5 | AB112: 1 | AC112: 1.368 | AD112: 0.01527158556
A113: 98 | B113: 2020-05-18 | C113: 293.049988 | D113: 296.75 | E113: 292.700012 | F113: 295 | G113: 120320200 | H113: 292.536499 | I113: 0.9916491492 | J113: 1 | K113: 290.6 | L113: 294.27 | M113: 290.26 | N113: 292.54 | O113: 120320200 | U113: 1997-03-21 | V113: 0.299 | W113: 78.4375 | X113: 199703 | Y113: 199603 | Z113: 1996-03-15 | AA113: 5 | AB113: 1 | AC113: 1.369 | AD113: 0.01745338645
A114: 99 | B114: 2020-05-15 | C114: 282.369995 | D114: 286.329987 | E114: 281.339996 | F114: 286.279999 | G114: 111146300 | H114: 283.889343 | I114: 0.9916492385 | J114: 1 | K114: 280.01 | L114: 283.94 | M114: 278.99 | N114: 283.89 | O114: 111146300 | U114: 1996-12-20 | V114: 0.367 | W114: 74.84375 | X114: 199612 | Y114: 199512 | Z114: 1995-12-15 | AA114: 5 | AB114: 1 | AC114: 1.355 | AD114: 0.01810438413
A115: 100 | B115: 2020-05-14 | C115: 278.950012 | D115: 285.109985 | E115: 272.98999 | F115: 284.970001 | G115: 121977900 | H115: 282.590271 | I115: 0.9916491912 | J115: 1 | K115: 276.62 | L115: 282.73 | M115: 270.71 | N115: 282.59 | O115: 121977900 | U115: 1996-09-20 | V115: 0.352 | W115: 68.640625 | X115: 199609 | Y115: 199509 | Z115: 1995-09-15 | AA115: 5 | AB115: 1 | AC115: 1.37 | AD115: 0.01995902572
A116: 101 | B116: 2020-05-13 | C116: 286.059998 | D116: 287.190002 | E116: 278.959991 | F116: 281.600006 | G116: 144721100 | H116: 279.248413 | I116: 0.9916491728 | J116: 1 | K116: 283.67 | L116: 284.79 | M116: 276.63 | N116: 279.25 | O116: 144721100 | U116: 1996-06-21 | V116: 0.351 | W116: 66.8125 | X116: 199606 | Y116: 199506 | Z116: 1995-06-16 | AA116: 5 | AB116: 1 | AC116: 1.33 | AD116: 0.01990645463
A117: 102 | B117: 2020-05-12 | C117: 293.790009 | D117: 294.23999 | E117: 286.519989 | F117: 286.670013 | G117: 95870800 | H117: 284.276093 | I117: 0.9916492138 | J117: 1 | K117: 291.34 | L117: 291.78 | M117: 284.13 | N117: 284.28 | O117: 95870800 | U117: 1996-03-15 | V117: 0.285 | W117: 64.125 | X117: 199603 | Y117: 199503 | Z117: 1995-03-17 | AA117: 5 | AB117: 1 | AC117: 1.295 | AD117: 0.02019493177
A118: 103 | B118: 2020-05-11 | C118: 290.339996 | D118: 294 | E118: 289.880005 | F118: 292.5 | G118: 79030200 | H118: 290.057373 | I118: 0.9916491385 | J118: 1 | K118: 287.92 | L118: 291.54 | M118: 287.46 | N118: 290.06 | O118: 79030200 | U118: 1995-12-15 | V118: 0.382 | W118: 61.8125 | X118: 199512 | Y118: 199412 | Z118: 1994-12-16 | AA118: 5 | AB118: 1 | AC118: 1.278 | AD118: 0.02067542973
A119: 104 | B119: 2020-05-08 | C119: 291.089996 | D119: 292.950012 | E119: 289.859985 | F119: 292.440002 | G119: 76622100 | H119: 289.997894 | I119: 0.9916491999 | J119: 1 | K119: 288.66 | L119: 290.5 | M119: 287.44 | N119: 290 | O119: 76622100 | U119: 1995-09-15 | V119: 0.312 | W119: 58.4375 | X119: 199509 | Y119: 199409 | Z119: 1994-09-19 | AA119: 5 | AB119: 1 | AC119: 1.259 | AD119: 0.02154438503
A120: 105 | B120: 2020-05-07 | C120: 287.75 | D120: 289.779999 | E120: 287.130005 | F120: 287.679993 | G120: 75250400 | H120: 285.277618 | I120: 0.9916491412 | J120: 1 | K120: 285.35 | L120: 287.36 | M120: 284.73 | N120: 285.28 | O120: 75250400 | U120: 1995-06-16 | V120: 0.316 | W120: 53.96875 | X120: 199506 | Y120: 199406 | Z120: 1994-06-17 | AA120: 6 | AB120: 1 | AC120: 1.235 | AD120: 0.0228836132
A121: 106 | B121: 2020-05-06 | C121: 288.040009 | D121: 288.459991 | E121: 283.779999 | F121: 284.25 | G121: 73632600 | H121: 281.876282 | I121: 0.9916491891 | J121: 1 | K121: 285.63 | L121: 286.05 | M121: 281.41 | N121: 281.88 | O121: 73632600 | U121: 1995-03-17 | V121: 0.268 | W121: 49.5625 | X121: 199503 | Y121: 199403 | Z121: 1994-03-18 | AA121: 6 | AB121: 1 | AC121: 1.224 | AD121: 0.02469609079
A122: 107 | B122: 2020-05-05 | C122: 286.640015 | D122: 289.25 | E122: 283.709991 | F122: 286.190002 | G122: 79569900 | H122: 283.800079 | I122: 0.9916491737 | J122: 1 | K122: 284.25 | L122: 286.83 | M122: 281.34 | N122: 283.8 | O122: 79569900 | U122: 1994-12-16 | V122: 0.363 | W122: 45.75 | X122: 199412 | Y122: 199312 | Z122: 1993-12-17 | AA122: 6 | AB122: 1 | AC122: 1.227 | AD122: 0.02681967213
A123: 108 | B123: 2020-05-04 | C123: 280.73999 | D123: 283.899994 | E123: 279.130005 | F123: 283.570007 | G123: 80873200 | H123: 281.201965 | I123: 0.9916491803 | J123: 1 | K123: 278.4 | L123: 281.53 | M123: 276.8 | N123: 281.2 | O123: 80873200 | U123: 1994-09-19 | V123: 0 | W123: 47.0625 | X123: 199409 | Y123: 199309 | Z123: 1993-09-17 | AA123: 6 | AB123: 1 | AC123: 1.181 | AD123: 0.02509428951
A124: 109 | B124: 2020-05-01 | C124: 285.309998 | D124: 290.660004 | E124: 281.519989 | F124: 282.790009 | G124: 125180000 | H124: 280.428467 | I124: 0.9916491321 | J124: 1 | K124: 282.93 | L124: 288.23 | M124: 279.17 | N124: 280.43 | O124: 125180000 | U124: 1994-09-16 | V124: 0.288 | W124: 47.015625 | X124: 199409 | Y124: 199309 | Z124: 1993-09-17 | AA124: 5 | AB124: 1 | AC124: 1.181 | AD124: 0.02511930874
A125: 110 | B125: 2020-04-30 | C125: 291.709991 | D125: 293.320007 | E125: 288.589996 | F125: 290.480011 | G125: 121841200 | H125: 288.05426 | I125: 0.9916491638 | J125: 1 | K125: 289.27 | L125: 290.87 | M125: 286.18 | N125: 288.05 | O125: 121841200 | U125: 1994-06-17 | V125: 0.305 | W125: 45.875 | X125: 199406 | Y125: 199306 | Z125: 1993-06-18 | AA125: 5 | AB125: 1 | AC125: 1.179 | AD125: 0.02570027248
A126: 111 | B126: 2020-04-29 | C126: 291.529999 | D126: 294.880005 | E126: 290.410004 | F126: 293.209991 | G126: 118745600 | H126: 290.761444 | I126: 0.9916491693 | J126: 1 | K126: 289.1 | L126: 292.42 | M126: 287.98 | N126: 290.76 | O126: 118745600 | U126: 1994-03-18 | V126: 0.271 | W126: 46.96875 | X126: 199403 | Y126: 199303 | Z126: 1993-03-19 | AA126: 5 | AB126: 1 | AC126: 1.192 | AD126: 0.02537857618
A127: 112 | B127: 2020-04-28 | C127: 291.019989 | D127: 291.399994 | E127: 285.399994 | F127: 285.730011 | G127: 105270000 | H127: 283.343903 | I127: 0.9916490816 | J127: 1 | K127: 288.59 | L127: 288.97 | M127: 283.02 | N127: 283.34 | O127: 105270000 | U127: 1993-12-17 | V127: 0.317 | W127: 46.5625 | X127: 199312 | Y127: 199212 | Z127: 1993-03-19 | AA127: 4 | AB127: 0 | AC127: 1.134 | AD127: 0.02435436242
A128: 113 | B128: 2020-04-27 | C128: 285.119995 | D128: 288.269989 | E128: 284.619995 | F128: 287.049988 | G128: 77896600 | H128: 284.652893 | I128: 0.9916492071 | J128: 1 | K128: 282.74 | L128: 285.86 | M128: 282.24 | N128: 284.65 | O128: 77896600 | U128: 1993-09-17 | V128: 0.286 | W128: 45.8125 | X128: 199309 | Y128: 199209 | Z128: 1993-03-19 | AA128: 3 | AB128: 0 | AC128: 0.817 | AD128: 0.01783356071
A129: 114 | B129: 2020-04-24 | C129: 280.730011 | D129: 283.700012 | E129: 278.5 | F129: 282.970001 | G129: 85166000 | H129: 280.606964 | I129: 0.9916491607 | J129: 1 | K129: 278.39 | L129: 281.33 | M129: 276.17 | N129: 280.61 | O129: 85166000 | U129: 1993-06-18 | V129: 0.318 | W129: 44.5 | X129: 199306 | Y129: 199206 | Z129: 1993-03-19 | AA129: 2 | AB129: 0 | AC129: 0.531 | AD129: 0.01193258427
A130: 115 | B130: 2020-04-23 | C130: 280.48999 | D130: 283.940002 | E130: 278.75 | F130: 279.079987 | G130: 104709700 | H130: 276.74942 | I130: 0.9916491074 | J130: 1 | K130: 278.15 | L130: 281.57 | M130: 276.42 | N130: 276.75 | O130: 104709700 | U130: 1993-03-19 | V130: 0.213 | W130: 45.03125 | X130: 199303 | Y130: 199203 | Z130: 1993-03-19 | AA130: 1 | AB130: 1 | AC130: 0.213 | AD130: 0.004730048577
A131: 116 | B131: 2020-04-22 | C131: 278.350006 | D131: 281 | E131: 276.910004 | F131: 279.100006 | G131: 93524600 | H131: 276.769287 | I131: 0.9916491618 | J131: 1 | K131: 276.03 | L131: 278.65 | M131: 274.6 | N131: 276.77 | O131: 93524600
A132: 117 | B132: 2020-04-21 | C132: 276.730011 | D132: 278.040009 | E132: 272.019989 | F132: 273.040009 | G132: 126385700 | H132: 270.759888 | I132: 0.9916491323 | J132: 1 | K132: 274.42 | L132: 275.72 | M132: 269.75 | N132: 270.76 | O132: 126385700
A133: 118 | B133: 2020-04-20 | C133: 282.609985 | D133: 286.790009 | E133: 281.350006 | F133: 281.589996 | G133: 100109300 | H133: 279.238464 | I133: 0.9916490925 | J133: 1 | K133: 280.25 | L133: 284.4 | M133: 279 | N133: 279.24 | O133: 100109300
A134: 119 | B134: 2020-04-17 | C134: 285.380005 | D134: 287.299988 | E134: 282.399994 | F134: 286.640015 | G134: 146684800 | H134: 284.246307 | I134: 0.9916490794 | J134: 1 | K134: 283 | L134: 284.9 | M134: 280.04 | N134: 284.25 | O134: 146684800
A135: 120 | B135: 2020-04-16 | C135: 279.149994 | D135: 280.029999 | E135: 275.76001 | F135: 279.100006 | G135: 131798300 | H135: 276.769287 | I135: 0.9916491618 | J135: 1 | K135: 276.82 | L135: 277.69 | M135: 273.46 | N135: 276.77 | O135: 131798300
A136: 121 | B136: 2020-04-15 | C136: 277.570007 | D136: 283.940002 | E136: 275.459991 | F136: 277.76001 | G136: 121775000 | H136: 275.440491 | I136: 0.9916491974 | J136: 1 | K136: 275.25 | L136: 281.57 | M136: 273.16 | N136: 275.44 | O136: 121775000
A137: 122 | B137: 2020-04-14 | C137: 280.980011 | D137: 284.899994 | E137: 275.51001 | F137: 283.790009 | G137: 134143400 | H137: 281.420135 | I137: 0.9916491986 | J137: 1 | K137: 278.63 | L137: 282.52 | M137: 273.21 | N137: 281.42 | O137: 134143400
A138: 123 | B138: 2020-04-13 | C138: 277.140015 | D138: 277.51001 | E138: 271.410004 | F138: 275.660004 | G138: 114839100 | H138: 273.358002 | I138: 0.9916491259 | J138: 1 | K138: 274.83 | L138: 275.19 | M138: 269.14 | N138: 273.36 | O138: 114839100
A139: 124 | B139: 2020-04-09 | C139: 277.579987 | D139: 281.200012 | E139: 275.470001 | F139: 278.200012 | G139: 190282700 | H139: 275.876801 | I139: 0.9916491341 | J139: 1 | K139: 275.26 | L139: 278.85 | M139: 273.17 | N139: 275.88 | O139: 190282700
A140: 125 | B140: 2020-04-08 | C140: 267.959991 | D140: 276 | E140: 265.25 | F140: 274.029999 | G140: 153774500 | H140: 271.741608 | I140: 0.9916491223 | J140: 1 | K140: 265.72 | L140: 273.7 | M140: 263.03 | N140: 271.74 | O140: 153774500
A141: 126 | B141: 2020-04-07 | C141: 274.209991 | D141: 275.029999 | E141: 264.890015 | F141: 265.130005 | G141: 201427200 | H141: 262.915955 | I141: 0.9916491911 | J141: 1 | K141: 271.92 | L141: 272.73 | M141: 262.68 | N141: 262.92 | O141: 201427200
A142: 127 | B142: 2020-04-06 | C142: 257.839996 | D142: 267 | E142: 248.169998 | F142: 264.859985 | G142: 188061200 | H142: 262.648193 | I142: 0.9916492029 | J142: 1 | K142: 255.69 | L142: 264.77 | M142: 246.1 | N142: 262.65 | O142: 188061200
A143: 128 | B143: 2020-04-03 | C143: 250.759995 | D143: 253.320007 | E143: 245.220001 | F143: 248.190002 | G143: 135310100 | H143: 246.117416 | I143: 0.9916491962 | J143: 1 | K143: 248.67 | L143: 251.2 | M143: 243.17 | N143: 246.12 | O143: 135310100
A144: 129 | B144: 2020-04-02 | C144: 245.190002 | D144: 252.679993 | E144: 244.589996 | F144: 251.830002 | G144: 177660400 | H144: 249.72702 | I144: 0.9916491999 | J144: 1 | K144: 243.14 | L144: 250.57 | M144: 242.55 | N144: 249.73 | O144: 177660400
A145: 130 | B145: 2020-04-01 | C145: 247.979996 | D145: 257.660004 | E145: 243.899994 | F145: 246.149994 | G145: 189554600 | H145: 244.094437 | I145: =IF(F145=0,1,H145/F145) -> 0.991649169 | J145: =INDEX(OFFSET($T$15,0,0,$S$13+1,1),MATCH(B145,OFFSET($Q$15,0,0,$S$13+1,1),-1)) -> 1 | K145: =ROUND($I145*C145,2) -> 245.91 | L145: =ROUND($I145*D145,2) -> 255.51 | M145: =ROUND($I145*E145,2) -> 241.86 | N145: =ROUND($I145*F145,2) -> 244.09 | O145: =G145*J145 -> 189554600
A146: 131 | B146: 2020-03-31 | C146: 260.559998 | D146: 263.329987 | E146: 256.220001 | F146: 257.75 | G146: 194881100 | H146: 255.59758 | I146: 0.991649195 | J146: 1 | K146: 258.38 | L146: 261.13 | M146: 254.08 | N146: 255.6 | O146: 194881100
A147: 132 | B147: 2020-03-30 | C147: 255.699997 | D147: 262.429993 | E147: 253.529999 | F147: 261.649994 | G147: 171369500 | H147: 259.464996 | I147: 0.9916491571 | J147: 1 | K147: 253.56 | L147: 260.24 | M147: 251.41 | N147: 259.46 | O147: 171369500
A148: 133 | B148: 2020-03-27 | C148: 253.270004 | D148: 260.809998 | E148: 251.050003 | F148: 253.419998 | G148: 224341200 | H148: 251.303726 | I148: 0.9916491515 | J148: 1 | K148: 251.15 | L148: 258.63 | M148: 248.95 | N148: 251.3 | O148: 224341200
A149: 134 | B149: 2020-03-26 | C149: 249.520004 | D149: 262.799988 | E149: 249.050003 | F149: 261.200012 | G149: 257632800 | H149: 259.018768 | I149: 0.9916491428 | J149: 1 | K149: 247.44 | L149: 260.61 | M149: 246.97 | N149: 259.02 | O149: 257632800
A150: 135 | B150: 2020-03-25 | C150: 244.869995 | D150: 256.350006 | E150: 239.75 | F150: 246.789993 | G150: 299430300 | H150: 244.729095 | I150: 0.9916491833 | J150: 1 | K150: 242.83 | L150: 254.21 | M150: 237.75 | N150: 244.73 | O150: 299430300
A151: 136 | B151: 2020-03-24 | C151: 234.419998 | D151: 244.100006 | E151: 233.800003 | F151: 243.149994 | G151: 235494500 | H151: 241.119492 | I151: 0.9916491793 | J151: 1 | K151: 232.46 | L151: 242.06 | M151: 231.85 | N151: 241.12 | O151: 235494500
A152: 137 | B152: 2020-03-23 | C152: 228.190002 | D152: 229.679993 | E152: 218.259995 | F152: 222.949997 | G152: 326025200 | H152: 221.088181 | I152: 0.9916491768 | J152: 1 | K152: 226.28 | L152: 227.76 | M152: 216.44 | N152: 221.09 | O152: 326025200
A153: 138 | B153: 2020-03-20 | C153: 242.529999 | D153: 244.470001 | E153: 228.5 | F153: 228.800003 | G153: 347158800 | H153: 226.889328 | I153: 0.9916491478 | J153: 1 | K153: 240.5 | L153: 242.43 | M153: 226.59 | N153: 226.89 | O153: 347158800
A154: 139 | B154: 2020-03-19 | C154: 239.25 | D154: 247.380005 | E154: 232.220001 | F154: 240.509995 | G154: 289322000 | H154: 237.107269 | I154: 0.9858520391 | J154: 1 | K154: 235.87 | L154: 243.88 | M154: 228.93 | N154: 237.11 | O154: 289322000
A155: 140 | B155: 2020-03-18 | C155: 236.25 | D155: 248.369995 | E155: 228.020004 | F155: 240 | G155: 327597100 | H155: 236.604492 | I155: 0.98585205 | J155: 1 | K155: 232.91 | L155: 244.86 | M155: 224.79 | N155: 236.6 | O155: 327597100
A156: 141 | B156: 2020-03-17 | C156: 245.039993 | D156: 256.170013 | E156: 237.070007 | F156: 252.800003 | G156: 262070500 | H156: 249.223404 | I156: 0.9858520611 | J156: 1 | K156: 241.57 | L156: 252.55 | M156: 233.72 | N156: 249.22 | O156: 262070500
A157: 142 | B157: 2020-03-16 | C157: 241.179993 | D157: 256.899994 | E157: 237.360001 | F157: 239.850006 | G157: 297240000 | H157: 236.456635 | I157: 0.9858521121 | J157: 1 | K157: 237.77 | L157: 253.27 | M157: 234 | N157: 236.46 | O157: 297240000
A158: 143 | B158: 2020-03-13 | C158: 263.089996 | D158: 271.480011 | E158: 248.520004 | F158: 269.320007 | G158: 329566100 | H158: 265.509674 | I158: 0.985852024 | J158: 1 | K158: 259.37 | L158: 267.64 | M158: 245 | N158: 265.51 | O158: 329566100
A159: 144 | B159: 2020-03-12 | C159: 256 | D159: 266.660004 | E159: 247.679993 | F159: 248.110001 | G159: 392220700 | H159: 244.599762 | I159: 0.9858520858 | J159: 1 | K159: 252.38 | L159: 262.89 | M159: 244.18 | N159: 244.6 | O159: 392220700
A160: 145 | B160: 2020-03-11 | C160: 280.700012 | D160: 281.940002 | E160: 270.880005 | F160: 274.359985 | G160: 255316300 | H160: 270.478394 | I160: 0.9858521971 | J160: 1 | K160: 276.73 | L160: 277.95 | M160: 267.05 | N160: 270.48 | O160: 255316300
A161: 146 | B161: 2020-03-10 | C161: 284.640015 | D161: 288.519989 | E161: 273.5 | F161: 288.420013 | G161: 276444100 | H161: 284.339478 | I161: 0.9858521087 | J161: 1 | K161: 280.61 | L161: 284.44 | M161: 269.63 | N161: 284.34 | O161: 276444100
A162: 147 | B162: 2020-03-09 | C162: 275.299988 | D162: 284.190002 | E162: 273.450012 | F162: 274.230011 | G162: 309417300 | H162: 270.35022 | I162: 0.9858520554 | J162: 1 | K162: 271.41 | L162: 280.17 | M162: 269.58 | N162: 270.35 | O162: 309417300
A163: 148 | B163: 2020-03-06 | C163: 293.149994 | D163: 298.779999 | E163: 290.230011 | F163: 297.459991 | G163: 228667200 | H163: 293.251556 | I163: 0.9858520973 | J163: 1 | K163: 289 | L163: 294.55 | M163: 286.12 | N163: 293.25 | O163: 228667200
A164: 149 | B164: 2020-03-05 | C164: 304.980011 | D164: 308.470001 | E164: 300.01001 | F164: 302.459991 | G164: 186366800 | H164: 298.180817 | I164: 0.985852099 | J164: 1 | K164: 300.67 | L164: 304.11 | M164: 295.77 | N164: 298.18 | O164: 186366800
A165: 150 | B165: 2020-03-04 | C165: 306.119995 | D165: 313.100006 | E165: 303.329987 | F165: 312.859985 | G165: 176613400 | H165: 308.433655 | I165: 0.9858520418 | J165: 1 | K165: 301.79 | L165: 308.67 | M165: 299.04 | N165: 308.43 | O165: 176613400
A166: 151 | B166: 2020-03-03 | C166: 309.5 | D166: 313.839996 | E166: 297.570007 | F166: 300.23999 | G166: 300139100 | H166: 295.992218 | I166: 0.9858520779 | J166: 1 | K166: 305.12 | L166: 309.4 | M166: 293.36 | N166: 295.99 | O166: 300139100
A167: 152 | B167: 2020-03-02 | C167: 298.209991 | D167: 309.160004 | E167: 294.459991 | F167: 309.089996 | G167: 238703600 | H167: 304.71698 | I167: 0.9858519653 | J167: 1 | K167: 293.99 | L167: 304.79 | M167: 290.29 | N167: 304.72 | O167: 238703600
A168: 153 | B168: 2020-02-28 | C168: 288.700012 | D168: 297.890015 | E168: 285.540009 | F168: 296.26001 | G168: 385764000 | H168: 292.068542 | I168: 0.9858520629 | J168: 1 | K168: 284.62 | L168: 293.68 | M168: 281.5 | N168: 292.07 | O168: 385764000
A169: 154 | B169: 2020-02-27 | C169: 305.459991 | D169: 311.559998 | E169: 297.51001 | F169: 297.51001 | G169: 284353500 | H169: 293.300873 | I169: 0.9858521164 | J169: 1 | K169: 301.14 | L169: 307.15 | M169: 293.3 | N169: 293.3 | O169: 284353500
A170: 155 | B170: 2020-02-26 | C170: 314.179993 | D170: 318.109985 | E170: 310.700012 | F170: 311.5 | G170: 194773800 | H170: 307.092926 | I170: 0.9858520899 | J170: 1 | K170: 309.74 | L170: 313.61 | M170: 306.3 | N170: 307.09 | O170: 194773800
A171: 156 | B171: 2020-02-25 | C171: 323.940002 | D171: 324.609985 | E171: 311.690002 | F171: 312.649994 | G171: 218913200 | H171: 308.226624 | I171: 0.9858520068 | J171: 1 | K171: 319.36 | L171: 320.02 | M171: 307.28 | N171: 308.23 | O171: 218913200
A172: 157 | B172: 2020-02-24 | C172: 323.140015 | D172: 333.559998 | E172: 321.23999 | F172: 322.420013 | G172: 161088400 | H172: 317.858429 | I172: 0.9858520445 | J172: 1 | K172: 318.57 | L172: 328.84 | M172: 316.7 | N172: 317.86 | O172: 161088400
A173: 158 | B173: 2020-02-21 | C173: 335.470001 | D173: 335.809998 | E173: 332.579987 | F173: 333.480011 | G173: 113788200 | H173: 328.761963 | I173: 0.9858520816 | J173: 1 | K173: 330.72 | L173: 331.06 | M173: 327.87 | N173: 328.76 | O173: 113788200
A174: 159 | B174: 2020-02-20 | C174: 337.73999 | D174: 338.640015 | E174: 333.679993 | F174: 336.950012 | G174: 74163400 | H174: 332.182892 | I174: 0.9858521447 | J174: 1 | K174: 332.96 | L174: 333.85 | M174: 328.96 | N174: 332.18 | O174: 74163400
A175: 160 | B175: 2020-02-19 | C175: 337.790009 | D175: 339.079987 | E175: 337.480011 | F175: 338.339996 | G175: 48814700 | H175: 333.553162 | I175: 0.9858520008 | J175: 1 | K175: 333.01 | L175: 334.28 | M175: 332.71 | N175: 333.55 | O175: 48814700
A176: 161 | B176: 2020-02-18 | C176: 336.51001 | D176: 337.670013 | E176: 335.209991 | F176: 336.730011 | G176: 57226200 | H176: 331.965973 | I176: 0.985852054 | J176: 1 | K176: 331.75 | L176: 332.89 | M176: 330.47 | N176: 331.97 | O176: 57226200
A177: 162 | B177: 2020-02-14 | C177: 337.51001 | D177: 337.730011 | E177: 336.200012 | F177: 337.600006 | G177: 64582200 | H177: 332.823669 | I177: 0.9858520826 | J177: 1 | K177: 332.73 | L177: 332.95 | M177: 331.44 | N177: 332.82 | O177: 64582200
A178: 163 | B178: 2020-02-13 | C178: 335.859985 | D178: 338.119995 | E178: 335.559998 | F178: 337.059998 | G178: 54501900 | H178: 332.29129 | I178: 0.98585205 | J178: 1 | K178: 331.11 | L178: 333.34 | M178: 330.81 | N178: 332.29 | O178: 54501900
A179: 164 | B179: 2020-02-12 | C179: 336.829987 | D179: 337.649994 | E179: 336.429993 | F179: 337.420013 | G179: 43992700 | H179: 332.64621 | I179: 0.9858520455 | J179: 1 | K179: 332.06 | L179: 332.87 | M179: 331.67 | N179: 332.65 | O179: 43992700
A180: 165 | B180: 2020-02-11 | C180: 336.160004 | D180: 337.019989 | E180: 334.679993 | F180: 335.26001 | G180: 54864500 | H180: 330.516754 | I180: 0.9858520078 | J180: 1 | K180: 331.4 | L180: 332.25 | M180: 329.94 | N180: 330.52 | O180: 54864500
A181: 166 | B181: 2020-02-10 | C181: 331.230011 | D181: 334.75 | E181: 331.190002 | F181: 334.679993 | G181: 42070000 | H181: 329.944977 | I181: 0.9858521092 | J181: 1 | K181: 326.54 | L181: 330.01 | M181: 326.5 | N181: 329.94 | O181: 42070000
A182: 167 | B182: 2020-02-07 | C182: 332.820007 | D182: 333.98999 | E182: 331.600006 | F182: 332.200012 | G182: 64139400 | H182: 327.500061 | I182: 0.9858520445 | J182: 1 | K182: 328.11 | L182: 329.26 | M182: 326.91 | N182: 327.5 | O182: 64139400
A183: 168 | B183: 2020-02-06 | C183: 333.910004 | D183: 334.190002 | E183: 332.799988 | F183: 333.980011 | G183: 50359700 | H183: 329.254883 | I183: 0.9858520635 | J183: 1 | K183: 329.19 | L183: 329.46 | M183: 328.09 | N183: 329.25 | O183: 50359700
A184: 169 | B184: 2020-02-05 | C184: 332.269989 | D184: 333.089996 | E184: 330.670013 | F184: 332.859985 | G184: 65951100 | H184: 328.150696 | I184: 0.9858520423 | J184: 1 | K184: 327.57 | L184: 328.38 | M184: 325.99 | N184: 328.15 | O184: 65951100
A185: 170 | B185: 2020-02-04 | C185: 328.070007 | D185: 330.01001 | E185: 327.720001 | F185: 329.059998 | G185: 62573200 | H185: 324.404449 | I185: 0.9858519752 | J185: 1 | K185: 323.43 | L185: 325.34 | M185: 323.08 | N185: 324.4 | O185: 62573200
A186: 171 | B186: 2020-02-03 | C186: 323.350006 | D186: 326.160004 | E186: 323.220001 | F186: 324.119995 | G186: 69242300 | H186: 319.534393 | I186: 0.9858521471 | J186: 1 | K186: 318.78 | L186: 321.55 | M186: 318.65 | N186: 319.53 | O186: 69242300
A187: 172 | B187: 2020-01-31 | C187: 327 | D187: 327.170013 | E187: 320.730011 | F187: 321.730011 | G187: 113845600 | H187: 317.178192 | I187: 0.9858520534 | J187: 1 | K187: 322.37 | L187: 322.54 | M187: 316.19 | N187: 317.18 | O187: 113845600
A188: 173 | B188: 2020-01-30 | C188: 324.359985 | D188: 327.910004 | E188: 323.540009 | F188: 327.679993 | G188: 75491800 | H188: 323.044006 | I188: 0.9858520902 | J188: 1 | K188: 319.77 | L188: 323.27 | M188: 318.96 | N188: 323.04 | O188: 75491800
A189: 174 | B189: 2020-01-29 | C189: 328.380005 | D189: 328.630005 | E189: 326.399994 | F189: 326.619995 | G189: 53888900 | H189: 321.998993 | I189: 0.9858520542 | J189: 1 | K189: 323.73 | L189: 323.98 | M189: 321.78 | N189: 322 | O189: 53888900
A190: 175 | B190: 2020-01-28 | C190: 325.059998 | D190: 327.850006 | E190: 323.600006 | F190: 326.890015 | G190: 63834000 | H190: 322.265198 | I190: 0.9858520702 | J190: 1 | K190: 320.46 | L190: 323.21 | M190: 319.02 | N190: 322.27 | O190: 63834000
A191: 176 | B191: 2020-01-27 | C191: 323.029999 | D191: 325.119995 | E191: 322.660004 | F191: 323.5 | G191: 84062500 | H191: 318.923157 | I191: 0.9858521082 | J191: 1 | K191: 318.46 | L191: 320.52 | M191: 318.1 | N191: 318.92 | O191: 84062500
A192: 177 | B192: 2020-01-24 | C192: 332.440002 | D192: 332.529999 | E192: 327.359985 | F192: 328.769989 | G192: 87578400 | H192: 324.118561 | I192: 0.9858520298 | J192: 1 | K192: 327.74 | L192: 327.83 | M192: 322.73 | N192: 324.12 | O192: 87578400
A193: 178 | B193: 2020-01-23 | C193: 330.630005 | D193: 332.170013 | E193: 329.410004 | F193: 331.720001 | G193: 51963000 | H193: 327.026855 | I193: 0.9858520861 | J193: 1 | K193: 325.95 | L193: 327.47 | M193: 324.75 | N193: 327.03 | O193: 51963000
A194: 179 | B194: 2020-01-22 | C194: 332.23999 | D194: 332.950012 | E194: 331.170013 | F194: 331.339996 | G194: 48914900 | H194: 326.652222 | I194: 0.9858520732 | J194: 1 | K194: 327.54 | L194: 328.24 | M194: 326.48 | N194: 326.65 | O194: 48914900
A195: 180 | B195: 2020-01-21 | C195: 330.899994 | D195: 332.179993 | E195: 330.820007 | F195: 331.299988 | G195: 77742400 | H195: 326.612793 | I195: 0.9858521124 | J195: 1 | K195: 326.22 | L195: 327.48 | M195: 326.14 | N195: 326.61 | O195: 77742400
A196: 181 | B196: 2020-01-17 | C196: 331.700012 | D196: 332.179993 | E196: 330.850006 | F196: 331.950012 | G196: 95846000 | H196: 327.253632 | I196: 0.9858521469 | J196: 1 | K196: 327.01 | L196: 327.48 | M196: 326.17 | N196: 327.25 | O196: 95846000
A197: 182 | B197: 2020-01-16 | C197: 329.700012 | D197: 330.920013 | E197: 329.450012 | F197: 330.920013 | G197: 54050300 | H197: 326.238159 | I197: 0.9858520071 | J197: 1 | K197: 325.04 | L197: 326.24 | M197: 324.79 | N197: 326.24 | O197: 54050300
A198: 183 | B198: 2020-01-15 | C198: 327.350006 | D198: 329.019989 | E198: 327.26001 | F198: 328.190002 | G198: 72056600 | H198: 323.546783 | I198: 0.9858520401 | J198: 1 | K198: 322.72 | L198: 324.37 | M198: 322.63 | N198: 323.55 | O198: 72056600
A199: 184 | B199: 2020-01-14 | C199: 327.470001 | D199: 328.619995 | E199: 326.839996 | F199: 327.450012 | G199: 62832800 | H199: 322.817261 | I199: 0.9858520359 | J199: 1 | K199: 322.84 | L199: 323.97 | M199: 322.22 | N199: 322.82 | O199: 62832800
A200: 185 | B200: 2020-01-13 | C200: 326.390015 | D200: 327.959991 | E200: 325.920013 | F200: 327.950012 | G200: 47086800 | H200: 323.310181 | I200: 0.9858520176 | J200: 1 | K200: 321.77 | L200: 323.32 | M200: 321.31 | N200: 323.31 | O200: 47086800
... 4300 more rows

Sheet CalculationsAndCharts
A1: NoiseEliminationTechnology.xlsm
A2: =InputPriceData!A1 -> SPDR S&P 500 ETF Trust (SPY) -NYSEArca (Daily)
A4: User Charting Controls | E4: Click to Shift Chart One Bar:
A5: Data Control | C5: FALSE
A6: =InputPriceData!$B$10 -> 6972 | B6: Available Input Data Rows | E6: Earliest: | F6: =OFFSET(InputPriceData!B15,CalculationsAndCharts!A6,0,1,1) -> 1993-01-29
A7: =MAX(A33:A56896) -> 1250 | B7: Available Calculation Rows | E7: Latest: | F7: =OFFSET(InputPriceData!B15,1,0,1,1) -> 2020-10-05
A8: =MIN(AvailableInputRows-DataPanRows,A7) -> 1250 | B8: Logically Available for Calc / Plot | E8: $ Change: | F8: =G33-G34 -> 1.350006
A10: Historical Price Windowing Specifications | F10: Click to Shift
A11: 89 | B11: Input Data Offset (Pan) | F11: Points to Plot
A12: 354 | B12: Data Points to Plot (Zoom) | R12: Clutter Controls
B13: First: | C13: =OFFSET(B32,A12,0,1,1) -> 2019-01-03
B14: ="Last: " & IF(OFFSET(InputPriceData!P15,1+A11,0,1,1)="","",TEXT(OFFSET(InputPriceData!P15,1+A11,0,1,1),"H:MM AM/PM")) -> Last: | C14: =B33 -> 2020-05-29 | S14: TRUE
A15: User Controls | S15: TRUE
A16: 14 | B16: RSI Length | S16: FALSE
A17: 14 | B17: NET Length
A25: Help! I would like to plot data
A26: From | B26: 2019-01-03 | C26: =OFFSET(InputPriceData!$A$15,MATCH(B26,OFFSET(InputPriceData!B15,1,0,InputPriceData!$B$10,1),0),0,1,1)-C27 -> 354 | E26: 308
A27: To | B27: 2020-05-29 | C27: =OFFSET(InputPriceData!$A$15,MATCH(B27,OFFSET(InputPriceData!$B$15,1,0,InputPriceData!$B$10,1),0),0,1,1)-1 -> 89 | E27: =$A$12-$E$26+1 -> 47
H28: Value @ Cursor => | I28: =OFFSET(A32,$E$27,0,1,1)&"(RR)" -> 47(RR) | J28: =OFFSET($B$32,E27,0,1,1) -> 2020-03-24 | K28: =TEXT(OFFSET(D32,$E$27,0,1,1),"#,##0.00")&"(o)" -> 234.42(o) | L28: =TEXT(OFFSET(E32,$E$27,0,1,1),"#,##0.00")&"(h)" -> 244.10(h) | M28: =TEXT(OFFSET(F32,$E$27,0,1,1),"#,##0.00")&"(l)" -> 233.80(l) | N28: =TEXT(OFFSET(G32,$E$27,0,1,1),"#,##0.00")&"(c)" -> 243.15(c) | O28: =TEXT(OFFSET(C32,$E$27,0,1,1),"#,##0.00,,""M""")&"(v)" -> 235.49M(v)
E29: Cursor ==> | AY29: Work Area For Chart Cursors
A31: Rel Row | AW31: Used To Color Vol Bars
B32: Date | C32: Volume | D32: Open | E32: High | F32: Low | G32: Close | H32: Delta | I32: CU | J32: CD | K32: ="MyRSI("&A16&")" -> MyRSI(14) | L32: ="NET("&$A$17&") of MyRSI("&$A$16&")" -> NET(14) of MyRSI(14) | N32: ="NET("&$A$17&") of CLOSE" -> NET(14) of CLOSE | T32: =K32 -> MyRSI(14) | U32: =L32 -> NET(14) of MyRSI(14) | V32: =N32 -> NET(14) of CLOSE | AW32: Up Vol | AX32: Dn Vol | AY32: Volume Cursor | AZ32: =MAX(OFFSET(C33,0,0,A12,1)) -> 392220700 | BA32: OBVM Cursor | BC32: Price Chart Cursor | BE32: ComparePriceChart Cursor | BG32: Price Phasor Cursor | BI32: DMI Cursor | BK32: SMI Cursor
A33: 1 | B33: =IF($A33>$A$8,"",OFFSET(InputPriceData!$B$15,$A33+$A$11,0,1,1)) -> 2020-05-29 | C33: =IF($A33>$A$8,"",OFFSET(InputPriceData!$G$15,CalculationsAndCharts!$A33+$A$11,IF($C$5,8,0),1,1)) -> 119265700 | D33: =IF(A33>$A$8,"",OFFSET(InputPriceData!$C$15,CalculationsAndCharts!$A33+$A$11,IF($C$5,8,0),1,1)) -> 302.459991 | E33: =IF(A33>$A$8,"",OFFSET(InputPriceData!$D$15,CalculationsAndCharts!$A33+$A$11,IF($C$5,8,0),1,1)) -> 304.959991 | F33: =IF(A33>$A$8,"",OFFSET(InputPriceData!$E$15,CalculationsAndCharts!$A33+$A$11,IF($C$5,8,0),1,1)) -> 299.470001 | G33: =IF(A33>$A$8,"",OFFSET(InputPriceData!$F$15,CalculationsAndCharts!$A33+$A$11,IF($C$5,8,0),1,1)) -> 304.320007 | H33: =IF(A33>$A$8-1,NA(),G33-G34) -> 1.350006 | I33: =IF(A33>$A$8-1-$A$16,NA(),SUMIF(OFFSET($H33,0,0,$A$16,1),">0")) -> 28.419984 | J33: =IF(A33>$A$8-1-$A$16,NA(),-SUMIF(OFFSET($H33,0,0,$A$16,1),"<0")) -> 16.539979 | K33: =IF(A33>$A$8-1-$A$16,NA(),IF(I33+J33<>0,(I33-J33)/(I33+J33),NA())) -> 0.2642352041 | L33: =N_E_T(OFFSET($K$33,0,0,$A$8-1-$A$16,1),$A$17) -> 0.3186813187 | N33: =N_E_T(OFFSET($G$33,0,0,$A$8-1-$A$17,1),$A$17) -> 0.7142857143 | T33: =IF($S$14=FALSE,NA(),K33) -> 0.2642352041 | U33: =IF($S$15=FALSE,NA(),L33) -> 0.3186813187 | V33: =IF($S$16=FALSE,NA(),N33) ->  | AW33: =IF(G33>=D33,C33,NA()) -> 119265700 | AX33: =IF(G33<D33,C33,NA()) ->  | AY33: =$E$27 -> 47 | AZ33: 0 | BA33: =$E$27 -> 47 | BB33: 62500000 | BC33: =$E$27 -> 47 | BD33: 212.8034951 | BE33: =$E$27 -> 47 | BF33: 188.877 | BG33: =$E$27 -> 47 | BH33: =IF(#REF!=1,-180,NA()) ->  | BI33: =$E$27 -> 47 | BJ33: 1 | BK33: =$E$27 -> 47 | BL33: 0
A34: 2 | B34: =IF($A34>$A$8,"",OFFSET(InputPriceData!$B$15,$A34+$A$11,0,1,1)) -> 2020-05-28 | C34: =IF($A34>$A$8,"",OFFSET(InputPriceData!$G$15,CalculationsAndCharts!$A34+$A$11,IF($C$5,8,0),1,1)) -> 90405200 | D34: =IF(A34>$A$8,"",OFFSET(InputPriceData!$C$15,CalculationsAndCharts!$A34+$A$11,IF($C$5,8,0),1,1)) -> 304.649994 | E34: =IF(A34>$A$8,"",OFFSET(InputPriceData!$D$15,CalculationsAndCharts!$A34+$A$11,IF($C$5,8,0),1,1)) -> 306.839996 | F34: =IF(A34>$A$8,"",OFFSET(InputPriceData!$E$15,CalculationsAndCharts!$A34+$A$11,IF($C$5,8,0),1,1)) -> 302.23999 | G34: =IF(A34>$A$8,"",OFFSET(InputPriceData!$F$15,CalculationsAndCharts!$A34+$A$11,IF($C$5,8,0),1,1)) -> 302.970001 | H34: =IF(A34>$A$8-1,NA(),G34-G35) -> -0.559998 | I34: =IF(A34>$A$8-1-$A$16,NA(),SUMIF(OFFSET($H34,0,0,$A$16,1),">0")) -> 31.829987 | J34: =IF(A34>$A$8-1-$A$16,NA(),-SUMIF(OFFSET($H34,0,0,$A$16,1),"<0")) -> 16.539979 | K34: 0.3161054114 | L34: 0.2527472527 | N34: 0.6043956044 | T34: =IF($S$14=FALSE,NA(),K34) -> 0.3161054114 | U34: =IF($S$15=FALSE,NA(),L34) -> 0.2527472527 | V34: =IF($S$16=FALSE,NA(),N34) ->  | AX34: 90405200 | AY34: =$E$27 -> 47 | AZ34: =CEILING(AZ32,10^INT(LOG10(AZ32))/8) -> 400000000 | BA34: =$E$27 -> 47 | BB34: 125000000 | BC34: =$E$27 -> 47 | BD34: 347.5569867 | BE34: =$E$27 -> 47 | BF34: 230.34825 | BG34: =$E$27 -> 47 | BH34: =IF(#REF!=1,180,NA()) ->  | BI34: =$E$27 -> 47 | BJ34: -1 | BK34: =$E$27 -> 47 | BL34: 7
A35: 3 | B35: =IF(A35>$A$8,"",OFFSET(InputPriceData!B$15,$A35+$A$11,0,1,1)) -> 2020-05-27 | C35: =IF(A35>$A$8,"",OFFSET(InputPriceData!G$15,CalculationsAndCharts!$A35+$A$11,IF($C$5,8,0),1,1)) -> 104817400 | D35: =IF(A35>$A$8,"",OFFSET(InputPriceData!C$15,CalculationsAndCharts!$A35+$A$11,IF($C$5,8,0),1,1)) -> 302.119995 | E35: =IF(A35>$A$8,"",OFFSET(InputPriceData!D$15,CalculationsAndCharts!$A35+$A$11,IF($C$5,8,0),1,1)) -> 303.570007 | F35: =IF(A35>$A$8,"",OFFSET(InputPriceData!E$15,CalculationsAndCharts!$A35+$A$11,IF($C$5,8,0),1,1)) -> 296.869995 | G35: =IF(A35>$A$8,"",OFFSET(InputPriceData!F$15,CalculationsAndCharts!$A35+$A$11,IF($C$5,8,0),1,1)) -> 303.529999 | H35: 4.450012 | I35: 35.25998 | J35: 15.979981 | K35: 0.3762688071 | L35: 0.2527472527 | N35: 0.5384615385 | T35: 0.3762688071 | U35: 0.2527472527 | AW35: 104817400
A36: 4 | B36: =IF(A36>$A$8,"",OFFSET(InputPriceData!B$15,$A36+$A$11,0,1,1)) -> 2020-05-26 | C36: =IF(A36>$A$8,"",OFFSET(InputPriceData!G$15,CalculationsAndCharts!$A36+$A$11,IF($C$5,8,0),1,1)) -> 88951400 | D36: =IF(A36>$A$8,"",OFFSET(InputPriceData!C$15,CalculationsAndCharts!$A36+$A$11,IF($C$5,8,0),1,1)) -> 301.929993 | E36: =IF(A36>$A$8,"",OFFSET(InputPriceData!D$15,CalculationsAndCharts!$A36+$A$11,IF($C$5,8,0),1,1)) -> 302.190002 | F36: =IF(A36>$A$8,"",OFFSET(InputPriceData!E$15,CalculationsAndCharts!$A36+$A$11,IF($C$5,8,0),1,1)) -> 295.459991 | G36: =IF(A36>$A$8,"",OFFSET(InputPriceData!F$15,CalculationsAndCharts!$A36+$A$11,IF($C$5,8,0),1,1)) -> 299.079987 | H36: 3.639985 | I36: 30.809968 | J36: 17.919983 | K36: 0.2645187351 | L36: 0.1648351648 | N36: 0.5164835165 | T36: 0.2645187351 | U36: 0.1648351648 | AX36: 88951400
A37: 5 | B37: =IF(A37>$A$8,"",OFFSET(InputPriceData!B$15,$A37+$A$11,0,1,1)) -> 2020-05-22 | C37: =IF(A37>$A$8,"",OFFSET(InputPriceData!G$15,CalculationsAndCharts!$A37+$A$11,IF($C$5,8,0),1,1)) -> 63958200 | D37: =IF(A37>$A$8,"",OFFSET(InputPriceData!C$15,CalculationsAndCharts!$A37+$A$11,IF($C$5,8,0),1,1)) -> 294.570007 | E37: =IF(A37>$A$8,"",OFFSET(InputPriceData!D$15,CalculationsAndCharts!$A37+$A$11,IF($C$5,8,0),1,1)) -> 295.630005 | F37: =IF(A37>$A$8,"",OFFSET(InputPriceData!E$15,CalculationsAndCharts!$A37+$A$11,IF($C$5,8,0),1,1)) -> 293.220001 | G37: =IF(A37>$A$8,"",OFFSET(InputPriceData!F$15,CalculationsAndCharts!$A37+$A$11,IF($C$5,8,0),1,1)) -> 295.440002 | H37: 0.559997 | I37: 29.789978 | J37: 17.919983 | K37: 0.2487949005 | L37: 0.03296703297 | N37: 0.4505494505 | T37: 0.2487949005 | U37: 0.03296703297 | AW37: 63958200
A38: 6 | B38: =IF(A38>$A$8,"",OFFSET(InputPriceData!B$15,$A38+$A$11,0,1,1)) -> 2020-05-21 | C38: =IF(A38>$A$8,"",OFFSET(InputPriceData!G$15,CalculationsAndCharts!$A38+$A$11,IF($C$5,8,0),1,1)) -> 78293900 | D38: =IF(A38>$A$8,"",OFFSET(InputPriceData!C$15,CalculationsAndCharts!$A38+$A$11,IF($C$5,8,0),1,1)) -> 296.790009 | E38: =IF(A38>$A$8,"",OFFSET(InputPriceData!D$15,CalculationsAndCharts!$A38+$A$11,IF($C$5,8,0),1,1)) -> 297.670013 | F38: =IF(A38>$A$8,"",OFFSET(InputPriceData!E$15,CalculationsAndCharts!$A38+$A$11,IF($C$5,8,0),1,1)) -> 293.690002 | G38: =IF(A38>$A$8,"",OFFSET(InputPriceData!F$15,CalculationsAndCharts!$A38+$A$11,IF($C$5,8,0),1,1)) -> 294.880005 | H38: -2.049988 | I38: 30.009979 | J38: 17.919983 | K38: 0.2522429707 | L38: 0.03296703297 | N38: 0.4505494505 | T38: 0.2522429707 | U38: 0.03296703297 | AX38: 78293900
A39: 7 | B39: =IF(A39>$A$8,"",OFFSET(InputPriceData!B$15,$A39+$A$11,0,1,1)) -> 2020-05-20 | C39: =IF(A39>$A$8,"",OFFSET(InputPriceData!G$15,CalculationsAndCharts!$A39+$A$11,IF($C$5,8,0),1,1)) -> 85861700 | D39: =IF(A39>$A$8,"",OFFSET(InputPriceData!C$15,CalculationsAndCharts!$A39+$A$11,IF($C$5,8,0),1,1)) -> 295.820007 | E39: =IF(A39>$A$8,"",OFFSET(InputPriceData!D$15,CalculationsAndCharts!$A39+$A$11,IF($C$5,8,0),1,1)) -> 297.869995 | F39: =IF(A39>$A$8,"",OFFSET(InputPriceData!E$15,CalculationsAndCharts!$A39+$A$11,IF($C$5,8,0),1,1)) -> 295.570007 | G39: =IF(A39>$A$8,"",OFFSET(InputPriceData!F$15,CalculationsAndCharts!$A39+$A$11,IF($C$5,8,0),1,1)) -> 296.929993 | H39: 4.959992 | I39: 30.009979 | J39: 23.559997 | K39: 0.1204029287 | L39: -0.0989010989 | N39: 0.4725274725 | T39: 0.1204029287 | U39: -0.0989010989 | AW39: 85861700
A40: 8 | B40: =IF(A40>$A$8,"",OFFSET(InputPriceData!B$15,$A40+$A$11,0,1,1)) -> 2020-05-19 | C40: =IF(A40>$A$8,"",OFFSET(InputPriceData!G$15,CalculationsAndCharts!$A40+$A$11,IF($C$5,8,0),1,1)) -> 95189300 | D40: =IF(A40>$A$8,"",OFFSET(InputPriceData!C$15,CalculationsAndCharts!$A40+$A$11,IF($C$5,8,0),1,1)) -> 294.350006 | E40: =IF(A40>$A$8,"",OFFSET(InputPriceData!D$15,CalculationsAndCharts!$A40+$A$11,IF($C$5,8,0),1,1)) -> 296.209991 | F40: =IF(A40>$A$8,"",OFFSET(InputPriceData!E$15,CalculationsAndCharts!$A40+$A$11,IF($C$5,8,0),1,1)) -> 291.950012 | G40: =IF(A40>$A$8,"",OFFSET(InputPriceData!F$15,CalculationsAndCharts!$A40+$A$11,IF($C$5,8,0),1,1)) -> 291.970001 | H40: -3.029999 | I40: 25.049987 | J40: 26.289977 | K40: -0.0241525296 | L40: -0.2307692308 | N40: 0.2747252747 | T40: -0.0241525296 | U40: -0.2307692308 | AX40: 95189300
A41: 9 | B41: =IF(A41>$A$8,"",OFFSET(InputPriceData!B$15,$A41+$A$11,0,1,1)) -> 2020-05-18 | C41: =IF(A41>$A$8,"",OFFSET(InputPriceData!G$15,CalculationsAndCharts!$A41+$A$11,IF($C$5,8,0),1,1)) -> 120320200 | D41: =IF(A41>$A$8,"",OFFSET(InputPriceData!C$15,CalculationsAndCharts!$A41+$A$11,IF($C$5,8,0),1,1)) -> 293.049988 | E41: =IF(A41>$A$8,"",OFFSET(InputPriceData!D$15,CalculationsAndCharts!$A41+$A$11,IF($C$5,8,0),1,1)) -> 296.75 | F41: =IF(A41>$A$8,"",OFFSET(InputPriceData!E$15,CalculationsAndCharts!$A41+$A$11,IF($C$5,8,0),1,1)) -> 292.700012 | G41: =IF(A41>$A$8,"",OFFSET(InputPriceData!F$15,CalculationsAndCharts!$A41+$A$11,IF($C$5,8,0),1,1)) -> 295 | H41: 8.720001 | I41: 32.529967 | J41: 23.259978 | K41: 0.1661587765 | L41: -0.2087912088 | N41: 0.07692307692 | T41: 0.1661587765 | U41: -0.2087912088 | AW41: 120320200
A42: 10 | B42: =IF(A42>$A$8,"",OFFSET(InputPriceData!B$15,$A42+$A$11,0,1,1)) -> 2020-05-15 | C42: =IF(A42>$A$8,"",OFFSET(InputPriceData!G$15,CalculationsAndCharts!$A42+$A$11,IF($C$5,8,0),1,1)) -> 111146300 | D42: =IF(A42>$A$8,"",OFFSET(InputPriceData!C$15,CalculationsAndCharts!$A42+$A$11,IF($C$5,8,0),1,1)) -> 282.369995 | E42: =IF(A42>$A$8,"",OFFSET(InputPriceData!D$15,CalculationsAndCharts!$A42+$A$11,IF($C$5,8,0),1,1)) -> 286.329987 | F42: =IF(A42>$A$8,"",OFFSET(InputPriceData!E$15,CalculationsAndCharts!$A42+$A$11,IF($C$5,8,0),1,1)) -> 281.339996 | G42: =IF(A42>$A$8,"",OFFSET(InputPriceData!F$15,CalculationsAndCharts!$A42+$A$11,IF($C$5,8,0),1,1)) -> 286.279999 | H42: 1.309998 | I42: 23.809966 | J42: 24.579955 | K42: -0.01591217725 | L42: -0.3846153846 | N42: -0.03296703297 | T42: -0.01591217725 | U42: -0.3846153846 | AW42: 111146300
A43: 11 | B43: =IF(A43>$A$8,"",OFFSET(InputPriceData!B$15,$A43+$A$11,0,1,1)) -> 2020-05-14 | C43: =IF(A43>$A$8,"",OFFSET(InputPriceData!G$15,CalculationsAndCharts!$A43+$A$11,IF($C$5,8,0),1,1)) -> 121977900 | D43: =IF(A43>$A$8,"",OFFSET(InputPriceData!C$15,CalculationsAndCharts!$A43+$A$11,IF($C$5,8,0),1,1)) -> 278.950012 | E43: =IF(A43>$A$8,"",OFFSET(InputPriceData!D$15,CalculationsAndCharts!$A43+$A$11,IF($C$5,8,0),1,1)) -> 285.109985 | F43: =IF(A43>$A$8,"",OFFSET(InputPriceData!E$15,CalculationsAndCharts!$A43+$A$11,IF($C$5,8,0),1,1)) -> 272.98999 | G43: =IF(A43>$A$8,"",OFFSET(InputPriceData!F$15,CalculationsAndCharts!$A43+$A$11,IF($C$5,8,0),1,1)) -> 284.970001 | H43: 3.369995 | I43: 26.579955 | J43: 24.579955 | K43: =IF(A43>$A$8-1-$A$16,NA(),IF(I43+J43<>0,(I43-J43)/(I43+J43),NA())) -> 0.03909311021 | L43: -0.3626373626 | N43: -0.07692307692 | T43: 0.03909311021 | U43: -0.3626373626 | AW43: 121977900
A44: 12 | B44: =IF(A44>$A$8,"",OFFSET(InputPriceData!B$15,$A44+$A$11,0,1,1)) -> 2020-05-13 | C44: =IF(A44>$A$8,"",OFFSET(InputPriceData!G$15,CalculationsAndCharts!$A44+$A$11,IF($C$5,8,0),1,1)) -> 144721100 | D44: =IF(A44>$A$8,"",OFFSET(InputPriceData!C$15,CalculationsAndCharts!$A44+$A$11,IF($C$5,8,0),1,1)) -> 286.059998 | E44: =IF(A44>$A$8,"",OFFSET(InputPriceData!D$15,CalculationsAndCharts!$A44+$A$11,IF($C$5,8,0),1,1)) -> 287.190002 | F44: =IF(A44>$A$8,"",OFFSET(InputPriceData!E$15,CalculationsAndCharts!$A44+$A$11,IF($C$5,8,0),1,1)) -> 278.959991 | G44: =IF(A44>$A$8,"",OFFSET(InputPriceData!F$15,CalculationsAndCharts!$A44+$A$11,IF($C$5,8,0),1,1)) -> 281.600006 | H44: -5.070007 | I44: 27.099974 | J44: 24.579955 | K44: 0.04876204455 | L44: -0.4065934066 | N44: 0.07692307692 | T44: 0.04876204455 | U44: -0.4065934066 | AX44: 144721100
A45: 13 | B45: =IF(A45>$A$8,"",OFFSET(InputPriceData!B$15,$A45+$A$11,0,1,1)) -> 2020-05-12 | C45: =IF(A45>$A$8,"",OFFSET(InputPriceData!G$15,CalculationsAndCharts!$A45+$A$11,IF($C$5,8,0),1,1)) -> 95870800 | D45: =IF(A45>$A$8,"",OFFSET(InputPriceData!C$15,CalculationsAndCharts!$A45+$A$11,IF($C$5,8,0),1,1)) -> 293.790009 | E45: =IF(A45>$A$8,"",OFFSET(InputPriceData!D$15,CalculationsAndCharts!$A45+$A$11,IF($C$5,8,0),1,1)) -> 294.23999 | F45: =IF(A45>$A$8,"",OFFSET(InputPriceData!E$15,CalculationsAndCharts!$A45+$A$11,IF($C$5,8,0),1,1)) -> 286.519989 | G45: =IF(A45>$A$8,"",OFFSET(InputPriceData!F$15,CalculationsAndCharts!$A45+$A$11,IF($C$5,8,0),1,1)) -> 286.670013 | H45: -5.829987 | I45: 27.099974 | J45: 19.529967 | K45: 0.1623421955 | L45: -0.4065934066 | N45: 0.3626373626 | T45: 0.1623421955 | U45: -0.4065934066 | AX45: 95870800
A46: 14 | B46: =IF(A46>$A$8,"",OFFSET(InputPriceData!B$15,$A46+$A$11,0,1,1)) -> 2020-05-11 | C46: =IF(A46>$A$8,"",OFFSET(InputPriceData!G$15,CalculationsAndCharts!$A46+$A$11,IF($C$5,8,0),1,1)) -> 79030200 | D46: =IF(A46>$A$8,"",OFFSET(InputPriceData!C$15,CalculationsAndCharts!$A46+$A$11,IF($C$5,8,0),1,1)) -> 290.339996 | E46: =IF(A46>$A$8,"",OFFSET(InputPriceData!D$15,CalculationsAndCharts!$A46+$A$11,IF($C$5,8,0),1,1)) -> 294 | F46: =IF(A46>$A$8,"",OFFSET(InputPriceData!E$15,CalculationsAndCharts!$A46+$A$11,IF($C$5,8,0),1,1)) -> 289.880005 | G46: =IF(A46>$A$8,"",OFFSET(InputPriceData!F$15,CalculationsAndCharts!$A46+$A$11,IF($C$5,8,0),1,1)) -> 292.5 | H46: 0.059998 | I46: 33.159971 | J46: 13.69998 | K46: 0.4152797983 | L46: -0.4725274725 | N46: 0.4725274725 | T46: 0.4152797983 | U46: -0.4725274725 | AW46: 79030200
A47: 15 | B47: =IF(A47>$A$8,"",OFFSET(InputPriceData!B$15,$A47+$A$11,0,1,1)) -> 2020-05-08 | C47: =IF(A47>$A$8,"",OFFSET(InputPriceData!G$15,CalculationsAndCharts!$A47+$A$11,IF($C$5,8,0),1,1)) -> 76622100 | D47: =IF(A47>$A$8,"",OFFSET(InputPriceData!C$15,CalculationsAndCharts!$A47+$A$11,IF($C$5,8,0),1,1)) -> 291.089996 | E47: =IF(A47>$A$8,"",OFFSET(InputPriceData!D$15,CalculationsAndCharts!$A47+$A$11,IF($C$5,8,0),1,1)) -> 292.950012 | F47: =IF(A47>$A$8,"",OFFSET(InputPriceData!E$15,CalculationsAndCharts!$A47+$A$11,IF($C$5,8,0),1,1)) -> 289.859985 | G47: =IF(A47>$A$8,"",OFFSET(InputPriceData!F$15,CalculationsAndCharts!$A47+$A$11,IF($C$5,8,0),1,1)) -> 292.440002 | H47: 4.760009 | I47: 33.099973 | J47: 22.249967 | K47: 0.1960256145 | L47: -0.5604395604 | N47: 0.4945054945 | T47: 0.1960256145 | U47: -0.5604395604 | AW47: 76622100
A48: 16 | B48: =IF(A48>$A$8,"",OFFSET(InputPriceData!B$15,$A48+$A$11,0,1,1)) -> 2020-05-07 | C48: =IF(A48>$A$8,"",OFFSET(InputPriceData!G$15,CalculationsAndCharts!$A48+$A$11,IF($C$5,8,0),1,1)) -> 75250400 | D48: =IF(A48>$A$8,"",OFFSET(InputPriceData!C$15,CalculationsAndCharts!$A48+$A$11,IF($C$5,8,0),1,1)) -> 287.75 | E48: =IF(A48>$A$8,"",OFFSET(InputPriceData!D$15,CalculationsAndCharts!$A48+$A$11,IF($C$5,8,0),1,1)) -> 289.779999 | F48: =IF(A48>$A$8,"",OFFSET(InputPriceData!E$15,CalculationsAndCharts!$A48+$A$11,IF($C$5,8,0),1,1)) -> 287.130005 | G48: =IF(A48>$A$8,"",OFFSET(InputPriceData!F$15,CalculationsAndCharts!$A48+$A$11,IF($C$5,8,0),1,1)) -> 287.679993 | H48: 3.429993 | I48: 28.339964 | J48: 27.299986 | K48: 0.01869121018 | L48: -0.5824175824 | N48: 0.4505494505 | T48: 0.01869121018 | U48: -0.5824175824 | AX48: 75250400
A49: 17 | B49: =IF(A49>$A$8,"",OFFSET(InputPriceData!B$15,$A49+$A$11,0,1,1)) -> 2020-05-06 | C49: =IF(A49>$A$8,"",OFFSET(InputPriceData!G$15,CalculationsAndCharts!$A49+$A$11,IF($C$5,8,0),1,1)) -> 73632600 | D49: =IF(A49>$A$8,"",OFFSET(InputPriceData!C$15,CalculationsAndCharts!$A49+$A$11,IF($C$5,8,0),1,1)) -> 288.040009 | E49: =IF(A49>$A$8,"",OFFSET(InputPriceData!D$15,CalculationsAndCharts!$A49+$A$11,IF($C$5,8,0),1,1)) -> 288.459991 | F49: =IF(A49>$A$8,"",OFFSET(InputPriceData!E$15,CalculationsAndCharts!$A49+$A$11,IF($C$5,8,0),1,1)) -> 283.779999 | G49: =IF(A49>$A$8,"",OFFSET(InputPriceData!F$15,CalculationsAndCharts!$A49+$A$11,IF($C$5,8,0),1,1)) -> 284.25 | H49: -1.940002 | I49: 32.44998 | J49: 27.299986 | K49: 0.08619241725 | L49: -0.5604395604 | N49: 0.2747252747 | T49: 0.08619241725 | U49: -0.5604395604 | AX49: 73632600
A50: 18 | B50: =IF(A50>$A$8,"",OFFSET(InputPriceData!B$15,$A50+$A$11,0,1,1)) -> 2020-05-05 | C50: =IF(A50>$A$8,"",OFFSET(InputPriceData!G$15,CalculationsAndCharts!$A50+$A$11,IF($C$5,8,0),1,1)) -> 79569900 | D50: =IF(A50>$A$8,"",OFFSET(InputPriceData!C$15,CalculationsAndCharts!$A50+$A$11,IF($C$5,8,0),1,1)) -> 286.640015 | E50: =IF(A50>$A$8,"",OFFSET(InputPriceData!D$15,CalculationsAndCharts!$A50+$A$11,IF($C$5,8,0),1,1)) -> 289.25 | F50: =IF(A50>$A$8,"",OFFSET(InputPriceData!E$15,CalculationsAndCharts!$A50+$A$11,IF($C$5,8,0),1,1)) -> 283.709991 | G50: =IF(A50>$A$8,"",OFFSET(InputPriceData!F$15,CalculationsAndCharts!$A50+$A$11,IF($C$5,8,0),1,1)) -> 286.190002 | H50: 2.619995 | I50: 33.789976 | J50: 25.359984 | K50: 0.1425189806 | L50: -0.4065934066 | N50: 0.3516483516 | T50: 0.1425189806 | U50: -0.4065934066 | AX50: 79569900
A51: 19 | B51: =IF(A51>$A$8,"",OFFSET(InputPriceData!B$15,$A51+$A$11,0,1,1)) -> 2020-05-04 | C51: =IF(A51>$A$8,"",OFFSET(InputPriceData!G$15,CalculationsAndCharts!$A51+$A$11,IF($C$5,8,0),1,1)) -> 80873200 | D51: =IF(A51>$A$8,"",OFFSET(InputPriceData!C$15,CalculationsAndCharts!$A51+$A$11,IF($C$5,8,0),1,1)) -> 280.73999 | E51: =IF(A51>$A$8,"",OFFSET(InputPriceData!D$15,CalculationsAndCharts!$A51+$A$11,IF($C$5,8,0),1,1)) -> 283.899994 | F51: =IF(A51>$A$8,"",OFFSET(InputPriceData!E$15,CalculationsAndCharts!$A51+$A$11,IF($C$5,8,0),1,1)) -> 279.130005 | G51: =IF(A51>$A$8,"",OFFSET(InputPriceData!F$15,CalculationsAndCharts!$A51+$A$11,IF($C$5,8,0),1,1)) -> 283.570007 | H51: 0.779998 | I51: 31.169981 | J51: 31.389983 | K51: -0.003516658034 | L51: -0.3186813187 | N51: 0.4175824176 | T51: -0.003516658034 | U51: -0.3186813187 | AW51: 80873200
A52: 20 | B52: =IF(A52>$A$8,"",OFFSET(InputPriceData!B$15,$A52+$A$11,0,1,1)) -> 2020-05-01 | C52: =IF(A52>$A$8,"",OFFSET(InputPriceData!G$15,CalculationsAndCharts!$A52+$A$11,IF($C$5,8,0),1,1)) -> 125180000 | D52: =IF(A52>$A$8,"",OFFSET(InputPriceData!C$15,CalculationsAndCharts!$A52+$A$11,IF($C$5,8,0),1,1)) -> 285.309998 | E52: =IF(A52>$A$8,"",OFFSET(InputPriceData!D$15,CalculationsAndCharts!$A52+$A$11,IF($C$5,8,0),1,1)) -> 290.660004 | F52: =IF(A52>$A$8,"",OFFSET(InputPriceData!E$15,CalculationsAndCharts!$A52+$A$11,IF($C$5,8,0),1,1)) -> 281.519989 | G52: =IF(A52>$A$8,"",OFFSET(InputPriceData!F$15,CalculationsAndCharts!$A52+$A$11,IF($C$5,8,0),1,1)) -> 282.790009 | H52: -7.690002 | I52: 38.519988 | J52: 31.389983 | K52: 0.1019883845 | L52: -0.2967032967 | N52: 0.3516483516 | T52: 0.1019883845 | U52: -0.2967032967 | AX52: 125180000
A53: 21 | B53: =IF(A53>$A$8,"",OFFSET(InputPriceData!B$15,$A53+$A$11,0,1,1)) -> 2020-04-30 | C53: =IF(A53>$A$8,"",OFFSET(InputPriceData!G$15,CalculationsAndCharts!$A53+$A$11,IF($C$5,8,0),1,1)) -> 121841200 | D53: =IF(A53>$A$8,"",OFFSET(InputPriceData!C$15,CalculationsAndCharts!$A53+$A$11,IF($C$5,8,0),1,1)) -> 291.709991 | E53: =IF(A53>$A$8,"",OFFSET(InputPriceData!D$15,CalculationsAndCharts!$A53+$A$11,IF($C$5,8,0),1,1)) -> 293.320007 | F53: =IF(A53>$A$8,"",OFFSET(InputPriceData!E$15,CalculationsAndCharts!$A53+$A$11,IF($C$5,8,0),1,1)) -> 288.589996 | G53: =IF(A53>$A$8,"",OFFSET(InputPriceData!F$15,CalculationsAndCharts!$A53+$A$11,IF($C$5,8,0),1,1)) -> 290.480011 | H53: -2.72998 | I53: 38.519988 | J53: 26.239989 | K53: 0.1896232761 | L53: -0.2967032967 | N53: 0.4835164835 | T53: 0.1896232761 | U53: -0.2967032967 | AX53: 121841200
A54: 22 | B54: =IF(A54>$A$8,"",OFFSET(InputPriceData!B$15,$A54+$A$11,0,1,1)) -> 2020-04-29 | C54: =IF(A54>$A$8,"",OFFSET(InputPriceData!G$15,CalculationsAndCharts!$A54+$A$11,IF($C$5,8,0),1,1)) -> 118745600 | D54: =IF(A54>$A$8,"",OFFSET(InputPriceData!C$15,CalculationsAndCharts!$A54+$A$11,IF($C$5,8,0),1,1)) -> 291.529999 | E54: =IF(A54>$A$8,"",OFFSET(InputPriceData!D$15,CalculationsAndCharts!$A54+$A$11,IF($C$5,8,0),1,1)) -> 294.880005 | F54: =IF(A54>$A$8,"",OFFSET(InputPriceData!E$15,CalculationsAndCharts!$A54+$A$11,IF($C$5,8,0),1,1)) -> 290.410004 | G54: =IF(A54>$A$8,"",OFFSET(InputPriceData!F$15,CalculationsAndCharts!$A54+$A$11,IF($C$5,8,0),1,1)) -> 293.209991 | H54: 7.47998 | I54: 42.690001 | J54: 23.510009 | K54: 0.2897279321 | L54: -0.2747252747 | N54: 0.4395604396 | T54: 0.2897279321 | U54: -0.2747252747 | AW54: 118745600
A55: 23 | B55: =IF(A55>$A$8,"",OFFSET(InputPriceData!B$15,$A55+$A$11,0,1,1)) -> 2020-04-28 | C55: =IF(A55>$A$8,"",OFFSET(InputPriceData!G$15,CalculationsAndCharts!$A55+$A$11,IF($C$5,8,0),1,1)) -> 105270000 | D55: =IF(A55>$A$8,"",OFFSET(InputPriceData!C$15,CalculationsAndCharts!$A55+$A$11,IF($C$5,8,0),1,1)) -> 291.019989 | E55: =IF(A55>$A$8,"",OFFSET(InputPriceData!D$15,CalculationsAndCharts!$A55+$A$11,IF($C$5,8,0),1,1)) -> 291.399994 | F55: =IF(A55>$A$8,"",OFFSET(InputPriceData!E$15,CalculationsAndCharts!$A55+$A$11,IF($C$5,8,0),1,1)) -> 285.399994 | G55: =IF(A55>$A$8,"",OFFSET(InputPriceData!F$15,CalculationsAndCharts!$A55+$A$11,IF($C$5,8,0),1,1)) -> 285.730011 | H55: -1.319977 | I55: 44.110015 | J55: 23.510009 | K55: 0.3046435772 | L55: -0.1208791209 | N55: 0.4175824176 | T55: 0.3046435772 | U55: -0.1208791209 | AX55: 105270000
A56: 24 | B56: =IF(A56>$A$8,"",OFFSET(InputPriceData!B$15,$A56+$A$11,0,1,1)) -> 2020-04-27 | C56: =IF(A56>$A$8,"",OFFSET(InputPriceData!G$15,CalculationsAndCharts!$A56+$A$11,IF($C$5,8,0),1,1)) -> 77896600 | D56: =IF(A56>$A$8,"",OFFSET(InputPriceData!C$15,CalculationsAndCharts!$A56+$A$11,IF($C$5,8,0),1,1)) -> 285.119995 | E56: =IF(A56>$A$8,"",OFFSET(InputPriceData!D$15,CalculationsAndCharts!$A56+$A$11,IF($C$5,8,0),1,1)) -> 288.269989 | F56: =IF(A56>$A$8,"",OFFSET(InputPriceData!E$15,CalculationsAndCharts!$A56+$A$11,IF($C$5,8,0),1,1)) -> 284.619995 | G56: =IF(A56>$A$8,"",OFFSET(InputPriceData!F$15,CalculationsAndCharts!$A56+$A$11,IF($C$5,8,0),1,1)) -> 287.049988 | H56: 4.079987 | I56: 44.380035 | J56: 22.190032 | K56: 0.3333330429 | L56: 0.01098901099 | N56: 0.4615384615 | T56: 0.3333330429 | U56: 0.01098901099 | AW56: 77896600
A57: 25 | B57: =IF(A57>$A$8,"",OFFSET(InputPriceData!B$15,$A57+$A$11,0,1,1)) -> 2020-04-24 | C57: =IF(A57>$A$8,"",OFFSET(InputPriceData!G$15,CalculationsAndCharts!$A57+$A$11,IF($C$5,8,0),1,1)) -> 85166000 | D57: =IF(A57>$A$8,"",OFFSET(InputPriceData!C$15,CalculationsAndCharts!$A57+$A$11,IF($C$5,8,0),1,1)) -> 280.730011 | E57: =IF(A57>$A$8,"",OFFSET(InputPriceData!D$15,CalculationsAndCharts!$A57+$A$11,IF($C$5,8,0),1,1)) -> 283.700012 | F57: =IF(A57>$A$8,"",OFFSET(InputPriceData!E$15,CalculationsAndCharts!$A57+$A$11,IF($C$5,8,0),1,1)) -> 278.5 | G57: =IF(A57>$A$8,"",OFFSET(InputPriceData!F$15,CalculationsAndCharts!$A57+$A$11,IF($C$5,8,0),1,1)) -> 282.970001 | H57: 3.890014 | I57: 56.970031 | J57: 22.190032 | K57: 0.4393629525 | L57: 0.1648351648 | N57: 0.4615384615 | T57: 0.4393629525 | U57: 0.1648351648 | AW57: 85166000
A58: 26 | B58: =IF(A58>$A$8,"",OFFSET(InputPriceData!B$15,$A58+$A$11,0,1,1)) -> 2020-04-23 | C58: =IF(A58>$A$8,"",OFFSET(InputPriceData!G$15,CalculationsAndCharts!$A58+$A$11,IF($C$5,8,0),1,1)) -> 104709700 | D58: =IF(A58>$A$8,"",OFFSET(InputPriceData!C$15,CalculationsAndCharts!$A58+$A$11,IF($C$5,8,0),1,1)) -> 280.48999 | E58: =IF(A58>$A$8,"",OFFSET(InputPriceData!D$15,CalculationsAndCharts!$A58+$A$11,IF($C$5,8,0),1,1)) -> 283.940002 | F58: =IF(A58>$A$8,"",OFFSET(InputPriceData!E$15,CalculationsAndCharts!$A58+$A$11,IF($C$5,8,0),1,1)) -> 278.75 | G58: =IF(A58>$A$8,"",OFFSET(InputPriceData!F$15,CalculationsAndCharts!$A58+$A$11,IF($C$5,8,0),1,1)) -> 279.079987 | H58: -0.020019 | I58: 53.080017 | J58: 25.830032 | K58: 0.3453297184 | L58: 0.1868131868 | N58: 0.5054945055 | T58: 0.3453297184 | U58: 0.1868131868 | AX58: 104709700
A59: 27 | B59: =IF(A59>$A$8,"",OFFSET(InputPriceData!B$15,$A59+$A$11,0,1,1)) -> 2020-04-22 | C59: =IF(A59>$A$8,"",OFFSET(InputPriceData!G$15,CalculationsAndCharts!$A59+$A$11,IF($C$5,8,0),1,1)) -> 93524600 | D59: =IF(A59>$A$8,"",OFFSET(InputPriceData!C$15,CalculationsAndCharts!$A59+$A$11,IF($C$5,8,0),1,1)) -> 278.350006 | E59: =IF(A59>$A$8,"",OFFSET(InputPriceData!D$15,CalculationsAndCharts!$A59+$A$11,IF($C$5,8,0),1,1)) -> 281 | F59: =IF(A59>$A$8,"",OFFSET(InputPriceData!E$15,CalculationsAndCharts!$A59+$A$11,IF($C$5,8,0),1,1)) -> 276.910004 | G59: =IF(A59>$A$8,"",OFFSET(InputPriceData!F$15,CalculationsAndCharts!$A59+$A$11,IF($C$5,8,0),1,1)) -> 279.100006 | H59: 6.059997 | I59: 58.760025 | J59: 25.810013 | K59: 0.3896180347 | L59: 0.2967032967 | N59: 0.5934065934 | T59: 0.3896180347 | U59: 0.2967032967 | AW59: 93524600
A60: 28 | B60: =IF(A60>$A$8,"",OFFSET(InputPriceData!B$15,$A60+$A$11,0,1,1)) -> 2020-04-21 | C60: =IF(A60>$A$8,"",OFFSET(InputPriceData!G$15,CalculationsAndCharts!$A60+$A$11,IF($C$5,8,0),1,1)) -> 126385700 | D60: =IF(A60>$A$8,"",OFFSET(InputPriceData!C$15,CalculationsAndCharts!$A60+$A$11,IF($C$5,8,0),1,1)) -> 276.730011 | E60: =IF(A60>$A$8,"",OFFSET(InputPriceData!D$15,CalculationsAndCharts!$A60+$A$11,IF($C$5,8,0),1,1)) -> 278.040009 | F60: =IF(A60>$A$8,"",OFFSET(InputPriceData!E$15,CalculationsAndCharts!$A60+$A$11,IF($C$5,8,0),1,1)) -> 272.019989 | G60: =IF(A60>$A$8,"",OFFSET(InputPriceData!F$15,CalculationsAndCharts!$A60+$A$11,IF($C$5,8,0),1,1)) -> 273.040009 | H60: -8.549987 | I60: 52.700028 | J60: 37.410019 | K60: 0.1696815118 | L60: 0.3406593407 | N60: 0.6703296703 | T60: 0.1696815118 | U60: 0.3406593407 | AX60: 126385700
A61: 29 | B61: =IF(A61>$A$8,"",OFFSET(InputPriceData!B$15,$A61+$A$11,0,1,1)) -> 2020-04-20 | C61: =IF(A61>$A$8,"",OFFSET(InputPriceData!G$15,CalculationsAndCharts!$A61+$A$11,IF($C$5,8,0),1,1)) -> 100109300 | D61: =IF(A61>$A$8,"",OFFSET(InputPriceData!C$15,CalculationsAndCharts!$A61+$A$11,IF($C$5,8,0),1,1)) -> 282.609985 | E61: =IF(A61>$A$8,"",OFFSET(InputPriceData!D$15,CalculationsAndCharts!$A61+$A$11,IF($C$5,8,0),1,1)) -> 286.790009 | F61: =IF(A61>$A$8,"",OFFSET(InputPriceData!E$15,CalculationsAndCharts!$A61+$A$11,IF($C$5,8,0),1,1)) -> 281.350006 | G61: =IF(A61>$A$8,"",OFFSET(InputPriceData!F$15,CalculationsAndCharts!$A61+$A$11,IF($C$5,8,0),1,1)) -> 281.589996 | H61: -5.050019 | I61: 52.700028 | J61: 32.760026 | K61: 0.2333254084 | L61: 0.5164835165 | N61: 0.7802197802 | T61: 0.2333254084 | U61: 0.5164835165 | AX61: 100109300
A62: 30 | B62: =IF(A62>$A$8,"",OFFSET(InputPriceData!B$15,$A62+$A$11,0,1,1)) -> 2020-04-17 | C62: =IF(A62>$A$8,"",OFFSET(InputPriceData!G$15,CalculationsAndCharts!$A62+$A$11,IF($C$5,8,0),1,1)) -> 146684800 | D62: =IF(A62>$A$8,"",OFFSET(InputPriceData!C$15,CalculationsAndCharts!$A62+$A$11,IF($C$5,8,0),1,1)) -> 285.380005 | E62: =IF(A62>$A$8,"",OFFSET(InputPriceData!D$15,CalculationsAndCharts!$A62+$A$11,IF($C$5,8,0),1,1)) -> 287.299988 | F62: =IF(A62>$A$8,"",OFFSET(InputPriceData!E$15,CalculationsAndCharts!$A62+$A$11,IF($C$5,8,0),1,1)) -> 282.399994 | G62: =IF(A62>$A$8,"",OFFSET(InputPriceData!F$15,CalculationsAndCharts!$A62+$A$11,IF($C$5,8,0),1,1)) -> 286.640015 | H62: 7.540009 | I62: 60.930024 | J62: 27.710007 | K62: 0.3747744289 | L62: 0.6483516484 | N62: 0.7362637363 | T62: 0.3747744289 | U62: 0.6483516484 | AW62: 146684800
A63: 31 | B63: =IF(A63>$A$8,"",OFFSET(InputPriceData!B$15,$A63+$A$11,0,1,1)) -> 2020-04-16 | C63: =IF(A63>$A$8,"",OFFSET(InputPriceData!G$15,CalculationsAndCharts!$A63+$A$11,IF($C$5,8,0),1,1)) -> 131798300 | D63: =IF(A63>$A$8,"",OFFSET(InputPriceData!C$15,CalculationsAndCharts!$A63+$A$11,IF($C$5,8,0),1,1)) -> 279.149994 | E63: =IF(A63>$A$8,"",OFFSET(InputPriceData!D$15,CalculationsAndCharts!$A63+$A$11,IF($C$5,8,0),1,1)) -> 280.029999 | F63: =IF(A63>$A$8,"",OFFSET(InputPriceData!E$15,CalculationsAndCharts!$A63+$A$11,IF($C$5,8,0),1,1)) -> 275.76001 | G63: =IF(A63>$A$8,"",OFFSET(InputPriceData!F$15,CalculationsAndCharts!$A63+$A$11,IF($C$5,8,0),1,1)) -> 279.100006 | H63: 1.339996 | I63: 53.390015 | J63: 35.490021 | K63: 0.2013949904 | L63: 0.6703296703 | N63: 0.6703296703 | T63: 0.2013949904 | U63: 0.6703296703 | AX63: 131798300
A64: 32 | B64: =IF(A64>$A$8,"",OFFSET(InputPriceData!B$15,$A64+$A$11,0,1,1)) -> 2020-04-15 | C64: =IF(A64>$A$8,"",OFFSET(InputPriceData!G$15,CalculationsAndCharts!$A64+$A$11,IF($C$5,8,0),1,1)) -> 121775000 | D64: =IF(A64>$A$8,"",OFFSET(InputPriceData!C$15,CalculationsAndCharts!$A64+$A$11,IF($C$5,8,0),1,1)) -> 277.570007 | E64: =IF(A64>$A$8,"",OFFSET(InputPriceData!D$15,CalculationsAndCharts!$A64+$A$11,IF($C$5,8,0),1,1)) -> 283.940002 | F64: =IF(A64>$A$8,"",OFFSET(InputPriceData!E$15,CalculationsAndCharts!$A64+$A$11,IF($C$5,8,0),1,1)) -> 275.459991 | G64: =IF(A64>$A$8,"",OFFSET(InputPriceData!F$15,CalculationsAndCharts!$A64+$A$11,IF($C$5,8,0),1,1)) -> 277.76001 | H64: -6.029999 | I64: 66.460038 | J64: 35.490021 | K64: 0.3037763519 | L64: 0.8021978022 | N64: 0.5824175824 | T64: 0.3037763519 | U64: 0.8021978022 | AW64: 121775000
A65: 33 | B65: =IF(A65>$A$8,"",OFFSET(InputPriceData!B$15,$A65+$A$11,0,1,1)) -> 2020-04-14 | C65: =IF(A65>$A$8,"",OFFSET(InputPriceData!G$15,CalculationsAndCharts!$A65+$A$11,IF($C$5,8,0),1,1)) -> 134143400 | D65: =IF(A65>$A$8,"",OFFSET(InputPriceData!C$15,CalculationsAndCharts!$A65+$A$11,IF($C$5,8,0),1,1)) -> 280.980011 | E65: =IF(A65>$A$8,"",OFFSET(InputPriceData!D$15,CalculationsAndCharts!$A65+$A$11,IF($C$5,8,0),1,1)) -> 284.899994 | F65: =IF(A65>$A$8,"",OFFSET(InputPriceData!E$15,CalculationsAndCharts!$A65+$A$11,IF($C$5,8,0),1,1)) -> 275.51001 | G65: =IF(A65>$A$8,"",OFFSET(InputPriceData!F$15,CalculationsAndCharts!$A65+$A$11,IF($C$5,8,0),1,1)) -> 283.790009 | H65: 8.130005 | I65: 70.100037 | J65: 29.460022 | K65: 0.4081959714 | L65: 0.8681318681 | N65: 0.6043956044 | T65: 0.4081959714 | U65: 0.8681318681 | AW65: 134143400
A66: 34 | B66: =IF(A66>$A$8,"",OFFSET(InputPriceData!B$15,$A66+$A$11,0,1,1)) -> 2020-04-13 | C66: =IF(A66>$A$8,"",OFFSET(InputPriceData!G$15,CalculationsAndCharts!$A66+$A$11,IF($C$5,8,0),1,1)) -> 114839100 | D66: =IF(A66>$A$8,"",OFFSET(InputPriceData!C$15,CalculationsAndCharts!$A66+$A$11,IF($C$5,8,0),1,1)) -> 277.140015 | E66: =IF(A66>$A$8,"",OFFSET(InputPriceData!D$15,CalculationsAndCharts!$A66+$A$11,IF($C$5,8,0),1,1)) -> 277.51001 | F66: =IF(A66>$A$8,"",OFFSET(InputPriceData!E$15,CalculationsAndCharts!$A66+$A$11,IF($C$5,8,0),1,1)) -> 271.410004 | G66: =IF(A66>$A$8,"",OFFSET(InputPriceData!F$15,CalculationsAndCharts!$A66+$A$11,IF($C$5,8,0),1,1)) -> 275.660004 | H66: -2.540008 | I66: 82.170029 | J66: 29.460022 | K66: 0.4721847435 | L66: 0.9120879121 | N66: 0.6043956044 | T66: 0.4721847435 | U66: 0.9120879121 | AX66: 114839100
A67: 35 | B67: =IF(A67>$A$8,"",OFFSET(InputPriceData!B$15,$A67+$A$11,0,1,1)) -> 2020-04-09 | C67: =IF(A67>$A$8,"",OFFSET(InputPriceData!G$15,CalculationsAndCharts!$A67+$A$11,IF($C$5,8,0),1,1)) -> 190282700 | D67: =IF(A67>$A$8,"",OFFSET(InputPriceData!C$15,CalculationsAndCharts!$A67+$A$11,IF($C$5,8,0),1,1)) -> 277.579987 | E67: =IF(A67>$A$8,"",OFFSET(InputPriceData!D$15,CalculationsAndCharts!$A67+$A$11,IF($C$5,8,0),1,1)) -> 281.200012 | F67: =IF(A67>$A$8,"",OFFSET(InputPriceData!E$15,CalculationsAndCharts!$A67+$A$11,IF($C$5,8,0),1,1)) -> 275.470001 | G67: =IF(A67>$A$8,"",OFFSET(InputPriceData!F$15,CalculationsAndCharts!$A67+$A$11,IF($C$5,8,0),1,1)) -> 278.200012 | H67: 4.170013 | I67: 82.170029 | J67: 32.77002 | K67: 0.4297893504 | L67: 0.9120879121 | N67: 0.6263736264 | T67: 0.4297893504 | U67: 0.9120879121 | AW67: 190282700
A68: 36 | B68: =IF(A68>$A$8,"",OFFSET(InputPriceData!B$15,$A68+$A$11,0,1,1)) -> 2020-04-08 | C68: =IF(A68>$A$8,"",OFFSET(InputPriceData!G$15,CalculationsAndCharts!$A68+$A$11,IF($C$5,8,0),1,1)) -> 153774500 | D68: =IF(A68>$A$8,"",OFFSET(InputPriceData!C$15,CalculationsAndCharts!$A68+$A$11,IF($C$5,8,0),1,1)) -> 267.959991 | E68: =IF(A68>$A$8,"",OFFSET(InputPriceData!D$15,CalculationsAndCharts!$A68+$A$11,IF($C$5,8,0),1,1)) -> 276 | F68: =IF(A68>$A$8,"",OFFSET(InputPriceData!E$15,CalculationsAndCharts!$A68+$A$11,IF($C$5,8,0),1,1)) -> 265.25 | G68: =IF(A68>$A$8,"",OFFSET(InputPriceData!F$15,CalculationsAndCharts!$A68+$A$11,IF($C$5,8,0),1,1)) -> 274.029999 | H68: 8.899994 | I68: 78.000016 | J68: 44.480012 | K68: 0.2736773052 | L68: 0.9120879121 | N68: 0.6043956044 | T68: 0.2736773052 | U68: 0.9120879121 | AW68: 153774500
A69: 37 | B69: =IF(A69>$A$8,"",OFFSET(InputPriceData!B$15,$A69+$A$11,0,1,1)) -> 2020-04-07 | C69: =IF(A69>$A$8,"",OFFSET(InputPriceData!G$15,CalculationsAndCharts!$A69+$A$11,IF($C$5,8,0),1,1)) -> 201427200 | D69: =IF(A69>$A$8,"",OFFSET(InputPriceData!C$15,CalculationsAndCharts!$A69+$A$11,IF($C$5,8,0),1,1)) -> 274.209991 | E69: =IF(A69>$A$8,"",OFFSET(InputPriceData!D$15,CalculationsAndCharts!$A69+$A$11,IF($C$5,8,0),1,1)) -> 275.029999 | F69: =IF(A69>$A$8,"",OFFSET(InputPriceData!E$15,CalculationsAndCharts!$A69+$A$11,IF($C$5,8,0),1,1)) -> 264.890015 | G69: =IF(A69>$A$8,"",OFFSET(InputPriceData!F$15,CalculationsAndCharts!$A69+$A$11,IF($C$5,8,0),1,1)) -> 265.130005 | H69: 0.27002 | I69: 69.610017 | J69: 44.480012 | K69: 0.2202646911 | L69: 0.8241758242 | N69: 0.5604395604 | T69: 0.2202646911 | U69: 0.8241758242 | AX69: 201427200
A70: 38 | B70: =IF(A70>$A$8,"",OFFSET(InputPriceData!B$15,$A70+$A$11,0,1,1)) -> 2020-04-06 | C70: =IF(A70>$A$8,"",OFFSET(InputPriceData!G$15,CalculationsAndCharts!$A70+$A$11,IF($C$5,8,0),1,1)) -> 188061200 | D70: =IF(A70>$A$8,"",OFFSET(InputPriceData!C$15,CalculationsAndCharts!$A70+$A$11,IF($C$5,8,0),1,1)) -> 257.839996 | E70: =IF(A70>$A$8,"",OFFSET(InputPriceData!D$15,CalculationsAndCharts!$A70+$A$11,IF($C$5,8,0),1,1)) -> 267 | F70: =IF(A70>$A$8,"",OFFSET(InputPriceData!E$15,CalculationsAndCharts!$A70+$A$11,IF($C$5,8,0),1,1)) -> 248.169998 | G70: =IF(A70>$A$8,"",OFFSET(InputPriceData!F$15,CalculationsAndCharts!$A70+$A$11,IF($C$5,8,0),1,1)) -> 264.859985 | H70: 16.669983 | I70: 69.339997 | J70: 57.280015 | K70: 0.09524546562 | L70: 0.7582417582 | N70: 0.5164835165 | T70: 0.09524546562 | U70: 0.7582417582 | AW70: 188061200
A71: 39 | B71: =IF(A71>$A$8,"",OFFSET(InputPriceData!B$15,$A71+$A$11,0,1,1)) -> 2020-04-03 | C71: =IF(A71>$A$8,"",OFFSET(InputPriceData!G$15,CalculationsAndCharts!$A71+$A$11,IF($C$5,8,0),1,1)) -> 135310100 | D71: =IF(A71>$A$8,"",OFFSET(InputPriceData!C$15,CalculationsAndCharts!$A71+$A$11,IF($C$5,8,0),1,1)) -> 250.759995 | E71: =IF(A71>$A$8,"",OFFSET(InputPriceData!D$15,CalculationsAndCharts!$A71+$A$11,IF($C$5,8,0),1,1)) -> 253.320007 | F71: =IF(A71>$A$8,"",OFFSET(InputPriceData!E$15,CalculationsAndCharts!$A71+$A$11,IF($C$5,8,0),1,1)) -> 245.220001 | G71: =IF(A71>$A$8,"",OFFSET(InputPriceData!F$15,CalculationsAndCharts!$A71+$A$11,IF($C$5,8,0),1,1)) -> 248.190002 | H71: -3.64 | I71: 65.620011 | J71: 57.280015 | K71: 0.06786000192 | L71: 0.6923076923 | N71: 0.3186813187 | T71: 0.06786000192 | U71: 0.6923076923 | AX71: 135310100
A72: 40 | B72: =IF(A72>$A$8,"",OFFSET(InputPriceData!B$15,$A72+$A$11,0,1,1)) -> 2020-04-02 | C72: =IF(A72>$A$8,"",OFFSET(InputPriceData!G$15,CalculationsAndCharts!$A72+$A$11,IF($C$5,8,0),1,1)) -> 177660400 | D72: =IF(A72>$A$8,"",OFFSET(InputPriceData!C$15,CalculationsAndCharts!$A72+$A$11,IF($C$5,8,0),1,1)) -> 245.190002 | E72: =IF(A72>$A$8,"",OFFSET(InputPriceData!D$15,CalculationsAndCharts!$A72+$A$11,IF($C$5,8,0),1,1)) -> 252.679993 | F72: =IF(A72>$A$8,"",OFFSET(InputPriceData!E$15,CalculationsAndCharts!$A72+$A$11,IF($C$5,8,0),1,1)) -> 244.589996 | G72: =IF(A72>$A$8,"",OFFSET(InputPriceData!F$15,CalculationsAndCharts!$A72+$A$11,IF($C$5,8,0),1,1)) -> 251.830002 | H72: 5.680008 | I72: 65.620011 | J72: 83.110016 | K72: -0.1175956554 | L72: 0.6483516484 | N72: 0.4065934066 | T72: -0.1175956554 | U72: 0.6483516484 | AW72: 177660400
A73: 41 | B73: =IF(A73>$A$8,"",OFFSET(InputPriceData!B$15,$A73+$A$11,0,1,1)) -> 2020-04-01 | C73: =IF(A73>$A$8,"",OFFSET(InputPriceData!G$15,CalculationsAndCharts!$A73+$A$11,IF($C$5,8,0),1,1)) -> 189554600 | D73: =IF(A73>$A$8,"",OFFSET(InputPriceData!C$15,CalculationsAndCharts!$A73+$A$11,IF($C$5,8,0),1,1)) -> 247.979996 | E73: =IF(A73>$A$8,"",OFFSET(InputPriceData!D$15,CalculationsAndCharts!$A73+$A$11,IF($C$5,8,0),1,1)) -> 257.660004 | F73: =IF(A73>$A$8,"",OFFSET(InputPriceData!E$15,CalculationsAndCharts!$A73+$A$11,IF($C$5,8,0),1,1)) -> 243.899994 | G73: =IF(A73>$A$8,"",OFFSET(InputPriceData!F$15,CalculationsAndCharts!$A73+$A$11,IF($C$5,8,0),1,1)) -> 246.149994 | H73: -11.600006 | I73: 81.150009 | J73: 83.110016 | K73: -0.01193234325 | L73: 0.6263736264 | N73: 0.2307692308 | T73: -0.01193234325 | U73: 0.6263736264 | AX73: 189554600
A74: 42 | B74: =IF(A74>$A$8,"",OFFSET(InputPriceData!B$15,$A74+$A$11,0,1,1)) -> 2020-03-31 | C74: =IF(A74>$A$8,"",OFFSET(InputPriceData!G$15,CalculationsAndCharts!$A74+$A$11,IF($C$5,8,0),1,1)) -> 194881100 | D74: =IF(A74>$A$8,"",OFFSET(InputPriceData!C$15,CalculationsAndCharts!$A74+$A$11,IF($C$5,8,0),1,1)) -> 260.559998 | E74: =IF(A74>$A$8,"",OFFSET(InputPriceData!D$15,CalculationsAndCharts!$A74+$A$11,IF($C$5,8,0),1,1)) -> 263.329987 | F74: =IF(A74>$A$8,"",OFFSET(InputPriceData!E$15,CalculationsAndCharts!$A74+$A$11,IF($C$5,8,0),1,1)) -> 256.220001 | G74: =IF(A74>$A$8,"",OFFSET(InputPriceData!F$15,CalculationsAndCharts!$A74+$A$11,IF($C$5,8,0),1,1)) -> 257.75 | H74: -3.899994 | I74: 81.150009 | J74: 97.759994 | K74: -0.09283989001 | L74: 0.6263736264 | N74: 0.2307692308 | T74: -0.09283989001 | U74: 0.6263736264 | AX74: 194881100
A75: 43 | B75: =IF(A75>$A$8,"",OFFSET(InputPriceData!B$15,$A75+$A$11,0,1,1)) -> 2020-03-30 | C75: =IF(A75>$A$8,"",OFFSET(InputPriceData!G$15,CalculationsAndCharts!$A75+$A$11,IF($C$5,8,0),1,1)) -> 171369500 | D75: =IF(A75>$A$8,"",OFFSET(InputPriceData!C$15,CalculationsAndCharts!$A75+$A$11,IF($C$5,8,0),1,1)) -> 255.699997 | E75: =IF(A75>$A$8,"",OFFSET(InputPriceData!D$15,CalculationsAndCharts!$A75+$A$11,IF($C$5,8,0),1,1)) -> 262.429993 | F75: =IF(A75>$A$8,"",OFFSET(InputPriceData!E$15,CalculationsAndCharts!$A75+$A$11,IF($C$5,8,0),1,1)) -> 253.529999 | G75: =IF(A75>$A$8,"",OFFSET(InputPriceData!F$15,CalculationsAndCharts!$A75+$A$11,IF($C$5,8,0),1,1)) -> 261.649994 | H75: 8.229996 | I75: 81.150009 | J75: 107.920028 | K75: -0.1415878445 | L75: 0.6043956044 | N75: 0.01098901099 | T75: -0.1415878445 | U75: 0.6043956044 | AW75: 171369500
A76: 44 | B76: =IF(A76>$A$8,"",OFFSET(InputPriceData!B$15,$A76+$A$11,0,1,1)) -> 2020-03-27 | C76: =IF(A76>$A$8,"",OFFSET(InputPriceData!G$15,CalculationsAndCharts!$A76+$A$11,IF($C$5,8,0),1,1)) -> 224341200 | D76: =IF(A76>$A$8,"",OFFSET(InputPriceData!C$15,CalculationsAndCharts!$A76+$A$11,IF($C$5,8,0),1,1)) -> 253.270004 | E76: =IF(A76>$A$8,"",OFFSET(InputPriceData!D$15,CalculationsAndCharts!$A76+$A$11,IF($C$5,8,0),1,1)) -> 260.809998 | F76: =IF(A76>$A$8,"",OFFSET(InputPriceData!E$15,CalculationsAndCharts!$A76+$A$11,IF($C$5,8,0),1,1)) -> 251.050003 | G76: =IF(A76>$A$8,"",OFFSET(InputPriceData!F$15,CalculationsAndCharts!$A76+$A$11,IF($C$5,8,0),1,1)) -> 253.419998 | H76: -7.780014 | I76: 87.110015 | J76: 107.920028 | K76: -0.1067015762 | L76: 0.5604395604 | N76: -0.2307692308 | T76: -0.1067015762 | U76: 0.5604395604 | AW76: 224341200
A77: 45 | B77: =IF(A77>$A$8,"",OFFSET(InputPriceData!B$15,$A77+$A$11,0,1,1)) -> 2020-03-26 | C77: =IF(A77>$A$8,"",OFFSET(InputPriceData!G$15,CalculationsAndCharts!$A77+$A$11,IF($C$5,8,0),1,1)) -> 257632800 | D77: =IF(A77>$A$8,"",OFFSET(InputPriceData!C$15,CalculationsAndCharts!$A77+$A$11,IF($C$5,8,0),1,1)) -> 249.520004 | E77: =IF(A77>$A$8,"",OFFSET(InputPriceData!D$15,CalculationsAndCharts!$A77+$A$11,IF($C$5,8,0),1,1)) -> 262.799988 | F77: =IF(A77>$A$8,"",OFFSET(InputPriceData!E$15,CalculationsAndCharts!$A77+$A$11,IF($C$5,8,0),1,1)) -> 249.050003 | G77: =IF(A77>$A$8,"",OFFSET(InputPriceData!F$15,CalculationsAndCharts!$A77+$A$11,IF($C$5,8,0),1,1)) -> 261.200012 | H77: 14.410019 | I77: 87.110015 | J77: 123.369994 | K77: -0.1722727929 | L77: 0.5604395604 | N77: -0.3846153846 | T77: -0.1722727929 | U77: 0.5604395604 | AW77: 257632800
A78: 46 | B78: =IF(A78>$A$8,"",OFFSET(InputPriceData!B$15,$A78+$A$11,0,1,1)) -> 2020-03-25 | C78: =IF(A78>$A$8,"",OFFSET(InputPriceData!G$15,CalculationsAndCharts!$A78+$A$11,IF($C$5,8,0),1,1)) -> 299430300 | D78: =IF(A78>$A$8,"",OFFSET(InputPriceData!C$15,CalculationsAndCharts!$A78+$A$11,IF($C$5,8,0),1,1)) -> 244.869995 | E78: =IF(A78>$A$8,"",OFFSET(InputPriceData!D$15,CalculationsAndCharts!$A78+$A$11,IF($C$5,8,0),1,1)) -> 256.350006 | F78: =IF(A78>$A$8,"",OFFSET(InputPriceData!E$15,CalculationsAndCharts!$A78+$A$11,IF($C$5,8,0),1,1)) -> 239.75 | G78: =IF(A78>$A$8,"",OFFSET(InputPriceData!F$15,CalculationsAndCharts!$A78+$A$11,IF($C$5,8,0),1,1)) -> 246.789993 | H78: 3.639999 | I78: 72.699996 | J78: 128.369994 | K78: -0.276868756 | L78: 0.4945054945 | N78: -0.5824175824 | T78: -0.276868756 | U78: 0.4945054945 | AW78: 299430300
A79: 47 | B79: =IF(A79>$A$8,"",OFFSET(InputPriceData!B$15,$A79+$A$11,0,1,1)) -> 2020-03-24 | C79: =IF(A79>$A$8,"",OFFSET(InputPriceData!G$15,CalculationsAndCharts!$A79+$A$11,IF($C$5,8,0),1,1)) -> 235494500 | D79: =IF(A79>$A$8,"",OFFSET(InputPriceData!C$15,CalculationsAndCharts!$A79+$A$11,IF($C$5,8,0),1,1)) -> 234.419998 | E79: =IF(A79>$A$8,"",OFFSET(InputPriceData!D$15,CalculationsAndCharts!$A79+$A$11,IF($C$5,8,0),1,1)) -> 244.100006 | F79: =IF(A79>$A$8,"",OFFSET(InputPriceData!E$15,CalculationsAndCharts!$A79+$A$11,IF($C$5,8,0),1,1)) -> 233.800003 | G79: =IF(A79>$A$8,"",OFFSET(InputPriceData!F$15,CalculationsAndCharts!$A79+$A$11,IF($C$5,8,0),1,1)) -> 243.149994 | H79: 20.199997 | I79: 69.059997 | J79: 138.769988 | K79: -0.3354183517 | L79: 0.3626373626 | N79: -0.7142857143 | T79: -0.3354183517 | U79: 0.3626373626 | AW79: 235494500
A80: 48 | B80: =IF(A80>$A$8,"",OFFSET(InputPriceData!B$15,$A80+$A$11,0,1,1)) -> 2020-03-23 | C80: =IF(A80>$A$8,"",OFFSET(InputPriceData!G$15,CalculationsAndCharts!$A80+$A$11,IF($C$5,8,0),1,1)) -> 326025200 | D80: =IF(A80>$A$8,"",OFFSET(InputPriceData!C$15,CalculationsAndCharts!$A80+$A$11,IF($C$5,8,0),1,1)) -> 228.190002 | E80: =IF(A80>$A$8,"",OFFSET(InputPriceData!D$15,CalculationsAndCharts!$A80+$A$11,IF($C$5,8,0),1,1)) -> 229.679993 | F80: =IF(A80>$A$8,"",OFFSET(InputPriceData!E$15,CalculationsAndCharts!$A80+$A$11,IF($C$5,8,0),1,1)) -> 218.259995 | G80: =IF(A80>$A$8,"",OFFSET(InputPriceData!F$15,CalculationsAndCharts!$A80+$A$11,IF($C$5,8,0),1,1)) -> 222.949997 | H80: -5.850006 | I80: 61.479995 | J80: 138.769988 | K80: -0.3859675384 | L80: 0.2527472527 | N80: -0.8241758242 | T80: -0.3859675384 | U80: 0.2527472527 | AX80: 326025200
A81: 49 | B81: =IF(A81>$A$8,"",OFFSET(InputPriceData!B$15,$A81+$A$11,0,1,1)) -> 2020-03-20 | C81: =IF(A81>$A$8,"",OFFSET(InputPriceData!G$15,CalculationsAndCharts!$A81+$A$11,IF($C$5,8,0),1,1)) -> 347158800 | D81: =IF(A81>$A$8,"",OFFSET(InputPriceData!C$15,CalculationsAndCharts!$A81+$A$11,IF($C$5,8,0),1,1)) -> 242.529999 | E81: =IF(A81>$A$8,"",OFFSET(InputPriceData!D$15,CalculationsAndCharts!$A81+$A$11,IF($C$5,8,0),1,1)) -> 244.470001 | F81: =IF(A81>$A$8,"",OFFSET(InputPriceData!E$15,CalculationsAndCharts!$A81+$A$11,IF($C$5,8,0),1,1)) -> 228.5 | G81: =IF(A81>$A$8,"",OFFSET(InputPriceData!F$15,CalculationsAndCharts!$A81+$A$11,IF($C$5,8,0),1,1)) -> 228.800003 | H81: -11.709992 | I81: 61.479995 | J81: 141.769988 | K81: -0.3950307489 | L81: 0.3626373626 | N81: -0.7802197802 | T81: -0.3950307489 | U81: 0.3626373626 | AX81: 347158800
A82: 50 | B82: =IF(A82>$A$8,"",OFFSET(InputPriceData!B$15,$A82+$A$11,0,1,1)) -> 2020-03-19 | C82: =IF(A82>$A$8,"",OFFSET(InputPriceData!G$15,CalculationsAndCharts!$A82+$A$11,IF($C$5,8,0),1,1)) -> 289322000 | D82: =IF(A82>$A$8,"",OFFSET(InputPriceData!C$15,CalculationsAndCharts!$A82+$A$11,IF($C$5,8,0),1,1)) -> 239.25 | E82: =IF(A82>$A$8,"",OFFSET(InputPriceData!D$15,CalculationsAndCharts!$A82+$A$11,IF($C$5,8,0),1,1)) -> 247.380005 | F82: =IF(A82>$A$8,"",OFFSET(InputPriceData!E$15,CalculationsAndCharts!$A82+$A$11,IF($C$5,8,0),1,1)) -> 232.220001 | G82: =IF(A82>$A$8,"",OFFSET(InputPriceData!F$15,CalculationsAndCharts!$A82+$A$11,IF($C$5,8,0),1,1)) -> 240.509995 | H82: 0.509995 | I82: 74.309981 | J82: 130.059996 | K82: -0.2727896525 | L82: 0.4285714286 | N82: -0.7582417582 | T82: -0.2727896525 | U82: 0.4285714286 | AW82: 289322000
A83: 51 | B83: =IF(A83>$A$8,"",OFFSET(InputPriceData!B$15,$A83+$A$11,0,1,1)) -> 2020-03-18 | C83: =IF(A83>$A$8,"",OFFSET(InputPriceData!G$15,CalculationsAndCharts!$A83+$A$11,IF($C$5,8,0),1,1)) -> 327597100 | D83: =IF(A83>$A$8,"",OFFSET(InputPriceData!C$15,CalculationsAndCharts!$A83+$A$11,IF($C$5,8,0),1,1)) -> 236.25 | E83: =IF(A83>$A$8,"",OFFSET(InputPriceData!D$15,CalculationsAndCharts!$A83+$A$11,IF($C$5,8,0),1,1)) -> 248.369995 | F83: =IF(A83>$A$8,"",OFFSET(InputPriceData!E$15,CalculationsAndCharts!$A83+$A$11,IF($C$5,8,0),1,1)) -> 228.020004 | G83: =IF(A83>$A$8,"",OFFSET(InputPriceData!F$15,CalculationsAndCharts!$A83+$A$11,IF($C$5,8,0),1,1)) -> 240 | H83: -12.800003 | I83: 73.799986 | J83: 131.309996 | K83: -0.2803862076 | L83: 0.4285714286 | N83: -0.6923076923 | T83: -0.2803862076 | U83: 0.4285714286 | AW83: 327597100
A84: 52 | B84: =IF(A84>$A$8,"",OFFSET(InputPriceData!B$15,$A84+$A$11,0,1,1)) -> 2020-03-17 | C84: =IF(A84>$A$8,"",OFFSET(InputPriceData!G$15,CalculationsAndCharts!$A84+$A$11,IF($C$5,8,0),1,1)) -> 262070500 | D84: =IF(A84>$A$8,"",OFFSET(InputPriceData!C$15,CalculationsAndCharts!$A84+$A$11,IF($C$5,8,0),1,1)) -> 245.039993 | E84: =IF(A84>$A$8,"",OFFSET(InputPriceData!D$15,CalculationsAndCharts!$A84+$A$11,IF($C$5,8,0),1,1)) -> 256.170013 | F84: =IF(A84>$A$8,"",OFFSET(InputPriceData!E$15,CalculationsAndCharts!$A84+$A$11,IF($C$5,8,0),1,1)) -> 237.070007 | G84: =IF(A84>$A$8,"",OFFSET(InputPriceData!F$15,CalculationsAndCharts!$A84+$A$11,IF($C$5,8,0),1,1)) -> 252.800003 | H84: 12.949997 | I84: 73.799986 | J84: 132.499983 | K84: -0.2845371101 | L84: 0.4285714286 | N84: -0.6263736264 | T84: -0.2845371101 | U84: 0.4285714286 | AW84: 262070500
A85: 53 | B85: =IF(A85>$A$8,"",OFFSET(InputPriceData!B$15,$A85+$A$11,0,1,1)) -> 2020-03-16 | C85: =IF(A85>$A$8,"",OFFSET(InputPriceData!G$15,CalculationsAndCharts!$A85+$A$11,IF($C$5,8,0),1,1)) -> 297240000 | D85: =IF(A85>$A$8,"",OFFSET(InputPriceData!C$15,CalculationsAndCharts!$A85+$A$11,IF($C$5,8,0),1,1)) -> 241.179993 | E85: =IF(A85>$A$8,"",OFFSET(InputPriceData!D$15,CalculationsAndCharts!$A85+$A$11,IF($C$5,8,0),1,1)) -> 256.899994 | F85: =IF(A85>$A$8,"",OFFSET(InputPriceData!E$15,CalculationsAndCharts!$A85+$A$11,IF($C$5,8,0),1,1)) -> 237.360001 | G85: =IF(A85>$A$8,"",OFFSET(InputPriceData!F$15,CalculationsAndCharts!$A85+$A$11,IF($C$5,8,0),1,1)) -> 239.850006 | H85: -29.470001 | I85: 60.849989 | J85: 133.649977 | K85: -0.3742930629 | L85: 0.3846153846 | N85: -0.6483516484 | T85: -0.3742930629 | U85: 0.3846153846 | AX85: 297240000
A86: 54 | B86: =IF(A86>$A$8,"",OFFSET(InputPriceData!B$15,$A86+$A$11,0,1,1)) -> 2020-03-13 | C86: =IF(A86>$A$8,"",OFFSET(InputPriceData!G$15,CalculationsAndCharts!$A86+$A$11,IF($C$5,8,0),1,1)) -> 329566100 | D86: =IF(A86>$A$8,"",OFFSET(InputPriceData!C$15,CalculationsAndCharts!$A86+$A$11,IF($C$5,8,0),1,1)) -> 263.089996 | E86: =IF(A86>$A$8,"",OFFSET(InputPriceData!D$15,CalculationsAndCharts!$A86+$A$11,IF($C$5,8,0),1,1)) -> 271.480011 | F86: =IF(A86>$A$8,"",OFFSET(InputPriceData!E$15,CalculationsAndCharts!$A86+$A$11,IF($C$5,8,0),1,1)) -> 248.520004 | G86: =IF(A86>$A$8,"",OFFSET(InputPriceData!F$15,CalculationsAndCharts!$A86+$A$11,IF($C$5,8,0),1,1)) -> 269.320007 | H86: 21.210006 | I86: 60.849989 | J86: 113.949995 | K86: -0.3037758058 | L86: 0.2307692308 | N86: -0.6263736264 | T86: -0.3037758058 | U86: 0.2307692308 | AW86: 329566100
A87: 55 | B87: =IF(A87>$A$8,"",OFFSET(InputPriceData!B$15,$A87+$A$11,0,1,1)) -> 2020-03-12 | C87: =IF(A87>$A$8,"",OFFSET(InputPriceData!G$15,CalculationsAndCharts!$A87+$A$11,IF($C$5,8,0),1,1)) -> 392220700 | D87: =IF(A87>$A$8,"",OFFSET(InputPriceData!C$15,CalculationsAndCharts!$A87+$A$11,IF($C$5,8,0),1,1)) -> 256 | E87: =IF(A87>$A$8,"",OFFSET(InputPriceData!D$15,CalculationsAndCharts!$A87+$A$11,IF($C$5,8,0),1,1)) -> 266.660004 | F87: =IF(A87>$A$8,"",OFFSET(InputPriceData!E$15,CalculationsAndCharts!$A87+$A$11,IF($C$5,8,0),1,1)) -> 247.679993 | G87: =IF(A87>$A$8,"",OFFSET(InputPriceData!F$15,CalculationsAndCharts!$A87+$A$11,IF($C$5,8,0),1,1)) -> 248.110001 | H87: -26.249984 | I87: 39.639983 | J87: 125.009993 | K87: -0.518493911 | L87: -0.05494505495 | N87: -0.6483516484 | T87: -0.518493911 | U87: -0.05494505495 | AX87: 392220700
A88: 56 | B88: =IF(A88>$A$8,"",OFFSET(InputPriceData!B$15,$A88+$A$11,0,1,1)) -> 2020-03-11 | C88: =IF(A88>$A$8,"",OFFSET(InputPriceData!G$15,CalculationsAndCharts!$A88+$A$11,IF($C$5,8,0),1,1)) -> 255316300 | D88: =IF(A88>$A$8,"",OFFSET(InputPriceData!C$15,CalculationsAndCharts!$A88+$A$11,IF($C$5,8,0),1,1)) -> 280.700012 | E88: =IF(A88>$A$8,"",OFFSET(InputPriceData!D$15,CalculationsAndCharts!$A88+$A$11,IF($C$5,8,0),1,1)) -> 281.940002 | F88: =IF(A88>$A$8,"",OFFSET(InputPriceData!E$15,CalculationsAndCharts!$A88+$A$11,IF($C$5,8,0),1,1)) -> 270.880005 | G88: =IF(A88>$A$8,"",OFFSET(InputPriceData!F$15,CalculationsAndCharts!$A88+$A$11,IF($C$5,8,0),1,1)) -> 274.359985 | H88: -14.060028 | I88: 39.639983 | J88: 102.23001 | K88: -0.4411787558 | L88: -0.1428571429 | N88: -0.6483516484 | T88: -0.4411787558 | U88: -0.1428571429 | AX88: 255316300
A89: 57 | B89: =IF(A89>$A$8,"",OFFSET(InputPriceData!B$15,$A89+$A$11,0,1,1)) -> 2020-03-10 | C89: =IF(A89>$A$8,"",OFFSET(InputPriceData!G$15,CalculationsAndCharts!$A89+$A$11,IF($C$5,8,0),1,1)) -> 276444100 | D89: =IF(A89>$A$8,"",OFFSET(InputPriceData!C$15,CalculationsAndCharts!$A89+$A$11,IF($C$5,8,0),1,1)) -> 284.640015 | E89: =IF(A89>$A$8,"",OFFSET(InputPriceData!D$15,CalculationsAndCharts!$A89+$A$11,IF($C$5,8,0),1,1)) -> 288.519989 | F89: =IF(A89>$A$8,"",OFFSET(InputPriceData!E$15,CalculationsAndCharts!$A89+$A$11,IF($C$5,8,0),1,1)) -> 273.5 | G89: =IF(A89>$A$8,"",OFFSET(InputPriceData!F$15,CalculationsAndCharts!$A89+$A$11,IF($C$5,8,0),1,1)) -> 288.420013 | H89: 14.190002 | I89: 39.639983 | J89: 89.559966 | K89: -0.3863777299 | L89: -0.2307692308 | N89: -0.6703296703 | T89: -0.3863777299 | U89: -0.2307692308 | AW89: 276444100
A90: 58 | B90: =IF(A90>$A$8,"",OFFSET(InputPriceData!B$15,$A90+$A$11,0,1,1)) -> 2020-03-09 | C90: =IF(A90>$A$8,"",OFFSET(InputPriceData!G$15,CalculationsAndCharts!$A90+$A$11,IF($C$5,8,0),1,1)) -> 309417300 | D90: =IF(A90>$A$8,"",OFFSET(InputPriceData!C$15,CalculationsAndCharts!$A90+$A$11,IF($C$5,8,0),1,1)) -> 275.299988 | E90: =IF(A90>$A$8,"",OFFSET(InputPriceData!D$15,CalculationsAndCharts!$A90+$A$11,IF($C$5,8,0),1,1)) -> 284.190002 | F90: =IF(A90>$A$8,"",OFFSET(InputPriceData!E$15,CalculationsAndCharts!$A90+$A$11,IF($C$5,8,0),1,1)) -> 273.450012 | G90: =IF(A90>$A$8,"",OFFSET(InputPriceData!F$15,CalculationsAndCharts!$A90+$A$11,IF($C$5,8,0),1,1)) -> 274.230011 | H90: -23.22998 | I90: 27.059966 | J90: 89.559966 | K90: -0.5359289697 | L90: -0.3846153846 | N90: -0.6923076923 | T90: -0.5359289697 | U90: -0.3846153846 | AX90: 309417300
A91: 59 | B91: =IF(A91>$A$8,"",OFFSET(InputPriceData!B$15,$A91+$A$11,0,1,1)) -> 2020-03-06 | C91: =IF(A91>$A$8,"",OFFSET(InputPriceData!G$15,CalculationsAndCharts!$A91+$A$11,IF($C$5,8,0),1,1)) -> 228667200 | D91: =IF(A91>$A$8,"",OFFSET(InputPriceData!C$15,CalculationsAndCharts!$A91+$A$11,IF($C$5,8,0),1,1)) -> 293.149994 | E91: =IF(A91>$A$8,"",OFFSET(InputPriceData!D$15,CalculationsAndCharts!$A91+$A$11,IF($C$5,8,0),1,1)) -> 298.779999 | F91: =IF(A91>$A$8,"",OFFSET(InputPriceData!E$15,CalculationsAndCharts!$A91+$A$11,IF($C$5,8,0),1,1)) -> 290.230011 | G91: =IF(A91>$A$8,"",OFFSET(InputPriceData!F$15,CalculationsAndCharts!$A91+$A$11,IF($C$5,8,0),1,1)) -> 297.459991 | H91: -5 | I91: 27.059966 | J91: 67.199981 | K91: -0.4258438104 | L91: -0.4065934066 | N91: -0.6483516484 | T91: -0.4258438104 | U91: -0.4065934066 | AW91: 228667200
A92: 60 | B92: =IF(A92>$A$8,"",OFFSET(InputPriceData!B$15,$A92+$A$11,0,1,1)) -> 2020-03-05 | C92: =IF(A92>$A$8,"",OFFSET(InputPriceData!G$15,CalculationsAndCharts!$A92+$A$11,IF($C$5,8,0),1,1)) -> 186366800 | D92: =IF(A92>$A$8,"",OFFSET(InputPriceData!C$15,CalculationsAndCharts!$A92+$A$11,IF($C$5,8,0),1,1)) -> 304.980011 | E92: =IF(A92>$A$8,"",OFFSET(InputPriceData!D$15,CalculationsAndCharts!$A92+$A$11,IF($C$5,8,0),1,1)) -> 308.470001 | F92: =IF(A92>$A$8,"",OFFSET(InputPriceData!E$15,CalculationsAndCharts!$A92+$A$11,IF($C$5,8,0),1,1)) -> 300.01001 | G92: =IF(A92>$A$8,"",OFFSET(InputPriceData!F$15,CalculationsAndCharts!$A92+$A$11,IF($C$5,8,0),1,1)) -> 302.459991 | H92: -10.399994 | I92: 27.599974 | J92: 62.199981 | K92: -0.3853009392 | L92: -0.4945054945 | N92: -0.6483516484 | T92: -0.3853009392 | U92: -0.4945054945 | AX92: 186366800
A93: 61 | B93: =IF(A93>$A$8,"",OFFSET(InputPriceData!B$15,$A93+$A$11,0,1,1)) -> 2020-03-04 | C93: =IF(A93>$A$8,"",OFFSET(InputPriceData!G$15,CalculationsAndCharts!$A93+$A$11,IF($C$5,8,0),1,1)) -> 176613400 | D93: =IF(A93>$A$8,"",OFFSET(InputPriceData!C$15,CalculationsAndCharts!$A93+$A$11,IF($C$5,8,0),1,1)) -> 306.119995 | E93: =IF(A93>$A$8,"",OFFSET(InputPriceData!D$15,CalculationsAndCharts!$A93+$A$11,IF($C$5,8,0),1,1)) -> 313.100006 | F93: =IF(A93>$A$8,"",OFFSET(InputPriceData!E$15,CalculationsAndCharts!$A93+$A$11,IF($C$5,8,0),1,1)) -> 303.329987 | G93: =IF(A93>$A$8,"",OFFSET(InputPriceData!F$15,CalculationsAndCharts!$A93+$A$11,IF($C$5,8,0),1,1)) -> 312.859985 | H93: 12.619995 | I93: 27.599974 | J93: 52.160002 | K93: -0.307924215 | L93: -0.5164835165 | N93: -0.6703296703 | T93: -0.307924215 | U93: -0.5164835165 | AW93: 176613400
A94: 62 | B94: =IF(A94>$A$8,"",OFFSET(InputPriceData!B$15,$A94+$A$11,0,1,1)) -> 2020-03-03 | C94: =IF(A94>$A$8,"",OFFSET(InputPriceData!G$15,CalculationsAndCharts!$A94+$A$11,IF($C$5,8,0),1,1)) -> 300139100 | D94: =IF(A94>$A$8,"",OFFSET(InputPriceData!C$15,CalculationsAndCharts!$A94+$A$11,IF($C$5,8,0),1,1)) -> 309.5 | E94: =IF(A94>$A$8,"",OFFSET(InputPriceData!D$15,CalculationsAndCharts!$A94+$A$11,IF($C$5,8,0),1,1)) -> 313.839996 | F94: =IF(A94>$A$8,"",OFFSET(InputPriceData!E$15,CalculationsAndCharts!$A94+$A$11,IF($C$5,8,0),1,1)) -> 297.570007 | G94: =IF(A94>$A$8,"",OFFSET(InputPriceData!F$15,CalculationsAndCharts!$A94+$A$11,IF($C$5,8,0),1,1)) -> 300.23999 | H94: -8.850006 | I94: 17.139982 | J94: 52.160002 | K94: -0.5053395106 | L94: -0.5164835165 | N94: -0.7582417582 | T94: -0.5053395106 | U94: -0.5164835165 | AX94: 300139100
A95: 63 | B95: =IF(A95>$A$8,"",OFFSET(InputPriceData!B$15,$A95+$A$11,0,1,1)) -> 2020-03-02 | C95: =IF(A95>$A$8,"",OFFSET(InputPriceData!G$15,CalculationsAndCharts!$A95+$A$11,IF($C$5,8,0),1,1)) -> 238703600 | D95: =IF(A95>$A$8,"",OFFSET(InputPriceData!C$15,CalculationsAndCharts!$A95+$A$11,IF($C$5,8,0),1,1)) -> 298.209991 | E95: =IF(A95>$A$8,"",OFFSET(InputPriceData!D$15,CalculationsAndCharts!$A95+$A$11,IF($C$5,8,0),1,1)) -> 309.160004 | F95: =IF(A95>$A$8,"",OFFSET(InputPriceData!E$15,CalculationsAndCharts!$A95+$A$11,IF($C$5,8,0),1,1)) -> 294.459991 | G95: =IF(A95>$A$8,"",OFFSET(InputPriceData!F$15,CalculationsAndCharts!$A95+$A$11,IF($C$5,8,0),1,1)) -> 309.089996 | H95: 12.829986 | I95: 17.719999 | J95: 43.309996 | K95: -0.4193019678 | L95: -0.4285714286 | N95: -0.6703296703 | T95: -0.4193019678 | U95: -0.4285714286 | AW95: 238703600
A96: 64 | B96: =IF(A96>$A$8,"",OFFSET(InputPriceData!B$15,$A96+$A$11,0,1,1)) -> 2020-02-28 | C96: =IF(A96>$A$8,"",OFFSET(InputPriceData!G$15,CalculationsAndCharts!$A96+$A$11,IF($C$5,8,0),1,1)) -> 385764000 | D96: =IF(A96>$A$8,"",OFFSET(InputPriceData!C$15,CalculationsAndCharts!$A96+$A$11,IF($C$5,8,0),1,1)) -> 288.700012 | E96: =IF(A96>$A$8,"",OFFSET(InputPriceData!D$15,CalculationsAndCharts!$A96+$A$11,IF($C$5,8,0),1,1)) -> 297.890015 | F96: =IF(A96>$A$8,"",OFFSET(InputPriceData!E$15,CalculationsAndCharts!$A96+$A$11,IF($C$5,8,0),1,1)) -> 285.540009 | G96: =IF(A96>$A$8,"",OFFSET(InputPriceData!F$15,CalculationsAndCharts!$A96+$A$11,IF($C$5,8,0),1,1)) -> 296.26001 | H96: -1.25 | I96: 7.369994 | J96: 43.309996 | K96: -0.7091556648 | L96: -0.3186813187 | N96: -0.5604395604 | T96: -0.7091556648 | U96: -0.3186813187 | AW96: 385764000
A97: 65 | B97: =IF(A97>$A$8,"",OFFSET(InputPriceData!B$15,$A97+$A$11,0,1,1)) -> 2020-02-27 | C97: =IF(A97>$A$8,"",OFFSET(InputPriceData!G$15,CalculationsAndCharts!$A97+$A$11,IF($C$5,8,0),1,1)) -> 284353500 | D97: =IF(A97>$A$8,"",OFFSET(InputPriceData!C$15,CalculationsAndCharts!$A97+$A$11,IF($C$5,8,0),1,1)) -> 305.459991 | E97: =IF(A97>$A$8,"",OFFSET(InputPriceData!D$15,CalculationsAndCharts!$A97+$A$11,IF($C$5,8,0),1,1)) -> 311.559998 | F97: =IF(A97>$A$8,"",OFFSET(InputPriceData!E$15,CalculationsAndCharts!$A97+$A$11,IF($C$5,8,0),1,1)) -> 297.51001 | G97: =IF(A97>$A$8,"",OFFSET(InputPriceData!F$15,CalculationsAndCharts!$A97+$A$11,IF($C$5,8,0),1,1)) -> 297.51001 | H97: -13.98999 | I97: 7.369994 | J97: 43.839995 | K97: -0.7121657652 | L97: -0.1428571429 | N97: -0.3626373626 | T97: -0.7121657652 | U97: -0.1428571429 | AW97: =IF(G97>=D97,C97,NA()) ->  | AX97: =IF(G97<D97,C97,NA()) -> 284353500
A98: 66 | B98: =IF(A98>$A$8,"",OFFSET(InputPriceData!B$15,$A98+$A$11,0,1,1)) -> 2020-02-26 | C98: =IF(A98>$A$8,"",OFFSET(InputPriceData!G$15,CalculationsAndCharts!$A98+$A$11,IF($C$5,8,0),1,1)) -> 194773800 | D98: =IF(A98>$A$8,"",OFFSET(InputPriceData!C$15,CalculationsAndCharts!$A98+$A$11,IF($C$5,8,0),1,1)) -> 314.179993 | E98: =IF(A98>$A$8,"",OFFSET(InputPriceData!D$15,CalculationsAndCharts!$A98+$A$11,IF($C$5,8,0),1,1)) -> 318.109985 | F98: =IF(A98>$A$8,"",OFFSET(InputPriceData!E$15,CalculationsAndCharts!$A98+$A$11,IF($C$5,8,0),1,1)) -> 310.700012 | G98: =IF(A98>$A$8,"",OFFSET(InputPriceData!F$15,CalculationsAndCharts!$A98+$A$11,IF($C$5,8,0),1,1)) -> 311.5 | H98: =IF(A98>$A$8-1,NA(),G98-G99) -> -1.149994 | I98: =IF(A98>$A$8-1-$A$16,NA(),SUMIF(OFFSET($H98,0,0,$A$16,1),">0")) -> 8.49002 | J98: =IF(A98>$A$8-1-$A$16,NA(),-SUMIF(OFFSET($H98,0,0,$A$16,1),"<0")) -> 29.850005 | K98: =IF(A98>$A$8-1-$A$16,NA(),IF(I98+J98<>0,(I98-J98)/(I98+J98),NA())) -> -0.5571197463 | L98: 0.05494505495 | N98: -0.1868131868 | T98: =IF($S$14=FALSE,NA(),K98) -> -0.5571197463 | U98: =IF($S$15=FALSE,NA(),L98) -> 0.05494505495 | V98: =IF($S$16=FALSE,NA(),N98) ->  | AX98: 194773800
A99: 67 | B99: =IF(A99>$A$8,"",OFFSET(InputPriceData!B$15,$A99+$A$11,0,1,1)) -> 2020-02-25 | C99: =IF(A99>$A$8,"",OFFSET(InputPriceData!G$15,CalculationsAndCharts!$A99+$A$11,IF($C$5,8,0),1,1)) -> 218913200 | D99: =IF(A99>$A$8,"",OFFSET(InputPriceData!C$15,CalculationsAndCharts!$A99+$A$11,IF($C$5,8,0),1,1)) -> 323.940002 | E99: =IF(A99>$A$8,"",OFFSET(InputPriceData!D$15,CalculationsAndCharts!$A99+$A$11,IF($C$5,8,0),1,1)) -> 324.609985 | F99: =IF(A99>$A$8,"",OFFSET(InputPriceData!E$15,CalculationsAndCharts!$A99+$A$11,IF($C$5,8,0),1,1)) -> 311.690002 | G99: =IF(A99>$A$8,"",OFFSET(InputPriceData!F$15,CalculationsAndCharts!$A99+$A$11,IF($C$5,8,0),1,1)) -> 312.649994 | H99: -9.770019 | I99: 12.290007 | J99: 28.700011 | K99: -0.4003414685 | L99: 0.2087912088 | N99: 0.03296703297 | T99: -0.4003414685 | U99: 0.2087912088 | AX99: 218913200
A100: 68 | B100: =IF(A100>$A$8,"",OFFSET(InputPriceData!B$15,$A100+$A$11,0,1,1)) -> 2020-02-24 | C100: =IF(A100>$A$8,"",OFFSET(InputPriceData!G$15,CalculationsAndCharts!$A100+$A$11,IF($C$5,8,0),1,1)) -> 161088400 | D100: =IF(A100>$A$8,"",OFFSET(InputPriceData!C$15,CalculationsAndCharts!$A100+$A$11,IF($C$5,8,0),1,1)) -> 323.140015 | E100: =IF(A100>$A$8,"",OFFSET(InputPriceData!D$15,CalculationsAndCharts!$A100+$A$11,IF($C$5,8,0),1,1)) -> 333.559998 | F100: =IF(A100>$A$8,"",OFFSET(InputPriceData!E$15,CalculationsAndCharts!$A100+$A$11,IF($C$5,8,0),1,1)) -> 321.23999 | G100: =IF(A100>$A$8,"",OFFSET(InputPriceData!F$15,CalculationsAndCharts!$A100+$A$11,IF($C$5,8,0),1,1)) -> 322.420013 | H100: -11.059998 | I100: 17.23001 | J100: 18.929992 | K100: -0.04701277395 | L100: 0.4505494505 | N100: 0.2967032967 | T100: -0.04701277395 | U100: 0.4505494505 | AX100: 161088400
A101: 69 | B101: =IF(A101>$A$8,"",OFFSET(InputPriceData!B$15,$A101+$A$11,0,1,1)) -> 2020-02-21 | C101: =IF(A101>$A$8,"",OFFSET(InputPriceData!G$15,CalculationsAndCharts!$A101+$A$11,IF($C$5,8,0),1,1)) -> 113788200 | D101: =IF(A101>$A$8,"",OFFSET(InputPriceData!C$15,CalculationsAndCharts!$A101+$A$11,IF($C$5,8,0),1,1)) -> 335.470001 | E101: =IF(A101>$A$8,"",OFFSET(InputPriceData!D$15,CalculationsAndCharts!$A101+$A$11,IF($C$5,8,0),1,1)) -> 335.809998 | F101: =IF(A101>$A$8,"",OFFSET(InputPriceData!E$15,CalculationsAndCharts!$A101+$A$11,IF($C$5,8,0),1,1)) -> 332.579987 | G101: =IF(A101>$A$8,"",OFFSET(InputPriceData!F$15,CalculationsAndCharts!$A101+$A$11,IF($C$5,8,0),1,1)) -> 333.480011 | H101: -3.470001 | I101: 19.619994 | J101: 7.869994 | K101: 0.4274283423 | L101: 0.7362637363 | N101: 0.5824175824 | T101: 0.4274283423 | U101: 0.7362637363 | AX101: 113788200
A102: 70 | B102: =IF(A102>$A$8,"",OFFSET(InputPriceData!B$15,$A102+$A$11,0,1,1)) -> 2020-02-20 | C102: =IF(A102>$A$8,"",OFFSET(InputPriceData!G$15,CalculationsAndCharts!$A102+$A$11,IF($C$5,8,0),1,1)) -> 74163400 | D102: =IF(A102>$A$8,"",OFFSET(InputPriceData!C$15,CalculationsAndCharts!$A102+$A$11,IF($C$5,8,0),1,1)) -> 337.73999 | E102: =IF(A102>$A$8,"",OFFSET(InputPriceData!D$15,CalculationsAndCharts!$A102+$A$11,IF($C$5,8,0),1,1)) -> 338.640015 | F102: =IF(A102>$A$8,"",OFFSET(InputPriceData!E$15,CalculationsAndCharts!$A102+$A$11,IF($C$5,8,0),1,1)) -> 333.679993 | G102: =IF(A102>$A$8,"",OFFSET(InputPriceData!F$15,CalculationsAndCharts!$A102+$A$11,IF($C$5,8,0),1,1)) -> 336.950012 | H102: -1.389984 | I102: 19.619994 | J102: 10.349975 | K102: 0.3093102632 | L102: 0.7582417582 | N102: 0.7802197802 | T102: 0.3093102632 | U102: 0.7582417582 | AX102: 74163400
A103: 71 | B103: =IF(A103>$A$8,"",OFFSET(InputPriceData!B$15,$A103+$A$11,0,1,1)) -> 2020-02-19 | C103: =IF(A103>$A$8,"",OFFSET(InputPriceData!G$15,CalculationsAndCharts!$A103+$A$11,IF($C$5,8,0),1,1)) -> 48814700 | D103: =IF(A103>$A$8,"",OFFSET(InputPriceData!C$15,CalculationsAndCharts!$A103+$A$11,IF($C$5,8,0),1,1)) -> 337.790009 | E103: =IF(A103>$A$8,"",OFFSET(InputPriceData!D$15,CalculationsAndCharts!$A103+$A$11,IF($C$5,8,0),1,1)) -> 339.079987 | F103: =IF(A103>$A$8,"",OFFSET(InputPriceData!E$15,CalculationsAndCharts!$A103+$A$11,IF($C$5,8,0),1,1)) -> 337.480011 | G103: =IF(A103>$A$8,"",OFFSET(InputPriceData!F$15,CalculationsAndCharts!$A103+$A$11,IF($C$5,8,0),1,1)) -> 338.339996 | H103: 1.609985 | I103: 20.679992 | J103: 8.959991 | K103: 0.3954118665 | L103: 0.7582417582 | N103: 0.8241758242 | T103: 0.3954118665 | U103: 0.7582417582 | AW103: 48814700
A104: 72 | B104: =IF(A104>$A$8,"",OFFSET(InputPriceData!B$15,$A104+$A$11,0,1,1)) -> 2020-02-18 | C104: =IF(A104>$A$8,"",OFFSET(InputPriceData!G$15,CalculationsAndCharts!$A104+$A$11,IF($C$5,8,0),1,1)) -> 57226200 | D104: =IF(A104>$A$8,"",OFFSET(InputPriceData!C$15,CalculationsAndCharts!$A104+$A$11,IF($C$5,8,0),1,1)) -> 336.51001 | E104: =IF(A104>$A$8,"",OFFSET(InputPriceData!D$15,CalculationsAndCharts!$A104+$A$11,IF($C$5,8,0),1,1)) -> 337.670013 | F104: =IF(A104>$A$8,"",OFFSET(InputPriceData!E$15,CalculationsAndCharts!$A104+$A$11,IF($C$5,8,0),1,1)) -> 335.209991 | G104: =IF(A104>$A$8,"",OFFSET(InputPriceData!F$15,CalculationsAndCharts!$A104+$A$11,IF($C$5,8,0),1,1)) -> 336.730011 | H104: -0.869995 | I104: 19.070007 | J104: 9.230011 | K104: 0.3477028177 | L104: 0.6483516484 | N104: 0.7802197802 | T104: 0.3477028177 | U104: 0.6483516484 | AW104: 57226200
A105: 73 | B105: =IF(A105>$A$8,"",OFFSET(InputPriceData!B$15,$A105+$A$11,0,1,1)) -> 2020-02-14 | C105: =IF(A105>$A$8,"",OFFSET(InputPriceData!G$15,CalculationsAndCharts!$A105+$A$11,IF($C$5,8,0),1,1)) -> 64582200 | D105: =IF(A105>$A$8,"",OFFSET(InputPriceData!C$15,CalculationsAndCharts!$A105+$A$11,IF($C$5,8,0),1,1)) -> 337.51001 | E105: =IF(A105>$A$8,"",OFFSET(InputPriceData!D$15,CalculationsAndCharts!$A105+$A$11,IF($C$5,8,0),1,1)) -> 337.730011 | F105: =IF(A105>$A$8,"",OFFSET(InputPriceData!E$15,CalculationsAndCharts!$A105+$A$11,IF($C$5,8,0),1,1)) -> 336.200012 | G105: =IF(A105>$A$8,"",OFFSET(InputPriceData!F$15,CalculationsAndCharts!$A105+$A$11,IF($C$5,8,0),1,1)) -> 337.600006 | H105: 0.540008 | I105: 22.460022 | J105: 8.360016 | K105: 0.4574947636 | L105: 0.4285714286 | N105: 0.7802197802 | T105: 0.4574947636 | U105: 0.4285714286 | AW105: 64582200
A106: 74 | B106: =IF(A106>$A$8,"",OFFSET(InputPriceData!B$15,$A106+$A$11,0,1,1)) -> 2020-02-13 | C106: =IF(A106>$A$8,"",OFFSET(InputPriceData!G$15,CalculationsAndCharts!$A106+$A$11,IF($C$5,8,0),1,1)) -> 54501900 | D106: =IF(A106>$A$8,"",OFFSET(InputPriceData!C$15,CalculationsAndCharts!$A106+$A$11,IF($C$5,8,0),1,1)) -> 335.859985 | E106: =IF(A106>$A$8,"",OFFSET(InputPriceData!D$15,CalculationsAndCharts!$A106+$A$11,IF($C$5,8,0),1,1)) -> 338.119995 | F106: =IF(A106>$A$8,"",OFFSET(InputPriceData!E$15,CalculationsAndCharts!$A106+$A$11,IF($C$5,8,0),1,1)) -> 335.559998 | G106: =IF(A106>$A$8,"",OFFSET(InputPriceData!F$15,CalculationsAndCharts!$A106+$A$11,IF($C$5,8,0),1,1)) -> 337.059998 | H106: -0.360015 | I106: 21.920014 | J106: 13.630005 | K106: 0.2331928149 | L106: 0.3846153846 | N106: 0.7582417582 | T106: 0.2331928149 | U106: 0.3846153846 | AW106: 54501900
A107: 75 | B107: =IF(A107>$A$8,"",OFFSET(InputPriceData!B$15,$A107+$A$11,0,1,1)) -> 2020-02-12 | C107: =IF(A107>$A$8,"",OFFSET(InputPriceData!G$15,CalculationsAndCharts!$A107+$A$11,IF($C$5,8,0),1,1)) -> 43992700 | D107: =IF(A107>$A$8,"",OFFSET(InputPriceData!C$15,CalculationsAndCharts!$A107+$A$11,IF($C$5,8,0),1,1)) -> 336.829987 | E107: =IF(A107>$A$8,"",OFFSET(InputPriceData!D$15,CalculationsAndCharts!$A107+$A$11,IF($C$5,8,0),1,1)) -> 337.649994 | F107: =IF(A107>$A$8,"",OFFSET(InputPriceData!E$15,CalculationsAndCharts!$A107+$A$11,IF($C$5,8,0),1,1)) -> 336.429993 | G107: =IF(A107>$A$8,"",OFFSET(InputPriceData!F$15,CalculationsAndCharts!$A107+$A$11,IF($C$5,8,0),1,1)) -> 337.420013 | H107: 2.160003 | I107: 21.920014 | J107: 16.220002 | K107: 0.1494496489 | L107: 0.0989010989 | N107: 0.6483516484 | T107: 0.1494496489 | U107: 0.0989010989 | AW107: 43992700
A108: 76 | B108: =IF(A108>$A$8,"",OFFSET(InputPriceData!B$15,$A108+$A$11,0,1,1)) -> 2020-02-11 | C108: =IF(A108>$A$8,"",OFFSET(InputPriceData!G$15,CalculationsAndCharts!$A108+$A$11,IF($C$5,8,0),1,1)) -> 54864500 | D108: =IF(A108>$A$8,"",OFFSET(InputPriceData!C$15,CalculationsAndCharts!$A108+$A$11,IF($C$5,8,0),1,1)) -> 336.160004 | E108: =IF(A108>$A$8,"",OFFSET(InputPriceData!D$15,CalculationsAndCharts!$A108+$A$11,IF($C$5,8,0),1,1)) -> 337.019989 | F108: =IF(A108>$A$8,"",OFFSET(InputPriceData!E$15,CalculationsAndCharts!$A108+$A$11,IF($C$5,8,0),1,1)) -> 334.679993 | G108: =IF(A108>$A$8,"",OFFSET(InputPriceData!F$15,CalculationsAndCharts!$A108+$A$11,IF($C$5,8,0),1,1)) -> 335.26001 | H108: 0.580017 | I108: 20.140016 | J108: 16.220002 | K108: 0.1078111127 | L108: -0.1428571429 | N108: 0.4725274725 | T108: 0.1078111127 | U108: -0.1428571429 | AX108: 54864500
A109: 77 | B109: =IF(A109>$A$8,"",OFFSET(InputPriceData!B$15,$A109+$A$11,0,1,1)) -> 2020-02-10 | C109: =IF(A109>$A$8,"",OFFSET(InputPriceData!G$15,CalculationsAndCharts!$A109+$A$11,IF($C$5,8,0),1,1)) -> 42070000 | D109: =IF(A109>$A$8,"",OFFSET(InputPriceData!C$15,CalculationsAndCharts!$A109+$A$11,IF($C$5,8,0),1,1)) -> 331.230011 | E109: =IF(A109>$A$8,"",OFFSET(InputPriceData!D$15,CalculationsAndCharts!$A109+$A$11,IF($C$5,8,0),1,1)) -> 334.75 | F109: =IF(A109>$A$8,"",OFFSET(InputPriceData!E$15,CalculationsAndCharts!$A109+$A$11,IF($C$5,8,0),1,1)) -> 331.190002 | G109: =IF(A109>$A$8,"",OFFSET(InputPriceData!F$15,CalculationsAndCharts!$A109+$A$11,IF($C$5,8,0),1,1)) -> 334.679993 | H109: 2.479981 | I109: 19.600007 | J109: 16.220002 | K109: 0.09436080823 | L109: -0.3406593407 | N109: 0.2967032967 | T109: 0.09436080823 | U109: -0.3406593407 | AW109: 42070000
A110: 78 | B110: =IF(A110>$A$8,"",OFFSET(InputPriceData!B$15,$A110+$A$11,0,1,1)) -> 2020-02-07 | C110: =IF(A110>$A$8,"",OFFSET(InputPriceData!G$15,CalculationsAndCharts!$A110+$A$11,IF($C$5,8,0),1,1)) -> 64139400 | D110: =IF(A110>$A$8,"",OFFSET(InputPriceData!C$15,CalculationsAndCharts!$A110+$A$11,IF($C$5,8,0),1,1)) -> 332.820007 | E110: =IF(A110>$A$8,"",OFFSET(InputPriceData!D$15,CalculationsAndCharts!$A110+$A$11,IF($C$5,8,0),1,1)) -> 333.98999 | F110: =IF(A110>$A$8,"",OFFSET(InputPriceData!E$15,CalculationsAndCharts!$A110+$A$11,IF($C$5,8,0),1,1)) -> 331.600006 | G110: =IF(A110>$A$8,"",OFFSET(InputPriceData!F$15,CalculationsAndCharts!$A110+$A$11,IF($C$5,8,0),1,1)) -> 332.200012 | H110: -1.779999 | I110: 17.120026 | J110: 16.870026 | K110: 0.00735509319 | L110: -0.5164835165 | N110: 0.1208791209 | T110: 0.00735509319 | U110: -0.5164835165 | AX110: 64139400
A111: 79 | B111: =IF(A111>$A$8,"",OFFSET(InputPriceData!B$15,$A111+$A$11,0,1,1)) -> 2020-02-06 | C111: =IF(A111>$A$8,"",OFFSET(InputPriceData!G$15,CalculationsAndCharts!$A111+$A$11,IF($C$5,8,0),1,1)) -> 50359700 | D111: =IF(A111>$A$8,"",OFFSET(InputPriceData!C$15,CalculationsAndCharts!$A111+$A$11,IF($C$5,8,0),1,1)) -> 333.910004 | E111: =IF(A111>$A$8,"",OFFSET(InputPriceData!D$15,CalculationsAndCharts!$A111+$A$11,IF($C$5,8,0),1,1)) -> 334.190002 | F111: =IF(A111>$A$8,"",OFFSET(InputPriceData!E$15,CalculationsAndCharts!$A111+$A$11,IF($C$5,8,0),1,1)) -> 332.799988 | G111: =IF(A111>$A$8,"",OFFSET(InputPriceData!F$15,CalculationsAndCharts!$A111+$A$11,IF($C$5,8,0),1,1)) -> 333.980011 | H111: 1.120026 | I111: 18.150025 | J111: 15.090027 | K111: 0.09205755755 | L111: -0.5384615385 | N111: -0.07692307692 | T111: 0.09205755755 | U111: -0.5384615385 | AW111: 50359700
A112: 80 | B112: =IF(A112>$A$8,"",OFFSET(InputPriceData!B$15,$A112+$A$11,0,1,1)) -> 2020-02-05 | C112: =IF(A112>$A$8,"",OFFSET(InputPriceData!G$15,CalculationsAndCharts!$A112+$A$11,IF($C$5,8,0),1,1)) -> 65951100 | D112: =IF(A112>$A$8,"",OFFSET(InputPriceData!C$15,CalculationsAndCharts!$A112+$A$11,IF($C$5,8,0),1,1)) -> 332.269989 | E112: =IF(A112>$A$8,"",OFFSET(InputPriceData!D$15,CalculationsAndCharts!$A112+$A$11,IF($C$5,8,0),1,1)) -> 333.089996 | F112: =IF(A112>$A$8,"",OFFSET(InputPriceData!E$15,CalculationsAndCharts!$A112+$A$11,IF($C$5,8,0),1,1)) -> 330.670013 | G112: =IF(A112>$A$8,"",OFFSET(InputPriceData!F$15,CalculationsAndCharts!$A112+$A$11,IF($C$5,8,0),1,1)) -> 332.859985 | H112: 3.799987 | I112: 19.76001 | J112: 15.090027 | K112: 0.1340022394 | L112: -0.5604395604 | N112: -0.2527472527 | T112: 0.1340022394 | U112: -0.5604395604 | AW112: 65951100
A113: 81 | B113: =IF(A113>$A$8,"",OFFSET(InputPriceData!B$15,$A113+$A$11,0,1,1)) -> 2020-02-04 | C113: =IF(A113>$A$8,"",OFFSET(InputPriceData!G$15,CalculationsAndCharts!$A113+$A$11,IF($C$5,8,0),1,1)) -> 62573200 | D113: =IF(A113>$A$8,"",OFFSET(InputPriceData!C$15,CalculationsAndCharts!$A113+$A$11,IF($C$5,8,0),1,1)) -> 328.070007 | E113: =IF(A113>$A$8,"",OFFSET(InputPriceData!D$15,CalculationsAndCharts!$A113+$A$11,IF($C$5,8,0),1,1)) -> 330.01001 | F113: =IF(A113>$A$8,"",OFFSET(InputPriceData!E$15,CalculationsAndCharts!$A113+$A$11,IF($C$5,8,0),1,1)) -> 327.720001 | G113: =IF(A113>$A$8,"",OFFSET(InputPriceData!F$15,CalculationsAndCharts!$A113+$A$11,IF($C$5,8,0),1,1)) -> 329.059998 | H113: 4.940003 | I113: 16.700013 | J113: 15.090027 | K113: 0.05064435276 | L113: -0.5604395604 | N113: -0.3846153846 | T113: 0.05064435276 | U113: -0.5604395604 | AW113: 62573200
A114: 82 | B114: =IF(A114>$A$8,"",OFFSET(InputPriceData!B$15,$A114+$A$11,0,1,1)) -> 2020-02-03 | C114: =IF(A114>$A$8,"",OFFSET(InputPriceData!G$15,CalculationsAndCharts!$A114+$A$11,IF($C$5,8,0),1,1)) -> 69242300 | D114: =IF(A114>$A$8,"",OFFSET(InputPriceData!C$15,CalculationsAndCharts!$A114+$A$11,IF($C$5,8,0),1,1)) -> 323.350006 | E114: =IF(A114>$A$8,"",OFFSET(InputPriceData!D$15,CalculationsAndCharts!$A114+$A$11,IF($C$5,8,0),1,1)) -> 326.160004 | F114: =IF(A114>$A$8,"",OFFSET(InputPriceData!E$15,CalculationsAndCharts!$A114+$A$11,IF($C$5,8,0),1,1)) -> 323.220001 | G114: =IF(A114>$A$8,"",OFFSET(InputPriceData!F$15,CalculationsAndCharts!$A114+$A$11,IF($C$5,8,0),1,1)) -> 324.119995 | H114: 2.389984 | I114: 11.76001 | J114: 15.590027 | K114: -0.1400369952 | L114: -0.4945054945 | N114: -0.3846153846 | T114: -0.1400369952 | U114: -0.4945054945 | AW114: 69242300
A115: 83 | B115: =IF(A115>$A$8,"",OFFSET(InputPriceData!B$15,$A115+$A$11,0,1,1)) -> 2020-01-31 | C115: =IF(A115>$A$8,"",OFFSET(InputPriceData!G$15,CalculationsAndCharts!$A115+$A$11,IF($C$5,8,0),1,1)) -> 113845600 | D115: =IF(A115>$A$8,"",OFFSET(InputPriceData!C$15,CalculationsAndCharts!$A115+$A$11,IF($C$5,8,0),1,1)) -> 327 | E115: =IF(A115>$A$8,"",OFFSET(InputPriceData!D$15,CalculationsAndCharts!$A115+$A$11,IF($C$5,8,0),1,1)) -> 327.170013 | F115: =IF(A115>$A$8,"",OFFSET(InputPriceData!E$15,CalculationsAndCharts!$A115+$A$11,IF($C$5,8,0),1,1)) -> 320.730011 | G115: =IF(A115>$A$8,"",OFFSET(InputPriceData!F$15,CalculationsAndCharts!$A115+$A$11,IF($C$5,8,0),1,1)) -> 321.730011 | H115: -5.949982 | I115: 11.610047 | J115: 15.590027 | K115: -0.146322396 | L115: -0.4065934066 | N115: -0.2747252747 | T115: -0.146322396 | U115: -0.4065934066 | AX115: 113845600
A116: 84 | B116: =IF(A116>$A$8,"",OFFSET(InputPriceData!B$15,$A116+$A$11,0,1,1)) -> 2020-01-30 | C116: =IF(A116>$A$8,"",OFFSET(InputPriceData!G$15,CalculationsAndCharts!$A116+$A$11,IF($C$5,8,0),1,1)) -> 75491800 | D116: =IF(A116>$A$8,"",OFFSET(InputPriceData!C$15,CalculationsAndCharts!$A116+$A$11,IF($C$5,8,0),1,1)) -> 324.359985 | E116: =IF(A116>$A$8,"",OFFSET(InputPriceData!D$15,CalculationsAndCharts!$A116+$A$11,IF($C$5,8,0),1,1)) -> 327.910004 | F116: =IF(A116>$A$8,"",OFFSET(InputPriceData!E$15,CalculationsAndCharts!$A116+$A$11,IF($C$5,8,0),1,1)) -> 323.540009 | G116: =IF(A116>$A$8,"",OFFSET(InputPriceData!F$15,CalculationsAndCharts!$A116+$A$11,IF($C$5,8,0),1,1)) -> 327.679993 | H116: 1.059998 | I116: 11.610047 | J116: 10.580048 | K116: 0.04641706131 | L116: -0.2087912088 | N116: -0.01098901099 | T116: 0.04641706131 | U116: -0.2087912088 | AW116: 75491800
A117: 85 | B117: =IF(A117>$A$8,"",OFFSET(InputPriceData!B$15,$A117+$A$11,0,1,1)) -> 2020-01-29 | C117: =IF(A117>$A$8,"",OFFSET(InputPriceData!G$15,CalculationsAndCharts!$A117+$A$11,IF($C$5,8,0),1,1)) -> 53888900 | D117: =IF(A117>$A$8,"",OFFSET(InputPriceData!C$15,CalculationsAndCharts!$A117+$A$11,IF($C$5,8,0),1,1)) -> 328.380005 | E117: =IF(A117>$A$8,"",OFFSET(InputPriceData!D$15,CalculationsAndCharts!$A117+$A$11,IF($C$5,8,0),1,1)) -> 328.630005 | F117: =IF(A117>$A$8,"",OFFSET(InputPriceData!E$15,CalculationsAndCharts!$A117+$A$11,IF($C$5,8,0),1,1)) -> 326.399994 | G117: =IF(A117>$A$8,"",OFFSET(InputPriceData!F$15,CalculationsAndCharts!$A117+$A$11,IF($C$5,8,0),1,1)) -> 326.619995 | H117: -0.27002 | I117: 12.750031 | J117: 10.580048 | K117: 0.09301224398 | L117: -0.1648351648 | N117: 0.0989010989 | T117: 0.09301224398 | U117: -0.1648351648 | AX117: 53888900
A118: 86 | B118: =IF(A118>$A$8,"",OFFSET(InputPriceData!B$15,$A118+$A$11,0,1,1)) -> 2020-01-28 | C118: =IF(A118>$A$8,"",OFFSET(InputPriceData!G$15,CalculationsAndCharts!$A118+$A$11,IF($C$5,8,0),1,1)) -> 63834000 | D118: =IF(A118>$A$8,"",OFFSET(InputPriceData!C$15,CalculationsAndCharts!$A118+$A$11,IF($C$5,8,0),1,1)) -> 325.059998 | E118: =IF(A118>$A$8,"",OFFSET(InputPriceData!D$15,CalculationsAndCharts!$A118+$A$11,IF($C$5,8,0),1,1)) -> 327.850006 | F118: =IF(A118>$A$8,"",OFFSET(InputPriceData!E$15,CalculationsAndCharts!$A118+$A$11,IF($C$5,8,0),1,1)) -> 323.600006 | G118: =IF(A118>$A$8,"",OFFSET(InputPriceData!F$15,CalculationsAndCharts!$A118+$A$11,IF($C$5,8,0),1,1)) -> 326.890015 | H118: 3.390015 | I118: 14.470032 | J118: 10.310028 | K118: 0.1678770754 | L118: 0.03296703297 | N118: 0.3186813187 | T118: 0.1678770754 | U118: 0.03296703297 | AW118: 63834000
A119: 87 | B119: =IF(A119>$A$8,"",OFFSET(InputPriceData!B$15,$A119+$A$11,0,1,1)) -> 2020-01-27 | C119: =IF(A119>$A$8,"",OFFSET(InputPriceData!G$15,CalculationsAndCharts!$A119+$A$11,IF($C$5,8,0),1,1)) -> 84062500 | D119: =IF(A119>$A$8,"",OFFSET(InputPriceData!C$15,CalculationsAndCharts!$A119+$A$11,IF($C$5,8,0),1,1)) -> 323.029999 | E119: =IF(A119>$A$8,"",OFFSET(InputPriceData!D$15,CalculationsAndCharts!$A119+$A$11,IF($C$5,8,0),1,1)) -> 325.119995 | F119: =IF(A119>$A$8,"",OFFSET(InputPriceData!E$15,CalculationsAndCharts!$A119+$A$11,IF($C$5,8,0),1,1)) -> 322.660004 | G119: =IF(A119>$A$8,"",OFFSET(InputPriceData!F$15,CalculationsAndCharts!$A119+$A$11,IF($C$5,8,0),1,1)) -> 323.5 | H119: -5.269989 | I119: 11.080017 | J119: 11.220032 | K119: -0.006278685755 | L119: 0.2747252747 | N119: 0.5164835165 | T119: -0.006278685755 | U119: 0.2747252747 | AW119: 84062500
A120: 88 | B120: =IF(A120>$A$8,"",OFFSET(InputPriceData!B$15,$A120+$A$11,0,1,1)) -> 2020-01-24 | C120: =IF(A120>$A$8,"",OFFSET(InputPriceData!G$15,CalculationsAndCharts!$A120+$A$11,IF($C$5,8,0),1,1)) -> 87578400 | D120: =IF(A120>$A$8,"",OFFSET(InputPriceData!C$15,CalculationsAndCharts!$A120+$A$11,IF($C$5,8,0),1,1)) -> 332.440002 | E120: =IF(A120>$A$8,"",OFFSET(InputPriceData!D$15,CalculationsAndCharts!$A120+$A$11,IF($C$5,8,0),1,1)) -> 332.529999 | F120: =IF(A120>$A$8,"",OFFSET(InputPriceData!E$15,CalculationsAndCharts!$A120+$A$11,IF($C$5,8,0),1,1)) -> 327.359985 | G120: =IF(A120>$A$8,"",OFFSET(InputPriceData!F$15,CalculationsAndCharts!$A120+$A$11,IF($C$5,8,0),1,1)) -> 328.769989 | H120: -2.950012 | I120: 12.310028 | J120: 5.950043 | K120: 0.3483001244 | L120: 0.3186813187 | N120: 0.7582417582 | T120: 0.3483001244 | U120: 0.3186813187 | AX120: 87578400
A121: 89 | B121: =IF(A121>$A$8,"",OFFSET(InputPriceData!B$15,$A121+$A$11,0,1,1)) -> 2020-01-23 | C121: =IF(A121>$A$8,"",OFFSET(InputPriceData!G$15,CalculationsAndCharts!$A121+$A$11,IF($C$5,8,0),1,1)) -> 51963000 | D121: =IF(A121>$A$8,"",OFFSET(InputPriceData!C$15,CalculationsAndCharts!$A121+$A$11,IF($C$5,8,0),1,1)) -> 330.630005 | E121: =IF(A121>$A$8,"",OFFSET(InputPriceData!D$15,CalculationsAndCharts!$A121+$A$11,IF($C$5,8,0),1,1)) -> 332.170013 | F121: =IF(A121>$A$8,"",OFFSET(InputPriceData!E$15,CalculationsAndCharts!$A121+$A$11,IF($C$5,8,0),1,1)) -> 329.410004 | G121: =IF(A121>$A$8,"",OFFSET(InputPriceData!F$15,CalculationsAndCharts!$A121+$A$11,IF($C$5,8,0),1,1)) -> 331.720001 | H121: 0.380005 | I121: 12.310028 | J121: 5.460022 | K121: 0.385480401 | L121: 0.3626373626 | N121: 0.8681318681 | T121: 0.385480401 | U121: 0.3626373626 | AW121: 51963000
A122: 90 | B122: =IF(A122>$A$8,"",OFFSET(InputPriceData!B$15,$A122+$A$11,0,1,1)) -> 2020-01-22 | C122: =IF(A122>$A$8,"",OFFSET(InputPriceData!G$15,CalculationsAndCharts!$A122+$A$11,IF($C$5,8,0),1,1)) -> 48914900 | D122: =IF(A122>$A$8,"",OFFSET(InputPriceData!C$15,CalculationsAndCharts!$A122+$A$11,IF($C$5,8,0),1,1)) -> 332.23999 | E122: =IF(A122>$A$8,"",OFFSET(InputPriceData!D$15,CalculationsAndCharts!$A122+$A$11,IF($C$5,8,0),1,1)) -> 332.950012 | F122: =IF(A122>$A$8,"",OFFSET(InputPriceData!E$15,CalculationsAndCharts!$A122+$A$11,IF($C$5,8,0),1,1)) -> 331.170013 | G122: =IF(A122>$A$8,"",OFFSET(InputPriceData!F$15,CalculationsAndCharts!$A122+$A$11,IF($C$5,8,0),1,1)) -> 331.339996 | H122: 0.040008 | I122: 14.940033 | J122: 5.460022 | K122: 0.4647051687 | L122: 0.1868131868 | N122: 0.8021978022 | T122: 0.4647051687 | U122: 0.1868131868 | AX122: 48914900
A123: 91 | B123: =IF(A123>$A$8,"",OFFSET(InputPriceData!B$15,$A123+$A$11,0,1,1)) -> 2020-01-21 | C123: =IF(A123>$A$8,"",OFFSET(InputPriceData!G$15,CalculationsAndCharts!$A123+$A$11,IF($C$5,8,0),1,1)) -> 77742400 | D123: =IF(A123>$A$8,"",OFFSET(InputPriceData!C$15,CalculationsAndCharts!$A123+$A$11,IF($C$5,8,0),1,1)) -> 330.899994 | E123: =IF(A123>$A$8,"",OFFSET(InputPriceData!D$15,CalculationsAndCharts!$A123+$A$11,IF($C$5,8,0),1,1)) -> 332.179993 | F123: =IF(A123>$A$8,"",OFFSET(InputPriceData!E$15,CalculationsAndCharts!$A123+$A$11,IF($C$5,8,0),1,1)) -> 330.820007 | G123: =IF(A123>$A$8,"",OFFSET(InputPriceData!F$15,CalculationsAndCharts!$A123+$A$11,IF($C$5,8,0),1,1)) -> 331.299988 | H123: -0.650024 | I123: 15.680023 | J123: 5.460022 | K123: 0.4834427268 | L123: -0.03296703297 | N123: 0.8241758242 | T123: 0.4834427268 | U123: -0.03296703297 | AW123: 77742400
A124: 92 | B124: =IF(A124>$A$8,"",OFFSET(InputPriceData!B$15,$A124+$A$11,0,1,1)) -> 2020-01-17 | C124: =IF(A124>$A$8,"",OFFSET(InputPriceData!G$15,CalculationsAndCharts!$A124+$A$11,IF($C$5,8,0),1,1)) -> 95846000 | D124: =IF(A124>$A$8,"",OFFSET(InputPriceData!C$15,CalculationsAndCharts!$A124+$A$11,IF($C$5,8,0),1,1)) -> 331.700012 | E124: =IF(A124>$A$8,"",OFFSET(InputPriceData!D$15,CalculationsAndCharts!$A124+$A$11,IF($C$5,8,0),1,1)) -> 332.179993 | F124: =IF(A124>$A$8,"",OFFSET(InputPriceData!E$15,CalculationsAndCharts!$A124+$A$11,IF($C$5,8,0),1,1)) -> 330.850006 | G124: =IF(A124>$A$8,"",OFFSET(InputPriceData!F$15,CalculationsAndCharts!$A124+$A$11,IF($C$5,8,0),1,1)) -> 331.950012 | H124: 1.029999 | I124: 15.680023 | J124: 6.589996 | K124: 0.4081732934 | L124: -0.2307692308 | N124: 0.8461538462 | T124: 0.4081732934 | U124: -0.2307692308 | AW124: 95846000
A125: 93 | B125: =IF(A125>$A$8,"",OFFSET(InputPriceData!B$15,$A125+$A$11,0,1,1)) -> 2020-01-16 | C125: =IF(A125>$A$8,"",OFFSET(InputPriceData!G$15,CalculationsAndCharts!$A125+$A$11,IF($C$5,8,0),1,1)) -> 54050300 | D125: =IF(A125>$A$8,"",OFFSET(InputPriceData!C$15,CalculationsAndCharts!$A125+$A$11,IF($C$5,8,0),1,1)) -> 329.700012 | E125: =IF(A125>$A$8,"",OFFSET(InputPriceData!D$15,CalculationsAndCharts!$A125+$A$11,IF($C$5,8,0),1,1)) -> 330.920013 | F125: =IF(A125>$A$8,"",OFFSET(InputPriceData!E$15,CalculationsAndCharts!$A125+$A$11,IF($C$5,8,0),1,1)) -> 329.450012 | G125: =IF(A125>$A$8,"",OFFSET(InputPriceData!F$15,CalculationsAndCharts!$A125+$A$11,IF($C$5,8,0),1,1)) -> 330.920013 | H125: 2.730011 | I125: 14.650024 | J125: 6.670013 | K125: 0.3742963016 | L125: -0.4065934066 | N125: 0.7582417582 | T125: 0.3742963016 | U125: -0.4065934066 | AW125: 54050300
A126: 94 | B126: =IF(A126>$A$8,"",OFFSET(InputPriceData!B$15,$A126+$A$11,0,1,1)) -> 2020-01-15 | C126: =IF(A126>$A$8,"",OFFSET(InputPriceData!G$15,CalculationsAndCharts!$A126+$A$11,IF($C$5,8,0),1,1)) -> 72056600 | D126: =IF(A126>$A$8,"",OFFSET(InputPriceData!C$15,CalculationsAndCharts!$A126+$A$11,IF($C$5,8,0),1,1)) -> 327.350006 | E126: =IF(A126>$A$8,"",OFFSET(InputPriceData!D$15,CalculationsAndCharts!$A126+$A$11,IF($C$5,8,0),1,1)) -> 329.019989 | F126: =IF(A126>$A$8,"",OFFSET(InputPriceData!E$15,CalculationsAndCharts!$A126+$A$11,IF($C$5,8,0),1,1)) -> 327.26001 | G126: =IF(A126>$A$8,"",OFFSET(InputPriceData!F$15,CalculationsAndCharts!$A126+$A$11,IF($C$5,8,0),1,1)) -> 328.190002 | H126: 0.73999 | I126: 13.630004 | J126: 6.670013 | K126: 0.3428564124 | L126: -0.5604395604 | N126: 0.6483516484 | T126: 0.3428564124 | U126: -0.5604395604 | AW126: 72056600
A127: 95 | B127: =IF(A127>$A$8,"",OFFSET(InputPriceData!B$15,$A127+$A$11,0,1,1)) -> 2020-01-14 | C127: =IF(A127>$A$8,"",OFFSET(InputPriceData!G$15,CalculationsAndCharts!$A127+$A$11,IF($C$5,8,0),1,1)) -> 62832800 | D127: =IF(A127>$A$8,"",OFFSET(InputPriceData!C$15,CalculationsAndCharts!$A127+$A$11,IF($C$5,8,0),1,1)) -> 327.470001 | E127: =IF(A127>$A$8,"",OFFSET(InputPriceData!D$15,CalculationsAndCharts!$A127+$A$11,IF($C$5,8,0),1,1)) -> 328.619995 | F127: =IF(A127>$A$8,"",OFFSET(InputPriceData!E$15,CalculationsAndCharts!$A127+$A$11,IF($C$5,8,0),1,1)) -> 326.839996 | G127: =IF(A127>$A$8,"",OFFSET(InputPriceData!F$15,CalculationsAndCharts!$A127+$A$11,IF($C$5,8,0),1,1)) -> 327.450012 | H127: -0.5 | I127: 12.900024 | J127: 6.670013 | K127: 0.3183443649 | L127: -0.6263736264 | N127: 0.6263736264 | T127: 0.3183443649 | U127: -0.6263736264 | AX127: 62832800
A128: 96 | B128: =IF(A128>$A$8,"",OFFSET(InputPriceData!B$15,$A128+$A$11,0,1,1)) -> 2020-01-13 | C128: =IF(A128>$A$8,"",OFFSET(InputPriceData!G$15,CalculationsAndCharts!$A128+$A$11,IF($C$5,8,0),1,1)) -> 47086800 | D128: =IF(A128>$A$8,"",OFFSET(InputPriceData!C$15,CalculationsAndCharts!$A128+$A$11,IF($C$5,8,0),1,1)) -> 326.390015 | E128: =IF(A128>$A$8,"",OFFSET(InputPriceData!D$15,CalculationsAndCharts!$A128+$A$11,IF($C$5,8,0),1,1)) -> 327.959991 | F128: =IF(A128>$A$8,"",OFFSET(InputPriceData!E$15,CalculationsAndCharts!$A128+$A$11,IF($C$5,8,0),1,1)) -> 325.920013 | G128: =IF(A128>$A$8,"",OFFSET(InputPriceData!F$15,CalculationsAndCharts!$A128+$A$11,IF($C$5,8,0),1,1)) -> 327.950012 | H128: 2.240021 | I128: 13.390014 | J128: 6.170013 | K128: 0.369120196 | L128: -0.6923076923 | N128: 0.6263736264 | T128: 0.369120196 | U128: -0.6923076923 | AW128: 47086800
A129: 97 | B129: =IF(A129>$A$8,"",OFFSET(InputPriceData!B$15,$A129+$A$11,0,1,1)) -> 2020-01-10 | C129: =IF(A129>$A$8,"",OFFSET(InputPriceData!G$15,CalculationsAndCharts!$A129+$A$11,IF($C$5,8,0),1,1)) -> 53029300 | D129: =IF(A129>$A$8,"",OFFSET(InputPriceData!C$15,CalculationsAndCharts!$A129+$A$11,IF($C$5,8,0),1,1)) -> 327.290009 | E129: =IF(A129>$A$8,"",OFFSET(InputPriceData!D$15,CalculationsAndCharts!$A129+$A$11,IF($C$5,8,0),1,1)) -> 327.459991 | F129: =IF(A129>$A$8,"",OFFSET(InputPriceData!E$15,CalculationsAndCharts!$A129+$A$11,IF($C$5,8,0),1,1)) -> 325.200012 | G129: =IF(A129>$A$8,"",OFFSET(InputPriceData!F$15,CalculationsAndCharts!$A129+$A$11,IF($C$5,8,0),1,1)) -> 325.709991 | H129: -0.940003 | I129: 11.149993 | J129: 6.339996 | K129: 0.2750142953 | L129: -0.6043956044 | N129: 0.6263736264 | T129: 0.2750142953 | U129: -0.6043956044 | AX129: 53029300
A130: 98 | B130: =IF(A130>$A$8,"",OFFSET(InputPriceData!B$15,$A130+$A$11,0,1,1)) -> 2020-01-09 | C130: =IF(A130>$A$8,"",OFFSET(InputPriceData!G$15,CalculationsAndCharts!$A130+$A$11,IF($C$5,8,0),1,1)) -> 48473300 | D130: =IF(A130>$A$8,"",OFFSET(InputPriceData!C$15,CalculationsAndCharts!$A130+$A$11,IF($C$5,8,0),1,1)) -> 326.160004 | E130: =IF(A130>$A$8,"",OFFSET(InputPriceData!D$15,CalculationsAndCharts!$A130+$A$11,IF($C$5,8,0),1,1)) -> 326.730011 | F130: =IF(A130>$A$8,"",OFFSET(InputPriceData!E$15,CalculationsAndCharts!$A130+$A$11,IF($C$5,8,0),1,1)) -> 325.519989 | G130: =IF(A130>$A$8,"",OFFSET(InputPriceData!F$15,CalculationsAndCharts!$A130+$A$11,IF($C$5,8,0),1,1)) -> 326.649994 | H130: 2.199982 | I130: 12.459991 | J130: 5.399993 | K130: 0.3952969947 | L130: -0.3846153846 | N130: 0.6263736264 | T130: 0.3952969947 | U130: -0.3846153846 | AW130: 48473300
A131: 99 | B131: =IF(A131>$A$8,"",OFFSET(InputPriceData!B$15,$A131+$A$11,0,1,1)) -> 2020-01-08 | C131: =IF(A131>$A$8,"",OFFSET(InputPriceData!G$15,CalculationsAndCharts!$A131+$A$11,IF($C$5,8,0),1,1)) -> 68296000 | D131: =IF(A131>$A$8,"",OFFSET(InputPriceData!C$15,CalculationsAndCharts!$A131+$A$11,IF($C$5,8,0),1,1)) -> 322.940002 | E131: =IF(A131>$A$8,"",OFFSET(InputPriceData!D$15,CalculationsAndCharts!$A131+$A$11,IF($C$5,8,0),1,1)) -> 325.779999 | F131: =IF(A131>$A$8,"",OFFSET(InputPriceData!E$15,CalculationsAndCharts!$A131+$A$11,IF($C$5,8,0),1,1)) -> 322.670013 | G131: =IF(A131>$A$8,"",OFFSET(InputPriceData!F$15,CalculationsAndCharts!$A131+$A$11,IF($C$5,8,0),1,1)) -> 324.450012 | H131: 1.720001 | I131: 10.279998 | J131: 5.399993 | K131: 0.3112249873 | L131: -0.1868131868 | N131: 0.6263736264 | T131: 0.3112249873 | U131: -0.1868131868 | AW131: 68296000
A132: 100 | B132: =IF(A132>$A$8,"",OFFSET(InputPriceData!B$15,$A132+$A$11,0,1,1)) -> 2020-01-07 | C132: =IF(A132>$A$8,"",OFFSET(InputPriceData!G$15,CalculationsAndCharts!$A132+$A$11,IF($C$5,8,0),1,1)) -> 40496400 | D132: =IF(A132>$A$8,"",OFFSET(InputPriceData!C$15,CalculationsAndCharts!$A132+$A$11,IF($C$5,8,0),1,1)) -> 323.019989 | E132: =IF(A132>$A$8,"",OFFSET(InputPriceData!D$15,CalculationsAndCharts!$A132+$A$11,IF($C$5,8,0),1,1)) -> 323.540009 | F132: =IF(A132>$A$8,"",OFFSET(InputPriceData!E$15,CalculationsAndCharts!$A132+$A$11,IF($C$5,8,0),1,1)) -> 322.23999 | G132: =IF(A132>$A$8,"",OFFSET(InputPriceData!F$15,CalculationsAndCharts!$A132+$A$11,IF($C$5,8,0),1,1)) -> 322.730011 | H132: -0.910004 | I132: 8.630004 | J132: 5.399993 | K132: 0.2302217884 | L132: 0.01098901099 | N132: 0.6483516484 | T132: 0.2302217884 | U132: 0.01098901099 | AX132: 40496400
A133: 101 | B133: =IF(A133>$A$8,"",OFFSET(InputPriceData!B$15,$A133+$A$11,0,1,1)) -> 2020-01-06 | C133: =IF(A133>$A$8,"",OFFSET(InputPriceData!G$15,CalculationsAndCharts!$A133+$A$11,IF($C$5,8,0),1,1)) -> 55653900 | D133: =IF(A133>$A$8,"",OFFSET(InputPriceData!C$15,CalculationsAndCharts!$A133+$A$11,IF($C$5,8,0),1,1)) -> 320.48999 | E133: =IF(A133>$A$8,"",OFFSET(InputPriceData!D$15,CalculationsAndCharts!$A133+$A$11,IF($C$5,8,0),1,1)) -> 323.730011 | F133: =IF(A133>$A$8,"",OFFSET(InputPriceData!E$15,CalculationsAndCharts!$A133+$A$11,IF($C$5,8,0),1,1)) -> 320.359985 | G133: =IF(A133>$A$8,"",OFFSET(InputPriceData!F$15,CalculationsAndCharts!$A133+$A$11,IF($C$5,8,0),1,1)) -> 323.640015 | H133: 1.230011 | I133: 10.809997 | J133: 4.489989 | K133: 0.4130727963 | L133: 0.2307692308 | N133: 0.7362637363 | T133: 0.4130727963 | U133: 0.2307692308 | AW133: 55653900
A134: 102 | B134: =IF(A134>$A$8,"",OFFSET(InputPriceData!B$15,$A134+$A$11,0,1,1)) -> 2020-01-03 | C134: =IF(A134>$A$8,"",OFFSET(InputPriceData!G$15,CalculationsAndCharts!$A134+$A$11,IF($C$5,8,0),1,1)) -> 77709700 | D134: =IF(A134>$A$8,"",OFFSET(InputPriceData!C$15,CalculationsAndCharts!$A134+$A$11,IF($C$5,8,0),1,1)) -> 321.160004 | E134: =IF(A134>$A$8,"",OFFSET(InputPriceData!D$15,CalculationsAndCharts!$A134+$A$11,IF($C$5,8,0),1,1)) -> 323.640015 | F134: =IF(A134>$A$8,"",OFFSET(InputPriceData!E$15,CalculationsAndCharts!$A134+$A$11,IF($C$5,8,0),1,1)) -> 321.100006 | G134: =IF(A134>$A$8,"",OFFSET(InputPriceData!F$15,CalculationsAndCharts!$A134+$A$11,IF($C$5,8,0),1,1)) -> 322.410004 | H134: -2.459991 | I134: 9.769988 | J134: 4.489989 | K134: 0.3702670067 | L134: 0.3406593407 | N134: 0.7582417582 | T134: 0.3702670067 | U134: 0.3406593407 | AW134: 77709700
A135: 103 | B135: =IF(A135>$A$8,"",OFFSET(InputPriceData!B$15,$A135+$A$11,0,1,1)) -> 2020-01-02 | C135: =IF(A135>$A$8,"",OFFSET(InputPriceData!G$15,CalculationsAndCharts!$A135+$A$11,IF($C$5,8,0),1,1)) -> 59151200 | D135: =IF(A135>$A$8,"",OFFSET(InputPriceData!C$15,CalculationsAndCharts!$A135+$A$11,IF($C$5,8,0),1,1)) -> 323.540009 | E135: =IF(A135>$A$8,"",OFFSET(InputPriceData!D$15,CalculationsAndCharts!$A135+$A$11,IF($C$5,8,0),1,1)) -> 324.890015 | F135: =IF(A135>$A$8,"",OFFSET(InputPriceData!E$15,CalculationsAndCharts!$A135+$A$11,IF($C$5,8,0),1,1)) -> 322.529999 | G135: =IF(A135>$A$8,"",OFFSET(InputPriceData!F$15,CalculationsAndCharts!$A135+$A$11,IF($C$5,8,0),1,1)) -> 324.869995 | H135: 3.01001 | I135: 12.47998 | J135: 2.029998 | K135: 0.7201928218 | L135: 0.4285714286 | N135: 0.8241758242 | T135: 0.7201928218 | U135: 0.4285714286 | AW135: 59151200
A136: 104 | B136: =IF(A136>$A$8,"",OFFSET(InputPriceData!B$15,$A136+$A$11,0,1,1)) -> 2019-12-31 | C136: =IF(A136>$A$8,"",OFFSET(InputPriceData!G$15,CalculationsAndCharts!$A136+$A$11,IF($C$5,8,0),1,1)) -> 57077300 | D136: =IF(A136>$A$8,"",OFFSET(InputPriceData!C$15,CalculationsAndCharts!$A136+$A$11,IF($C$5,8,0),1,1)) -> 320.529999 | E136: =IF(A136>$A$8,"",OFFSET(InputPriceData!D$15,CalculationsAndCharts!$A136+$A$11,IF($C$5,8,0),1,1)) -> 322.130005 | F136: =IF(A136>$A$8,"",OFFSET(InputPriceData!E$15,CalculationsAndCharts!$A136+$A$11,IF($C$5,8,0),1,1)) -> 320.149994 | G136: =IF(A136>$A$8,"",OFFSET(InputPriceData!F$15,CalculationsAndCharts!$A136+$A$11,IF($C$5,8,0),1,1)) -> 321.859985 | H136: 0.779998 | I136: 10.359984 | J136: 2.029998 | K136: 0.672316231 | L136: 0.4945054945 | N136: 0.8241758242 | T136: 0.672316231 | U136: 0.4945054945 | AW136: 57077300
A137: 105 | B137: =IF(A137>$A$8,"",OFFSET(InputPriceData!B$15,$A137+$A$11,0,1,1)) -> 2019-12-30 | C137: =IF(A137>$A$8,"",OFFSET(InputPriceData!G$15,CalculationsAndCharts!$A137+$A$11,IF($C$5,8,0),1,1)) -> 49729100 | D137: =IF(A137>$A$8,"",OFFSET(InputPriceData!C$15,CalculationsAndCharts!$A137+$A$11,IF($C$5,8,0),1,1)) -> 322.950012 | E137: =IF(A137>$A$8,"",OFFSET(InputPriceData!D$15,CalculationsAndCharts!$A137+$A$11,IF($C$5,8,0),1,1)) -> 323.100006 | F137: =IF(A137>$A$8,"",OFFSET(InputPriceData!E$15,CalculationsAndCharts!$A137+$A$11,IF($C$5,8,0),1,1)) -> 320.549988 | G137: =IF(A137>$A$8,"",OFFSET(InputPriceData!F$15,CalculationsAndCharts!$A137+$A$11,IF($C$5,8,0),1,1)) -> 321.079987 | H137: -1.779998 | I137: 9.579986 | J137: 2.380004 | K137: 0.6020056873 | L137: 0.5824175824 | N137: 0.8681318681 | T137: 0.6020056873 | U137: 0.5824175824 | AX137: 49729100
A138: 106 | B138: =IF(A138>$A$8,"",OFFSET(InputPriceData!B$15,$A138+$A$11,0,1,1)) -> 2019-12-27 | C138: =IF(A138>$A$8,"",OFFSET(InputPriceData!G$15,CalculationsAndCharts!$A138+$A$11,IF($C$5,8,0),1,1)) -> 42528800 | D138: =IF(A138>$A$8,"",OFFSET(InputPriceData!C$15,CalculationsAndCharts!$A138+$A$11,IF($C$5,8,0),1,1)) -> 323.73999 | E138: =IF(A138>$A$8,"",OFFSET(InputPriceData!D$15,CalculationsAndCharts!$A138+$A$11,IF($C$5,8,0),1,1)) -> 323.799988 | F138: =IF(A138>$A$8,"",OFFSET(InputPriceData!E$15,CalculationsAndCharts!$A138+$A$11,IF($C$5,8,0),1,1)) -> 322.279999 | G138: =IF(A138>$A$8,"",OFFSET(InputPriceData!F$15,CalculationsAndCharts!$A138+$A$11,IF($C$5,8,0),1,1)) -> 322.859985 | H138: -0.080017 | I138: 9.579986 | J138: 1.589996 | K138: 0.7153091205 | L138: 0.6483516484 | N138: 0.9340659341 | T138: 0.7153091205 | U138: 0.6483516484 | AX138: 42528800
A139: 107 | B139: =IF(A139>$A$8,"",OFFSET(InputPriceData!B$15,$A139+$A$11,0,1,1)) -> 2019-12-26 | C139: =IF(A139>$A$8,"",OFFSET(InputPriceData!G$15,CalculationsAndCharts!$A139+$A$11,IF($C$5,8,0),1,1)) -> 30911200 | D139: =IF(A139>$A$8,"",OFFSET(InputPriceData!C$15,CalculationsAndCharts!$A139+$A$11,IF($C$5,8,0),1,1)) -> 321.649994 | E139: =IF(A139>$A$8,"",OFFSET(InputPriceData!D$15,CalculationsAndCharts!$A139+$A$11,IF($C$5,8,0),1,1)) -> 322.950012 | F139: =IF(A139>$A$8,"",OFFSET(InputPriceData!E$15,CalculationsAndCharts!$A139+$A$11,IF($C$5,8,0),1,1)) -> 321.640015 | G139: =IF(A139>$A$8,"",OFFSET(InputPriceData!F$15,CalculationsAndCharts!$A139+$A$11,IF($C$5,8,0),1,1)) -> 322.940002 | H139: 1.709991 | I139: 12.429992 | J139: 1.509979 | K139: 0.7833598076 | L139: 0.6703296703 | N139: 0.8901098901 | T139: 0.7833598076 | U139: 0.6703296703 | AW139: 30911200
A140: 108 | B140: =IF(A140>$A$8,"",OFFSET(InputPriceData!B$15,$A140+$A$11,0,1,1)) -> 2019-12-24 | C140: =IF(A140>$A$8,"",OFFSET(InputPriceData!G$15,CalculationsAndCharts!$A140+$A$11,IF($C$5,8,0),1,1)) -> 20270000 | D140: =IF(A140>$A$8,"",OFFSET(InputPriceData!C$15,CalculationsAndCharts!$A140+$A$11,IF($C$5,8,0),1,1)) -> 321.470001 | E140: =IF(A140>$A$8,"",OFFSET(InputPriceData!D$15,CalculationsAndCharts!$A140+$A$11,IF($C$5,8,0),1,1)) -> 321.519989 | F140: =IF(A140>$A$8,"",OFFSET(InputPriceData!E$15,CalculationsAndCharts!$A140+$A$11,IF($C$5,8,0),1,1)) -> 320.899994 | G140: =IF(A140>$A$8,"",OFFSET(InputPriceData!F$15,CalculationsAndCharts!$A140+$A$11,IF($C$5,8,0),1,1)) -> 321.230011 | H140: 0.01001 | I140: 11.279999 | J140: 1.509979 | K140: 0.7638809074 | L140: 0.6483516484 | N140: 0.8901098901 | T140: 0.7638809074 | U140: 0.6483516484 | AX140: 20270000
A141: 109 | B141: =IF(A141>$A$8,"",OFFSET(InputPriceData!B$15,$A141+$A$11,0,1,1)) -> 2019-12-23 | C141: =IF(A141>$A$8,"",OFFSET(InputPriceData!G$15,CalculationsAndCharts!$A141+$A$11,IF($C$5,8,0),1,1)) -> 52990000 | D141: =IF(A141>$A$8,"",OFFSET(InputPriceData!C$15,CalculationsAndCharts!$A141+$A$11,IF($C$5,8,0),1,1)) -> 321.589996 | E141: =IF(A141>$A$8,"",OFFSET(InputPriceData!D$15,CalculationsAndCharts!$A141+$A$11,IF($C$5,8,0),1,1)) -> 321.649994 | F141: =IF(A141>$A$8,"",OFFSET(InputPriceData!E$15,CalculationsAndCharts!$A141+$A$11,IF($C$5,8,0),1,1)) -> 321.059998 | G141: =IF(A141>$A$8,"",OFFSET(InputPriceData!F$15,CalculationsAndCharts!$A141+$A$11,IF($C$5,8,0),1,1)) -> 321.220001 | H141: 0.48999 | I141: 13.179992 | J141: 1.509979 | K141: 0.7944204247 | L141: 0.6263736264 | N141: 0.8901098901 | T141: 0.7944204247 | U141: 0.6263736264 | AX141: 52990000
A142: 110 | B142: =IF(A142>$A$8,"",OFFSET(InputPriceData!B$15,$A142+$A$11,0,1,1)) -> 2019-12-20 | C142: =IF(A142>$A$8,"",OFFSET(InputPriceData!G$15,CalculationsAndCharts!$A142+$A$11,IF($C$5,8,0),1,1)) -> 147142100 | D142: =IF(A142>$A$8,"",OFFSET(InputPriceData!C$15,CalculationsAndCharts!$A142+$A$11,IF($C$5,8,0),1,1)) -> 320.459991 | E142: =IF(A142>$A$8,"",OFFSET(InputPriceData!D$15,CalculationsAndCharts!$A142+$A$11,IF($C$5,8,0),1,1)) -> 321.970001 | F142: =IF(A142>$A$8,"",OFFSET(InputPriceData!E$15,CalculationsAndCharts!$A142+$A$11,IF($C$5,8,0),1,1)) -> 319.390015 | G142: =IF(A142>$A$8,"",OFFSET(InputPriceData!F$15,CalculationsAndCharts!$A142+$A$11,IF($C$5,8,0),1,1)) -> 320.730011 | H142: -0.169983 | I142: 12.690002 | J142: 3.600006 | K142: 0.5580105301 | L142: 0.6263736264 | N142: 0.8901098901 | T142: 0.5580105301 | U142: 0.6263736264 | AW142: 147142100
A143: 111 | B143: =IF(A143>$A$8,"",OFFSET(InputPriceData!B$15,$A143+$A$11,0,1,1)) -> 2019-12-19 | C143: =IF(A143>$A$8,"",OFFSET(InputPriceData!G$15,CalculationsAndCharts!$A143+$A$11,IF($C$5,8,0),1,1)) -> 85310500 | D143: =IF(A143>$A$8,"",OFFSET(InputPriceData!C$15,CalculationsAndCharts!$A143+$A$11,IF($C$5,8,0),1,1)) -> 319.799988 | E143: =IF(A143>$A$8,"",OFFSET(InputPriceData!D$15,CalculationsAndCharts!$A143+$A$11,IF($C$5,8,0),1,1)) -> 320.980011 | F143: =IF(A143>$A$8,"",OFFSET(InputPriceData!E$15,CalculationsAndCharts!$A143+$A$11,IF($C$5,8,0),1,1)) -> 319.519989 | G143: =IF(A143>$A$8,"",OFFSET(InputPriceData!F$15,CalculationsAndCharts!$A143+$A$11,IF($C$5,8,0),1,1)) -> 320.899994 | H143: 1.309998 | I143: 12.690002 | J143: 6.100006 | K143: 0.3507181051 | L143: 0.4505494505 | N143: 0.8681318681 | T143: 0.3507181051 | U143: 0.4505494505 | AW143: 85310500
A144: 112 | B144: =IF(A144>$A$8,"",OFFSET(InputPriceData!B$15,$A144+$A$11,0,1,1)) -> 2019-12-18 | C144: =IF(A144>$A$8,"",OFFSET(InputPriceData!G$15,CalculationsAndCharts!$A144+$A$11,IF($C$5,8,0),1,1)) -> 48133000 | D144: =IF(A144>$A$8,"",OFFSET(InputPriceData!C$15,CalculationsAndCharts!$A144+$A$11,IF($C$5,8,0),1,1)) -> 320 | E144: =IF(A144>$A$8,"",OFFSET(InputPriceData!D$15,CalculationsAndCharts!$A144+$A$11,IF($C$5,8,0),1,1)) -> 320.25 | F144: =IF(A144>$A$8,"",OFFSET(InputPriceData!E$15,CalculationsAndCharts!$A144+$A$11,IF($C$5,8,0),1,1)) -> 319.529999 | G144: =IF(A144>$A$8,"",OFFSET(InputPriceData!F$15,CalculationsAndCharts!$A144+$A$11,IF($C$5,8,0),1,1)) -> 319.589996 | H144: 0.019989 | I144: 11.380004 | J144: 7.270019 | K144: 0.2203742591 | L144: 0.1648351648 | N144: 0.7362637363 | T144: 0.2203742591 | U144: 0.1648351648 | AX144: 48133000
A145: 113 | B145: =IF(A145>$A$8,"",OFFSET(InputPriceData!B$15,$A145+$A$11,0,1,1)) -> 2019-12-17 | C145: =IF(A145>$A$8,"",OFFSET(InputPriceData!G$15,CalculationsAndCharts!$A145+$A$11,IF($C$5,8,0),1,1)) -> 61097700 | D145: =IF(A145>$A$8,"",OFFSET(InputPriceData!C$15,CalculationsAndCharts!$A145+$A$11,IF($C$5,8,0),1,1)) -> 319.920013 | E145: =IF(A145>$A$8,"",OFFSET(InputPriceData!D$15,CalculationsAndCharts!$A145+$A$11,IF($C$5,8,0),1,1)) -> 320.25 | F145: =IF(A145>$A$8,"",OFFSET(InputPriceData!E$15,CalculationsAndCharts!$A145+$A$11,IF($C$5,8,0),1,1)) -> 319.480011 | G145: =IF(A145>$A$8,"",OFFSET(InputPriceData!F$15,CalculationsAndCharts!$A145+$A$11,IF($C$5,8,0),1,1)) -> 319.570007 | H145: 0.070007 | I145: 12.760039 | J145: 7.270019 | K145: 0.2740890715 | L145: 0.01098901099 | N145: 0.5384615385 | T145: 0.2740890715 | U145: 0.01098901099 | AX145: 61097700
A146: 114 | B146: =IF(A146>$A$8,"",OFFSET(InputPriceData!B$15,$A146+$A$11,0,1,1)) -> 2019-12-16 | C146: =IF(A146>$A$8,"",OFFSET(InputPriceData!G$15,CalculationsAndCharts!$A146+$A$11,IF($C$5,8,0),1,1)) -> 82749700 | D146: =IF(A146>$A$8,"",OFFSET(InputPriceData!C$15,CalculationsAndCharts!$A146+$A$11,IF($C$5,8,0),1,1)) -> 319.220001 | E146: =IF(A146>$A$8,"",OFFSET(InputPriceData!D$15,CalculationsAndCharts!$A146+$A$11,IF($C$5,8,0),1,1)) -> 320.149994 | F146: =IF(A146>$A$8,"",OFFSET(InputPriceData!E$15,CalculationsAndCharts!$A146+$A$11,IF($C$5,8,0),1,1)) -> 317.25 | G146: =IF(A146>$A$8,"",OFFSET(InputPriceData!F$15,CalculationsAndCharts!$A146+$A$11,IF($C$5,8,0),1,1)) -> 319.5 | H146: 2.179993 | I146: 13.400024 | J146: 7.270019 | K146: 0.2965646951 | L146: -0.1428571429 | N146: 0.4065934066 | T146: 0.2965646951 | U146: -0.1428571429 | AW146: 82749700
A147: 115 | B147: =IF(A147>$A$8,"",OFFSET(InputPriceData!B$15,$A147+$A$11,0,1,1)) -> 2019-12-13 | C147: =IF(A147>$A$8,"",OFFSET(InputPriceData!G$15,CalculationsAndCharts!$A147+$A$11,IF($C$5,8,0),1,1)) -> 81503900 | D147: =IF(A147>$A$8,"",OFFSET(InputPriceData!C$15,CalculationsAndCharts!$A147+$A$11,IF($C$5,8,0),1,1)) -> 316.869995 | E147: =IF(A147>$A$8,"",OFFSET(InputPriceData!D$15,CalculationsAndCharts!$A147+$A$11,IF($C$5,8,0),1,1)) -> 318.670013 | F147: =IF(A147>$A$8,"",OFFSET(InputPriceData!E$15,CalculationsAndCharts!$A147+$A$11,IF($C$5,8,0),1,1)) -> 316.019989 | G147: =IF(A147>$A$8,"",OFFSET(InputPriceData!F$15,CalculationsAndCharts!$A147+$A$11,IF($C$5,8,0),1,1)) -> 317.320007 | H147: 0.190002 | I147: 13.630035 | J147: 7.270019 | K147: 0.3043061994 | L147: -0.2747252747 | N147: 0.3186813187 | T147: 0.3043061994 | U147: -0.2747252747 | AW147: 81503900
A148: 116 | B148: =IF(A148>$A$8,"",OFFSET(InputPriceData!B$15,$A148+$A$11,0,1,1)) -> 2019-12-12 | C148: =IF(A148>$A$8,"",OFFSET(InputPriceData!G$15,CalculationsAndCharts!$A148+$A$11,IF($C$5,8,0),1,1)) -> 96389600 | D148: =IF(A148>$A$8,"",OFFSET(InputPriceData!C$15,CalculationsAndCharts!$A148+$A$11,IF($C$5,8,0),1,1)) -> 314.429993 | E148: =IF(A148>$A$8,"",OFFSET(InputPriceData!D$15,CalculationsAndCharts!$A148+$A$11,IF($C$5,8,0),1,1)) -> 317.98999 | F148: =IF(A148>$A$8,"",OFFSET(InputPriceData!E$15,CalculationsAndCharts!$A148+$A$11,IF($C$5,8,0),1,1)) -> 314.170013 | G148: =IF(A148>$A$8,"",OFFSET(InputPriceData!F$15,CalculationsAndCharts!$A148+$A$11,IF($C$5,8,0),1,1)) -> 317.130005 | H148: 2.709992 | I148: 14.130035 | J148: 7.270019 | K148: 0.3205606864 | L148: -0.3626373626 | N148: 0.2967032967 | T148: 0.3205606864 | U148: -0.3626373626 | AW148: 96389600
A149: 117 | B149: =IF(A149>$A$8,"",OFFSET(InputPriceData!B$15,$A149+$A$11,0,1,1)) -> 2019-12-11 | C149: =IF(A149>$A$8,"",OFFSET(InputPriceData!G$15,CalculationsAndCharts!$A149+$A$11,IF($C$5,8,0),1,1)) -> 53429100 | D149: =IF(A149>$A$8,"",OFFSET(InputPriceData!C$15,CalculationsAndCharts!$A149+$A$11,IF($C$5,8,0),1,1)) -> 314.029999 | E149: =IF(A149>$A$8,"",OFFSET(InputPriceData!D$15,CalculationsAndCharts!$A149+$A$11,IF($C$5,8,0),1,1)) -> 314.700012 | F149: =IF(A149>$A$8,"",OFFSET(InputPriceData!E$15,CalculationsAndCharts!$A149+$A$11,IF($C$5,8,0),1,1)) -> 313.440002 | G149: =IF(A149>$A$8,"",OFFSET(InputPriceData!F$15,CalculationsAndCharts!$A149+$A$11,IF($C$5,8,0),1,1)) -> 314.420013 | H149: 0.890014 | I149: 11.420043 | J149: 7.770019 | K149: 0.190203867 | L149: -0.4725274725 | N149: 0.2747252747 | T149: 0.190203867 | U149: -0.4725274725 | AW149: 53429100
A150: 118 | B150: =IF(A150>$A$8,"",OFFSET(InputPriceData!B$15,$A150+$A$11,0,1,1)) -> 2019-12-10 | C150: =IF(A150>$A$8,"",OFFSET(InputPriceData!G$15,CalculationsAndCharts!$A150+$A$11,IF($C$5,8,0),1,1)) -> 52649800 | D150: =IF(A150>$A$8,"",OFFSET(InputPriceData!C$15,CalculationsAndCharts!$A150+$A$11,IF($C$5,8,0),1,1)) -> 313.820007 | E150: =IF(A150>$A$8,"",OFFSET(InputPriceData!D$15,CalculationsAndCharts!$A150+$A$11,IF($C$5,8,0),1,1)) -> 314.549988 | F150: =IF(A150>$A$8,"",OFFSET(InputPriceData!E$15,CalculationsAndCharts!$A150+$A$11,IF($C$5,8,0),1,1)) -> 312.809998 | G150: =IF(A150>$A$8,"",OFFSET(InputPriceData!F$15,CalculationsAndCharts!$A150+$A$11,IF($C$5,8,0),1,1)) -> 313.529999 | H150: -0.350006 | I150: 10.530029 | J150: 8.930023 | K150: 0.08222002696 | L150: -0.6043956044 | N150: 0.2747252747 | T150: 0.08222002696 | U150: -0.6043956044 | AX150: 52649800
A151: 119 | B151: =IF(A151>$A$8,"",OFFSET(InputPriceData!B$15,$A151+$A$11,0,1,1)) -> 2019-12-09 | C151: =IF(A151>$A$8,"",OFFSET(InputPriceData!G$15,CalculationsAndCharts!$A151+$A$11,IF($C$5,8,0),1,1)) -> 34838500 | D151: =IF(A151>$A$8,"",OFFSET(InputPriceData!C$15,CalculationsAndCharts!$A151+$A$11,IF($C$5,8,0),1,1)) -> 314.440002 | E151: =IF(A151>$A$8,"",OFFSET(InputPriceData!D$15,CalculationsAndCharts!$A151+$A$11,IF($C$5,8,0),1,1)) -> 315.179993 | F151: =IF(A151>$A$8,"",OFFSET(InputPriceData!E$15,CalculationsAndCharts!$A151+$A$11,IF($C$5,8,0),1,1)) -> 313.799988 | G151: =IF(A151>$A$8,"",OFFSET(InputPriceData!F$15,CalculationsAndCharts!$A151+$A$11,IF($C$5,8,0),1,1)) -> 313.880005 | H151: -0.98999 | I151: 10.530029 | J151: 8.670013 | K151: 0.09687562142 | L151: -0.6263736264 | N151: 0.2527472527 | T151: 0.09687562142 | U151: -0.6263736264 | AX151: 34838500
A152: 120 | B152: =IF(A152>$A$8,"",OFFSET(InputPriceData!B$15,$A152+$A$11,0,1,1)) -> 2019-12-06 | C152: =IF(A152>$A$8,"",OFFSET(InputPriceData!G$15,CalculationsAndCharts!$A152+$A$11,IF($C$5,8,0),1,1)) -> 48927000 | D152: =IF(A152>$A$8,"",OFFSET(InputPriceData!C$15,CalculationsAndCharts!$A152+$A$11,IF($C$5,8,0),1,1)) -> 314.119995 | E152: =IF(A152>$A$8,"",OFFSET(InputPriceData!D$15,CalculationsAndCharts!$A152+$A$11,IF($C$5,8,0),1,1)) -> 315.309998 | F152: =IF(A152>$A$8,"",OFFSET(InputPriceData!E$15,CalculationsAndCharts!$A152+$A$11,IF($C$5,8,0),1,1)) -> 314.109985 | G152: =IF(A152>$A$8,"",OFFSET(InputPriceData!F$15,CalculationsAndCharts!$A152+$A$11,IF($C$5,8,0),1,1)) -> 314.869995 | H152: 2.850006 | I152: 10.760009 | J152: 7.680023 | K152: 0.1670271505 | L152: -0.6483516484 | N152: 0.1758241758 | T152: 0.1670271505 | U152: -0.6483516484 | AW152: 48927000
A153: 121 | B153: =IF(A153>$A$8,"",OFFSET(InputPriceData!B$15,$A153+$A$11,0,1,1)) -> 2019-12-05 | C153: =IF(A153>$A$8,"",OFFSET(InputPriceData!G$15,CalculationsAndCharts!$A153+$A$11,IF($C$5,8,0),1,1)) -> 40709000 | D153: =IF(A153>$A$8,"",OFFSET(InputPriceData!C$15,CalculationsAndCharts!$A153+$A$11,IF($C$5,8,0),1,1)) -> 312.230011 | E153: =IF(A153>$A$8,"",OFFSET(InputPriceData!D$15,CalculationsAndCharts!$A153+$A$11,IF($C$5,8,0),1,1)) -> 312.25 | F153: =IF(A153>$A$8,"",OFFSET(InputPriceData!E$15,CalculationsAndCharts!$A153+$A$11,IF($C$5,8,0),1,1)) -> 310.579987 | G153: =IF(A153>$A$8,"",OFFSET(InputPriceData!F$15,CalculationsAndCharts!$A153+$A$11,IF($C$5,8,0),1,1)) -> 312.019989 | H153: 0.559998 | I153: 10.150024 | J153: 7.680023 | K153: 0.1385302574 | L153: -0.6923076923 | N153: 0.06593406593 | T153: 0.1385302574 | U153: -0.6923076923 | AX153: 40709000
A154: 122 | B154: =IF(A154>$A$8,"",OFFSET(InputPriceData!B$15,$A154+$A$11,0,1,1)) -> 2019-12-04 | C154: =IF(A154>$A$8,"",OFFSET(InputPriceData!G$15,CalculationsAndCharts!$A154+$A$11,IF($C$5,8,0),1,1)) -> 49080000 | D154: =IF(A154>$A$8,"",OFFSET(InputPriceData!C$15,CalculationsAndCharts!$A154+$A$11,IF($C$5,8,0),1,1)) -> 310.700012 | E154: =IF(A154>$A$8,"",OFFSET(InputPriceData!D$15,CalculationsAndCharts!$A154+$A$11,IF($C$5,8,0),1,1)) -> 312.119995 | F154: =IF(A154>$A$8,"",OFFSET(InputPriceData!E$15,CalculationsAndCharts!$A154+$A$11,IF($C$5,8,0),1,1)) -> 310.320007 | G154: =IF(A154>$A$8,"",OFFSET(InputPriceData!F$15,CalculationsAndCharts!$A154+$A$11,IF($C$5,8,0),1,1)) -> 311.459991 | H154: 1.910003 | I154: 10.040008 | J154: 7.680023 | K154: 0.1331817647 | L154: -0.6923076923 | N154: 0.1538461538 | T154: 0.1331817647 | U154: -0.6923076923 | AW154: 49080000
A155: 123 | B155: =IF(A155>$A$8,"",OFFSET(InputPriceData!B$15,$A155+$A$11,0,1,1)) -> 2019-12-03 | C155: =IF(A155>$A$8,"",OFFSET(InputPriceData!G$15,CalculationsAndCharts!$A155+$A$11,IF($C$5,8,0),1,1)) -> 73941700 | D155: =IF(A155>$A$8,"",OFFSET(InputPriceData!C$15,CalculationsAndCharts!$A155+$A$11,IF($C$5,8,0),1,1)) -> 308.649994 | E155: =IF(A155>$A$8,"",OFFSET(InputPriceData!D$15,CalculationsAndCharts!$A155+$A$11,IF($C$5,8,0),1,1)) -> 309.640015 | F155: =IF(A155>$A$8,"",OFFSET(InputPriceData!E$15,CalculationsAndCharts!$A155+$A$11,IF($C$5,8,0),1,1)) -> 307.130005 | G155: =IF(A155>$A$8,"",OFFSET(InputPriceData!F$15,CalculationsAndCharts!$A155+$A$11,IF($C$5,8,0),1,1)) -> 309.549988 | H155: -2.090027 | I155: 8.230011 | J155: 7.680023 | K155: 0.03456862506 | L155: -0.6923076923 | N155: 0.3296703297 | T155: 0.03456862506 | U155: -0.6923076923 | AW155: 73941700
A156: 124 | B156: =IF(A156>$A$8,"",OFFSET(InputPriceData!B$15,$A156+$A$11,0,1,1)) -> 2019-12-02 | C156: =IF(A156>$A$8,"",OFFSET(InputPriceData!G$15,CalculationsAndCharts!$A156+$A$11,IF($C$5,8,0),1,1)) -> 75767800 | D156: =IF(A156>$A$8,"",OFFSET(InputPriceData!C$15,CalculationsAndCharts!$A156+$A$11,IF($C$5,8,0),1,1)) -> 314.589996 | E156: =IF(A156>$A$8,"",OFFSET(InputPriceData!D$15,CalculationsAndCharts!$A156+$A$11,IF($C$5,8,0),1,1)) -> 314.660004 | F156: =IF(A156>$A$8,"",OFFSET(InputPriceData!E$15,CalculationsAndCharts!$A156+$A$11,IF($C$5,8,0),1,1)) -> 311.170013 | G156: =IF(A156>$A$8,"",OFFSET(InputPriceData!F$15,CalculationsAndCharts!$A156+$A$11,IF($C$5,8,0),1,1)) -> 311.640015 | H156: -2.669983 | I156: 8.880005 | J156: 5.589996 | K156: 0.2273675724 | L156: -0.6703296703 | N156: 0.5824175824 | T156: 0.2273675724 | U156: -0.6703296703 | AX156: 75767800
A157: 125 | B157: =IF(A157>$A$8,"",OFFSET(InputPriceData!B$15,$A157+$A$11,0,1,1)) -> 2019-11-29 | C157: =IF(A157>$A$8,"",OFFSET(InputPriceData!G$15,CalculationsAndCharts!$A157+$A$11,IF($C$5,8,0),1,1)) -> 36592700 | D157: =IF(A157>$A$8,"",OFFSET(InputPriceData!C$15,CalculationsAndCharts!$A157+$A$11,IF($C$5,8,0),1,1)) -> 314.859985 | E157: =IF(A157>$A$8,"",OFFSET(InputPriceData!D$15,CalculationsAndCharts!$A157+$A$11,IF($C$5,8,0),1,1)) -> 315.130005 | F157: =IF(A157>$A$8,"",OFFSET(InputPriceData!E$15,CalculationsAndCharts!$A157+$A$11,IF($C$5,8,0),1,1)) -> 314.059998 | G157: =IF(A157>$A$8,"",OFFSET(InputPriceData!F$15,CalculationsAndCharts!$A157+$A$11,IF($C$5,8,0),1,1)) -> 314.309998 | H157: -1.170013 | I157: 8.880005 | J157: 3.510009 | K157: 0.433413231 | L157: -0.6703296703 | N157: 0.7362637363 | T157: 0.433413231 | U157: -0.6703296703 | AX157: 36592700
A158: 126 | B158: =IF(A158>$A$8,"",OFFSET(InputPriceData!B$15,$A158+$A$11,0,1,1)) -> 2019-11-27 | C158: =IF(A158>$A$8,"",OFFSET(InputPriceData!G$15,CalculationsAndCharts!$A158+$A$11,IF($C$5,8,0),1,1)) -> 44444600 | D158: =IF(A158>$A$8,"",OFFSET(InputPriceData!C$15,CalculationsAndCharts!$A158+$A$11,IF($C$5,8,0),1,1)) -> 314.609985 | E158: =IF(A158>$A$8,"",OFFSET(InputPriceData!D$15,CalculationsAndCharts!$A158+$A$11,IF($C$5,8,0),1,1)) -> 315.480011 | F158: =IF(A158>$A$8,"",OFFSET(InputPriceData!E$15,CalculationsAndCharts!$A158+$A$11,IF($C$5,8,0),1,1)) -> 314.369995 | G158: =IF(A158>$A$8,"",OFFSET(InputPriceData!F$15,CalculationsAndCharts!$A158+$A$11,IF($C$5,8,0),1,1)) -> 315.480011 | H158: 1.400024 | I158: 9.640014 | J158: 2.339996 | K158: 0.6093499087 | L158: -0.5384615385 | N158: 0.7362637363 | T158: 0.6093499087 | U158: -0.5384615385 | AW158: 44444600
A159: 127 | B159: =IF(A159>$A$8,"",OFFSET(InputPriceData!B$15,$A159+$A$11,0,1,1)) -> 2019-11-26 | C159: =IF(A159>$A$8,"",OFFSET(InputPriceData!G$15,CalculationsAndCharts!$A159+$A$11,IF($C$5,8,0),1,1)) -> 37569000 | D159: =IF(A159>$A$8,"",OFFSET(InputPriceData!C$15,CalculationsAndCharts!$A159+$A$11,IF($C$5,8,0),1,1)) -> 313.410004 | E159: =IF(A159>$A$8,"",OFFSET(InputPriceData!D$15,CalculationsAndCharts!$A159+$A$11,IF($C$5,8,0),1,1)) -> 314.279999 | F159: =IF(A159>$A$8,"",OFFSET(InputPriceData!E$15,CalculationsAndCharts!$A159+$A$11,IF($C$5,8,0),1,1)) -> 313.059998 | G159: =IF(A159>$A$8,"",OFFSET(InputPriceData!F$15,CalculationsAndCharts!$A159+$A$11,IF($C$5,8,0),1,1)) -> 314.079987 | H159: 0.709992 | I159: 9.319977 | J159: 2.339996 | K159: 0.598627544 | L159: -0.5164835165 | N159: 0.7362637363 | T159: 0.598627544 | U159: -0.5164835165 | AW159: 37569000
A160: 128 | B160: =IF(A160>$A$8,"",OFFSET(InputPriceData!B$15,$A160+$A$11,0,1,1)) -> 2019-11-25 | C160: =IF(A160>$A$8,"",OFFSET(InputPriceData!G$15,CalculationsAndCharts!$A160+$A$11,IF($C$5,8,0),1,1)) -> 48647200 | D160: =IF(A160>$A$8,"",OFFSET(InputPriceData!C$15,CalculationsAndCharts!$A160+$A$11,IF($C$5,8,0),1,1)) -> 311.980011 | E160: =IF(A160>$A$8,"",OFFSET(InputPriceData!D$15,CalculationsAndCharts!$A160+$A$11,IF($C$5,8,0),1,1)) -> 313.369995 | F160: =IF(A160>$A$8,"",OFFSET(InputPriceData!E$15,CalculationsAndCharts!$A160+$A$11,IF($C$5,8,0),1,1)) -> 311.980011 | G160: =IF(A160>$A$8,"",OFFSET(InputPriceData!F$15,CalculationsAndCharts!$A160+$A$11,IF($C$5,8,0),1,1)) -> 313.369995 | H160: 2.410004 | I160: 8.679992 | J160: 2.339996 | K160: 0.5753178679 | L160: -0.3406593407 | N160: 0.7362637363 | T160: 0.5753178679 | U160: -0.3406593407 | AW160: 48647200
A161: 129 | B161: =IF(A161>$A$8,"",OFFSET(InputPriceData!B$15,$A161+$A$11,0,1,1)) -> 2019-11-22 | C161: =IF(A161>$A$8,"",OFFSET(InputPriceData!G$15,CalculationsAndCharts!$A161+$A$11,IF($C$5,8,0),1,1)) -> 44850200 | D161: =IF(A161>$A$8,"",OFFSET(InputPriceData!C$15,CalculationsAndCharts!$A161+$A$11,IF($C$5,8,0),1,1)) -> 311.089996 | E161: =IF(A161>$A$8,"",OFFSET(InputPriceData!D$15,CalculationsAndCharts!$A161+$A$11,IF($C$5,8,0),1,1)) -> 311.23999 | F161: =IF(A161>$A$8,"",OFFSET(InputPriceData!E$15,CalculationsAndCharts!$A161+$A$11,IF($C$5,8,0),1,1)) -> 309.850006 | G161: =IF(A161>$A$8,"",OFFSET(InputPriceData!F$15,CalculationsAndCharts!$A161+$A$11,IF($C$5,8,0),1,1)) -> 310.959991 | H161: 0.690002 | I161: 6.269988 | J161: 2.679992 | K161: 0.4011177679 | L161: -0.1868131868 | N161: 0.7362637363 | T161: 0.4011177679 | U161: -0.1868131868 | AW161: =IF(G161>=D161,C161,NA()) ->  | AX161: =IF(G161<D161,C161,NA()) -> 44850200
A162: 130 | B162: =IF(A162>$A$8,"",OFFSET(InputPriceData!B$15,$A162+$A$11,0,1,1)) -> 2019-11-21 | C162: =IF(A162>$A$8,"",OFFSET(InputPriceData!G$15,CalculationsAndCharts!$A162+$A$11,IF($C$5,8,0),1,1)) -> 54664700 | D162: =IF(A162>$A$8,"",OFFSET(InputPriceData!C$15,CalculationsAndCharts!$A162+$A$11,IF($C$5,8,0),1,1)) -> 310.890015 | E162: =IF(A162>$A$8,"",OFFSET(InputPriceData!D$15,CalculationsAndCharts!$A162+$A$11,IF($C$5,8,0),1,1)) -> 311.01001 | F162: =IF(A162>$A$8,"",OFFSET(InputPriceData!E$15,CalculationsAndCharts!$A162+$A$11,IF($C$5,8,0),1,1)) -> 309.390015 | G162: =IF(A162>$A$8,"",OFFSET(InputPriceData!F$15,CalculationsAndCharts!$A162+$A$11,IF($C$5,8,0),1,1)) -> 310.269989 | H162: =IF(A162>$A$8-1,NA(),G162-G163) -> -0.5 | I162: =IF(A162>$A$8-1-$A$16,NA(),SUMIF(OFFSET($H162,0,0,$A$16,1),">0")) -> 6.809966 | J162: =IF(A162>$A$8-1-$A$16,NA(),-SUMIF(OFFSET($H162,0,0,$A$16,1),"<0")) -> 2.679992 | K162: =IF(A162>$A$8-1-$A$16,NA(),IF(I162+J162<>0,(I162-J162)/(I162+J162),NA())) -> 0.4351941284 | L162: 0.05494505495 | N162: 0.7582417582 | T162: =IF($S$14=FALSE,NA(),K162) -> 0.4351941284 | U162: =IF($S$15=FALSE,NA(),L162) -> 0.05494505495 | V162: =IF($S$16=FALSE,NA(),N162) ->  | AX162: 54664700
A163: 131 | B163: =IF(A163>$A$8,"",OFFSET(InputPriceData!B$15,$A163+$A$11,0,1,1)) -> 2019-11-20 | C163: =IF(A163>$A$8,"",OFFSET(InputPriceData!G$15,CalculationsAndCharts!$A163+$A$11,IF($C$5,8,0),1,1)) -> 79406200 | D163: =IF(A163>$A$8,"",OFFSET(InputPriceData!C$15,CalculationsAndCharts!$A163+$A$11,IF($C$5,8,0),1,1)) -> 311.279999 | E163: =IF(A163>$A$8,"",OFFSET(InputPriceData!D$15,CalculationsAndCharts!$A163+$A$11,IF($C$5,8,0),1,1)) -> 311.850006 | F163: =IF(A163>$A$8,"",OFFSET(InputPriceData!E$15,CalculationsAndCharts!$A163+$A$11,IF($C$5,8,0),1,1)) -> 309.059998 | G163: =IF(A163>$A$8,"",OFFSET(InputPriceData!F$15,CalculationsAndCharts!$A163+$A$11,IF($C$5,8,0),1,1)) -> 310.769989 | H163: -1.160004 | I163: 9.619994 | J163: 2.179992 | K163: 0.6305093921 | L163: 0.2747252747 | N163: 0.8461538462 | T163: 0.6305093921 | U163: 0.2747252747 | AX163: 79406200
A164: 132 | B164: =IF(A164>$A$8,"",OFFSET(InputPriceData!B$15,$A164+$A$11,0,1,1)) -> 2019-11-19 | C164: =IF(A164>$A$8,"",OFFSET(InputPriceData!G$15,CalculationsAndCharts!$A164+$A$11,IF($C$5,8,0),1,1)) -> 67804700 | D164: =IF(A164>$A$8,"",OFFSET(InputPriceData!C$15,CalculationsAndCharts!$A164+$A$11,IF($C$5,8,0),1,1)) -> 312.679993 | E164: =IF(A164>$A$8,"",OFFSET(InputPriceData!D$15,CalculationsAndCharts!$A164+$A$11,IF($C$5,8,0),1,1)) -> 312.690002 | F164: =IF(A164>$A$8,"",OFFSET(InputPriceData!E$15,CalculationsAndCharts!$A164+$A$11,IF($C$5,8,0),1,1)) -> 311.220001 | G164: =IF(A164>$A$8,"",OFFSET(InputPriceData!F$15,CalculationsAndCharts!$A164+$A$11,IF($C$5,8,0),1,1)) -> 311.929993 | H164: -0.089996 | I164: 9.619994 | J164: 1.830016 | K164: 0.6803468294 | L164: 0.4725274725 | N164: 0.9120879121 | T164: 0.6803468294 | U164: 0.4725274725 | AX164: 67804700
A165: 133 | B165: =IF(A165>$A$8,"",OFFSET(InputPriceData!B$15,$A165+$A$11,0,1,1)) -> 2019-11-18 | C165: =IF(A165>$A$8,"",OFFSET(InputPriceData!G$15,CalculationsAndCharts!$A165+$A$11,IF($C$5,8,0),1,1)) -> 49228000 | D165: =IF(A165>$A$8,"",OFFSET(InputPriceData!C$15,CalculationsAndCharts!$A165+$A$11,IF($C$5,8,0),1,1)) -> 311.529999 | E165: =IF(A165>$A$8,"",OFFSET(InputPriceData!D$15,CalculationsAndCharts!$A165+$A$11,IF($C$5,8,0),1,1)) -> 312.279999 | F165: =IF(A165>$A$8,"",OFFSET(InputPriceData!E$15,CalculationsAndCharts!$A165+$A$11,IF($C$5,8,0),1,1)) -> 311.029999 | G165: =IF(A165>$A$8,"",OFFSET(InputPriceData!F$15,CalculationsAndCharts!$A165+$A$11,IF($C$5,8,0),1,1)) -> 312.019989 | H165: 0.22998 | I165: 10.550018 | J165: 1.74002 | K165: 0.7168405826 | L165: 0.5164835165 | N165: 0.9120879121 | T165: 0.7168405826 | U165: 0.5164835165 | AW165: 49228000
A166: 134 | B166: =IF(A166>$A$8,"",OFFSET(InputPriceData!B$15,$A166+$A$11,0,1,1)) -> 2019-11-15 | C166: =IF(A166>$A$8,"",OFFSET(InputPriceData!G$15,CalculationsAndCharts!$A166+$A$11,IF($C$5,8,0),1,1)) -> 62023600 | D166: =IF(A166>$A$8,"",OFFSET(InputPriceData!C$15,CalculationsAndCharts!$A166+$A$11,IF($C$5,8,0),1,1)) -> 311.019989 | E166: =IF(A166>$A$8,"",OFFSET(InputPriceData!D$15,CalculationsAndCharts!$A166+$A$11,IF($C$5,8,0),1,1)) -> 311.839996 | F166: =IF(A166>$A$8,"",OFFSET(InputPriceData!E$15,CalculationsAndCharts!$A166+$A$11,IF($C$5,8,0),1,1)) -> 310.26001 | G166: =IF(A166>$A$8,"",OFFSET(InputPriceData!F$15,CalculationsAndCharts!$A166+$A$11,IF($C$5,8,0),1,1)) -> 311.790009 | H166: 2.240021 | I166: 10.320038 | J166: 1.830017 | K166: 0.6987639974 | L166: 0.4065934066 | N166: 0.9120879121 | T166: 0.6987639974 | U166: 0.4065934066 | AW166: 62023600
A167: 135 | B167: =IF(A167>$A$8,"",OFFSET(InputPriceData!B$15,$A167+$A$11,0,1,1)) -> 2019-11-14 | C167: =IF(A167>$A$8,"",OFFSET(InputPriceData!G$15,CalculationsAndCharts!$A167+$A$11,IF($C$5,8,0),1,1)) -> 51219900 | D167: =IF(A167>$A$8,"",OFFSET(InputPriceData!C$15,CalculationsAndCharts!$A167+$A$11,IF($C$5,8,0),1,1)) -> 308.790009 | E167: =IF(A167>$A$8,"",OFFSET(InputPriceData!D$15,CalculationsAndCharts!$A167+$A$11,IF($C$5,8,0),1,1)) -> 309.640015 | F167: =IF(A167>$A$8,"",OFFSET(InputPriceData!E$15,CalculationsAndCharts!$A167+$A$11,IF($C$5,8,0),1,1)) -> 308.089996 | G167: =IF(A167>$A$8,"",OFFSET(InputPriceData!F$15,CalculationsAndCharts!$A167+$A$11,IF($C$5,8,0),1,1)) -> 309.549988 | H167: 0.449982 | I167: 9.779999 | J167: 1.830017 | K167: 0.6847520279 | L167: 0.2527472527 | N167: 0.8901098901 | T167: 0.6847520279 | U167: 0.2527472527 | AW167: 51219900
A168: 136 | B168: =IF(A168>$A$8,"",OFFSET(InputPriceData!B$15,$A168+$A$11,0,1,1)) -> 2019-11-13 | C168: =IF(A168>$A$8,"",OFFSET(InputPriceData!G$15,CalculationsAndCharts!$A168+$A$11,IF($C$5,8,0),1,1)) -> 53917700 | D168: =IF(A168>$A$8,"",OFFSET(InputPriceData!C$15,CalculationsAndCharts!$A168+$A$11,IF($C$5,8,0),1,1)) -> 307.910004 | E168: =IF(A168>$A$8,"",OFFSET(InputPriceData!D$15,CalculationsAndCharts!$A168+$A$11,IF($C$5,8,0),1,1)) -> 309.540009 | F168: =IF(A168>$A$8,"",OFFSET(InputPriceData!E$15,CalculationsAndCharts!$A168+$A$11,IF($C$5,8,0),1,1)) -> 307.660004 | G168: =IF(A168>$A$8,"",OFFSET(InputPriceData!F$15,CalculationsAndCharts!$A168+$A$11,IF($C$5,8,0),1,1)) -> 309.100006 | H168: 0.100006 | I168: 10.560028 | J168: 1.830017 | K168: 0.704598813 | L168: 0.3626373626 | N168: 0.8901098901 | T168: 0.704598813 | U168: 0.3626373626 | AW168: 53917700
A169: 137 | B169: =IF(A169>$A$8,"",OFFSET(InputPriceData!B$15,$A169+$A$11,0,1,1)) -> 2019-11-12 | C169: =IF(A169>$A$8,"",OFFSET(InputPriceData!G$15,CalculationsAndCharts!$A169+$A$11,IF($C$5,8,0),1,1)) -> 46484600 | D169: =IF(A169>$A$8,"",OFFSET(InputPriceData!C$15,CalculationsAndCharts!$A169+$A$11,IF($C$5,8,0),1,1)) -> 308.75 | E169: =IF(A169>$A$8,"",OFFSET(InputPriceData!D$15,CalculationsAndCharts!$A169+$A$11,IF($C$5,8,0),1,1)) -> 309.98999 | F169: =IF(A169>$A$8,"",OFFSET(InputPriceData!E$15,CalculationsAndCharts!$A169+$A$11,IF($C$5,8,0),1,1)) -> 308.149994 | G169: =IF(A169>$A$8,"",OFFSET(InputPriceData!F$15,CalculationsAndCharts!$A169+$A$11,IF($C$5,8,0),1,1)) -> 309 | H169: 0.649994 | I169: 10.950012 | J169: 1.830017 | K169: 0.7136130129 | L169: 0.4065934066 | N169: 0.8901098901 | T169: 0.7136130129 | U169: 0.4065934066 | AW169: 46484600
A170: 138 | B170: =IF(A170>$A$8,"",OFFSET(InputPriceData!B$15,$A170+$A$11,0,1,1)) -> 2019-11-11 | C170: =IF(A170>$A$8,"",OFFSET(InputPriceData!G$15,CalculationsAndCharts!$A170+$A$11,IF($C$5,8,0),1,1)) -> 35797300 | D170: =IF(A170>$A$8,"",OFFSET(InputPriceData!C$15,CalculationsAndCharts!$A170+$A$11,IF($C$5,8,0),1,1)) -> 307.420013 | E170: =IF(A170>$A$8,"",OFFSET(InputPriceData!D$15,CalculationsAndCharts!$A170+$A$11,IF($C$5,8,0),1,1)) -> 308.540009 | F170: =IF(A170>$A$8,"",OFFSET(InputPriceData!E$15,CalculationsAndCharts!$A170+$A$11,IF($C$5,8,0),1,1)) -> 307.269989 | G170: =IF(A170>$A$8,"",OFFSET(InputPriceData!F$15,CalculationsAndCharts!$A170+$A$11,IF($C$5,8,0),1,1)) -> 308.350006 | H170: -0.589996 | I170: 11.170013 | J170: 1.830017 | K170: 0.7184595728 | L170: 0.4065934066 | N170: 0.8901098901 | T170: 0.7184595728 | U170: 0.4065934066 | AW170: 35797300
A171: 139 | B171: =IF(A171>$A$8,"",OFFSET(InputPriceData!B$15,$A171+$A$11,0,1,1)) -> 2019-11-08 | C171: =IF(A171>$A$8,"",OFFSET(InputPriceData!G$15,CalculationsAndCharts!$A171+$A$11,IF($C$5,8,0),1,1)) -> 49032100 | D171: =IF(A171>$A$8,"",OFFSET(InputPriceData!C$15,CalculationsAndCharts!$A171+$A$11,IF($C$5,8,0),1,1)) -> 307.799988 | E171: =IF(A171>$A$8,"",OFFSET(InputPriceData!D$15,CalculationsAndCharts!$A171+$A$11,IF($C$5,8,0),1,1)) -> 309 | F171: =IF(A171>$A$8,"",OFFSET(InputPriceData!E$15,CalculationsAndCharts!$A171+$A$11,IF($C$5,8,0),1,1)) -> 307.029999 | G171: =IF(A171>$A$8,"",OFFSET(InputPriceData!F$15,CalculationsAndCharts!$A171+$A$11,IF($C$5,8,0),1,1)) -> 308.940002 | H171: 0.760009 | I171: 11.170013 | J171: 2.220001 | K171: 0.668409458 | L171: 0.3406593407 | N171: 0.9120879121 | T171: 0.668409458 | U171: 0.3406593407 | AW171: 49032100
A172: 140 | B172: =IF(A172>$A$8,"",OFFSET(InputPriceData!B$15,$A172+$A$11,0,1,1)) -> 2019-11-07 | C172: =IF(A172>$A$8,"",OFFSET(InputPriceData!G$15,CalculationsAndCharts!$A172+$A$11,IF($C$5,8,0),1,1)) -> 54272300 | D172: =IF(A172>$A$8,"",OFFSET(InputPriceData!C$15,CalculationsAndCharts!$A172+$A$11,IF($C$5,8,0),1,1)) -> 308.570007 | E172: =IF(A172>$A$8,"",OFFSET(InputPriceData!D$15,CalculationsAndCharts!$A172+$A$11,IF($C$5,8,0),1,1)) -> 309.649994 | F172: =IF(A172>$A$8,"",OFFSET(InputPriceData!E$15,CalculationsAndCharts!$A172+$A$11,IF($C$5,8,0),1,1)) -> 307.660004 | G172: =IF(A172>$A$8,"",OFFSET(InputPriceData!F$15,CalculationsAndCharts!$A172+$A$11,IF($C$5,8,0),1,1)) -> 308.179993 | H172: 1.079987 | I172: 12.429993 | J172: 2.220001 | K172: 0.696928067 | L172: 0.3846153846 | N172: 0.8681318681 | T172: 0.696928067 | U172: 0.3846153846 | AX172: 54272300
A173: 141 | B173: =IF(A173>$A$8,"",OFFSET(InputPriceData!B$15,$A173+$A$11,0,1,1)) -> 2019-11-06 | C173: =IF(A173>$A$8,"",OFFSET(InputPriceData!G$15,CalculationsAndCharts!$A173+$A$11,IF($C$5,8,0),1,1)) -> 46487100 | D173: =IF(A173>$A$8,"",OFFSET(InputPriceData!C$15,CalculationsAndCharts!$A173+$A$11,IF($C$5,8,0),1,1)) -> 307.029999 | E173: =IF(A173>$A$8,"",OFFSET(InputPriceData!D$15,CalculationsAndCharts!$A173+$A$11,IF($C$5,8,0),1,1)) -> 307.399994 | F173: =IF(A173>$A$8,"",OFFSET(InputPriceData!E$15,CalculationsAndCharts!$A173+$A$11,IF($C$5,8,0),1,1)) -> 306.059998 | G173: =IF(A173>$A$8,"",OFFSET(InputPriceData!F$15,CalculationsAndCharts!$A173+$A$11,IF($C$5,8,0),1,1)) -> 307.100006 | H173: 0.070007 | I173: 11.350006 | J173: 3.529999 | K173: 0.5255379282 | L173: 0.4065934066 | N173: 0.8681318681 | T173: 0.5255379282 | U173: 0.4065934066 | AW173: 46487100
A174: 142 | B174: =IF(A174>$A$8,"",OFFSET(InputPriceData!B$15,$A174+$A$11,0,1,1)) -> 2019-11-05 | C174: =IF(A174>$A$8,"",OFFSET(InputPriceData!G$15,CalculationsAndCharts!$A174+$A$11,IF($C$5,8,0),1,1)) -> 42933200 | D174: =IF(A174>$A$8,"",OFFSET(InputPriceData!C$15,CalculationsAndCharts!$A174+$A$11,IF($C$5,8,0),1,1)) -> 307.589996 | E174: =IF(A174>$A$8,"",OFFSET(InputPriceData!D$15,CalculationsAndCharts!$A174+$A$11,IF($C$5,8,0),1,1)) -> 307.920013 | F174: =IF(A174>$A$8,"",OFFSET(InputPriceData!E$15,CalculationsAndCharts!$A174+$A$11,IF($C$5,8,0),1,1)) -> 306.709991 | G174: =IF(A174>$A$8,"",OFFSET(InputPriceData!F$15,CalculationsAndCharts!$A174+$A$11,IF($C$5,8,0),1,1)) -> 307.029999 | H174: -0.339996 | I174: 12.160004 | J174: 3.529999 | K174: 0.5500320809 | L174: 0.5164835165 | N174: 0.8461538462 | T174: 0.5500320809 | U174: 0.5164835165 | AX174: 42933200
A175: 143 | B175: =IF(A175>$A$8,"",OFFSET(InputPriceData!B$15,$A175+$A$11,0,1,1)) -> 2019-11-04 | C175: =IF(A175>$A$8,"",OFFSET(InputPriceData!G$15,CalculationsAndCharts!$A175+$A$11,IF($C$5,8,0),1,1)) -> 60606900 | D175: =IF(A175>$A$8,"",OFFSET(InputPriceData!C$15,CalculationsAndCharts!$A175+$A$11,IF($C$5,8,0),1,1)) -> 307.850006 | E175: =IF(A175>$A$8,"",OFFSET(InputPriceData!D$15,CalculationsAndCharts!$A175+$A$11,IF($C$5,8,0),1,1)) -> 308 | F175: =IF(A175>$A$8,"",OFFSET(InputPriceData!E$15,CalculationsAndCharts!$A175+$A$11,IF($C$5,8,0),1,1)) -> 306.959991 | G175: =IF(A175>$A$8,"",OFFSET(InputPriceData!F$15,CalculationsAndCharts!$A175+$A$11,IF($C$5,8,0),1,1)) -> 307.369995 | H175: 1.22998 | I175: 12.160004 | J175: 3.670014 | K175: 0.536322195 | L175: 0.5824175824 | N175: 0.8461538462 | T175: 0.536322195 | U175: 0.5824175824 | AX175: 60606900
A176: 144 | B176: =IF(A176>$A$8,"",OFFSET(InputPriceData!B$15,$A176+$A$11,0,1,1)) -> 2019-11-01 | C176: =IF(A176>$A$8,"",OFFSET(InputPriceData!G$15,CalculationsAndCharts!$A176+$A$11,IF($C$5,8,0),1,1)) -> 71141500 | D176: =IF(A176>$A$8,"",OFFSET(InputPriceData!C$15,CalculationsAndCharts!$A176+$A$11,IF($C$5,8,0),1,1)) -> 304.920013 | E176: =IF(A176>$A$8,"",OFFSET(InputPriceData!D$15,CalculationsAndCharts!$A176+$A$11,IF($C$5,8,0),1,1)) -> 306.190002 | F176: =IF(A176>$A$8,"",OFFSET(InputPriceData!E$15,CalculationsAndCharts!$A176+$A$11,IF($C$5,8,0),1,1)) -> 304.73999 | G176: =IF(A176>$A$8,"",OFFSET(InputPriceData!F$15,CalculationsAndCharts!$A176+$A$11,IF($C$5,8,0),1,1)) -> 306.140015 | H176: 2.810028 | I176: 13.860017 | J176: 3.670014 | K176: 0.5812883617 | L176: 0.6483516484 | N176: 0.8021978022 | T176: 0.5812883617 | U176: 0.6483516484 | AW176: 71141500
A177: 145 | B177: =IF(A177>$A$8,"",OFFSET(InputPriceData!B$15,$A177+$A$11,0,1,1)) -> 2019-10-31 | C177: =IF(A177>$A$8,"",OFFSET(InputPriceData!G$15,CalculationsAndCharts!$A177+$A$11,IF($C$5,8,0),1,1)) -> 69053800 | D177: =IF(A177>$A$8,"",OFFSET(InputPriceData!C$15,CalculationsAndCharts!$A177+$A$11,IF($C$5,8,0),1,1)) -> 304.130005 | E177: =IF(A177>$A$8,"",OFFSET(InputPriceData!D$15,CalculationsAndCharts!$A177+$A$11,IF($C$5,8,0),1,1)) -> 304.130005 | F177: =IF(A177>$A$8,"",OFFSET(InputPriceData!E$15,CalculationsAndCharts!$A177+$A$11,IF($C$5,8,0),1,1)) -> 301.730011 | G177: =IF(A177>$A$8,"",OFFSET(InputPriceData!F$15,CalculationsAndCharts!$A177+$A$11,IF($C$5,8,0),1,1)) -> 303.329987 | H177: -0.810028 | I177: 11.049989 | J177: 4.000001 | K177: 0.4684380521 | L177: 0.7142857143 | N177: 0.8021978022 | T177: 0.4684380521 | U177: 0.7142857143 | AX177: 69053800
A178: 146 | B178: =IF(A178>$A$8,"",OFFSET(InputPriceData!B$15,$A178+$A$11,0,1,1)) -> 2019-10-30 | C178: =IF(A178>$A$8,"",OFFSET(InputPriceData!G$15,CalculationsAndCharts!$A178+$A$11,IF($C$5,8,0),1,1)) -> 49643900 | D178: =IF(A178>$A$8,"",OFFSET(InputPriceData!C$15,CalculationsAndCharts!$A178+$A$11,IF($C$5,8,0),1,1)) -> 303.429993 | E178: =IF(A178>$A$8,"",OFFSET(InputPriceData!D$15,CalculationsAndCharts!$A178+$A$11,IF($C$5,8,0),1,1)) -> 304.549988 | F178: =IF(A178>$A$8,"",OFFSET(InputPriceData!E$15,CalculationsAndCharts!$A178+$A$11,IF($C$5,8,0),1,1)) -> 301.98999 | G178: =IF(A178>$A$8,"",OFFSET(InputPriceData!F$15,CalculationsAndCharts!$A178+$A$11,IF($C$5,8,0),1,1)) -> 304.140015 | H178: 0.930024 | I178: 14.089998 | J178: 3.189973 | K178: 0.6307895424 | L178: 0.7802197802 | N178: 0.8021978022 | T178: 0.6307895424 | U178: 0.7802197802 | AW178: 49643900
A179: 147 | B179: =IF(A179>$A$8,"",OFFSET(InputPriceData!B$15,$A179+$A$11,0,1,1)) -> 2019-10-29 | C179: =IF(A179>$A$8,"",OFFSET(InputPriceData!G$15,CalculationsAndCharts!$A179+$A$11,IF($C$5,8,0),1,1)) -> 44284900 | D179: =IF(A179>$A$8,"",OFFSET(InputPriceData!C$15,CalculationsAndCharts!$A179+$A$11,IF($C$5,8,0),1,1)) -> 303 | E179: =IF(A179>$A$8,"",OFFSET(InputPriceData!D$15,CalculationsAndCharts!$A179+$A$11,IF($C$5,8,0),1,1)) -> 304.230011 | F179: =IF(A179>$A$8,"",OFFSET(InputPriceData!E$15,CalculationsAndCharts!$A179+$A$11,IF($C$5,8,0),1,1)) -> 302.859985 | G179: =IF(A179>$A$8,"",OFFSET(InputPriceData!F$15,CalculationsAndCharts!$A179+$A$11,IF($C$5,8,0),1,1)) -> 303.209991 | H179: -0.089997 | I179: 15.129975 | J179: 3.189973 | K179: 0.651748684 | L179: 0.8241758242 | N179: 0.8021978022 | T179: 0.651748684 | U179: 0.8241758242 | AW179: 44284900
A180: 148 | B180: =IF(A180>$A$8,"",OFFSET(InputPriceData!B$15,$A180+$A$11,0,1,1)) -> 2019-10-28 | C180: =IF(A180>$A$8,"",OFFSET(InputPriceData!G$15,CalculationsAndCharts!$A180+$A$11,IF($C$5,8,0),1,1)) -> 42147000 | D180: =IF(A180>$A$8,"",OFFSET(InputPriceData!C$15,CalculationsAndCharts!$A180+$A$11,IF($C$5,8,0),1,1)) -> 302.940002 | E180: =IF(A180>$A$8,"",OFFSET(InputPriceData!D$15,CalculationsAndCharts!$A180+$A$11,IF($C$5,8,0),1,1)) -> 303.850006 | F180: =IF(A180>$A$8,"",OFFSET(InputPriceData!E$15,CalculationsAndCharts!$A180+$A$11,IF($C$5,8,0),1,1)) -> 302.910004 | G180: =IF(A180>$A$8,"",OFFSET(InputPriceData!F$15,CalculationsAndCharts!$A180+$A$11,IF($C$5,8,0),1,1)) -> 303.299988 | H180: 1.699982 | I180: 17.869965 | J180: 3.099976 | K180: 0.7043409898 | L180: 0.8461538462 | N180: 0.8241758242 | T180: 0.7043409898 | U180: 0.8461538462 | AW180: 42147000
A181: 149 | B181: =IF(A181>$A$8,"",OFFSET(InputPriceData!B$15,$A181+$A$11,0,1,1)) -> 2019-10-25 | C181: =IF(A181>$A$8,"",OFFSET(InputPriceData!G$15,CalculationsAndCharts!$A181+$A$11,IF($C$5,8,0),1,1)) -> 45205400 | D181: =IF(A181>$A$8,"",OFFSET(InputPriceData!C$15,CalculationsAndCharts!$A181+$A$11,IF($C$5,8,0),1,1)) -> 299.73999 | E181: =IF(A181>$A$8,"",OFFSET(InputPriceData!D$15,CalculationsAndCharts!$A181+$A$11,IF($C$5,8,0),1,1)) -> 302.200012 | F181: =IF(A181>$A$8,"",OFFSET(InputPriceData!E$15,CalculationsAndCharts!$A181+$A$11,IF($C$5,8,0),1,1)) -> 299.679993 | G181: =IF(A181>$A$8,"",OFFSET(InputPriceData!F$15,CalculationsAndCharts!$A181+$A$11,IF($C$5,8,0),1,1)) -> 301.600006 | H181: 1.230011 | I181: 16.169983 | J181: 7.649964 | K181: 0.3576842132 | L181: 0.8461538462 | N181: 0.8241758242 | T181: 0.3576842132 | U181: 0.8461538462 | AW181: 45205400
A182: 150 | B182: =IF(A182>$A$8,"",OFFSET(InputPriceData!B$15,$A182+$A$11,0,1,1)) -> 2019-10-24 | C182: =IF(A182>$A$8,"",OFFSET(InputPriceData!G$15,CalculationsAndCharts!$A182+$A$11,IF($C$5,8,0),1,1)) -> 35453100 | D182: =IF(A182>$A$8,"",OFFSET(InputPriceData!C$15,CalculationsAndCharts!$A182+$A$11,IF($C$5,8,0),1,1)) -> 300.910004 | E182: =IF(A182>$A$8,"",OFFSET(InputPriceData!D$15,CalculationsAndCharts!$A182+$A$11,IF($C$5,8,0),1,1)) -> 301.070007 | F182: =IF(A182>$A$8,"",OFFSET(InputPriceData!E$15,CalculationsAndCharts!$A182+$A$11,IF($C$5,8,0),1,1)) -> 299.459991 | G182: =IF(A182>$A$8,"",OFFSET(InputPriceData!F$15,CalculationsAndCharts!$A182+$A$11,IF($C$5,8,0),1,1)) -> 300.369995 | H182: 0.48999 | I182: 14.939972 | J182: 8.919983 | K182: 0.252305128 | L182: 0.8461538462 | N182: 0.7802197802 | T182: 0.252305128 | U182: 0.8461538462 | AX182: 35453100
A183: 151 | B183: =IF(A183>$A$8,"",OFFSET(InputPriceData!B$15,$A183+$A$11,0,1,1)) -> 2019-10-23 | C183: =IF(A183>$A$8,"",OFFSET(InputPriceData!G$15,CalculationsAndCharts!$A183+$A$11,IF($C$5,8,0),1,1)) -> 34352200 | D183: =IF(A183>$A$8,"",OFFSET(InputPriceData!C$15,CalculationsAndCharts!$A183+$A$11,IF($C$5,8,0),1,1)) -> 298.730011 | E183: =IF(A183>$A$8,"",OFFSET(InputPriceData!D$15,CalculationsAndCharts!$A183+$A$11,IF($C$5,8,0),1,1)) -> 299.940002 | F183: =IF(A183>$A$8,"",OFFSET(InputPriceData!E$15,CalculationsAndCharts!$A183+$A$11,IF($C$5,8,0),1,1)) -> 298.5 | G183: =IF(A183>$A$8,"",OFFSET(InputPriceData!F$15,CalculationsAndCharts!$A183+$A$11,IF($C$5,8,0),1,1)) -> 299.880005 | H183: 0.869995 | I183: 18.379975 | J183: 8.919983 | K183: 0.3465203866 | L183: 0.8241758242 | N183: 0.6923076923 | T183: 0.3465203866 | U183: 0.8241758242 | AW183: 34352200
A184: 152 | B184: =IF(A184>$A$8,"",OFFSET(InputPriceData!B$15,$A184+$A$11,0,1,1)) -> 2019-10-22 | C184: =IF(A184>$A$8,"",OFFSET(InputPriceData!G$15,CalculationsAndCharts!$A184+$A$11,IF($C$5,8,0),1,1)) -> 48594700 | D184: =IF(A184>$A$8,"",OFFSET(InputPriceData!C$15,CalculationsAndCharts!$A184+$A$11,IF($C$5,8,0),1,1)) -> 300.579987 | E184: =IF(A184>$A$8,"",OFFSET(InputPriceData!D$15,CalculationsAndCharts!$A184+$A$11,IF($C$5,8,0),1,1)) -> 300.899994 | F184: =IF(A184>$A$8,"",OFFSET(InputPriceData!E$15,CalculationsAndCharts!$A184+$A$11,IF($C$5,8,0),1,1)) -> 298.910004 | G184: =IF(A184>$A$8,"",OFFSET(InputPriceData!F$15,CalculationsAndCharts!$A184+$A$11,IF($C$5,8,0),1,1)) -> 299.01001 | H184: -0.97998 | I184: 19.869995 | J184: 8.919983 | K184: 0.3803411034 | L184: 0.8461538462 | N184: 0.6923076923 | T184: 0.3803411034 | U184: 0.8461538462 | AX184: 48594700
A185: 153 | B185: =IF(A185>$A$8,"",OFFSET(InputPriceData!B$15,$A185+$A$11,0,1,1)) -> 2019-10-21 | C185: =IF(A185>$A$8,"",OFFSET(InputPriceData!G$15,CalculationsAndCharts!$A185+$A$11,IF($C$5,8,0),1,1)) -> 39048600 | D185: =IF(A185>$A$8,"",OFFSET(InputPriceData!C$15,CalculationsAndCharts!$A185+$A$11,IF($C$5,8,0),1,1)) -> 299.420013 | E185: =IF(A185>$A$8,"",OFFSET(InputPriceData!D$15,CalculationsAndCharts!$A185+$A$11,IF($C$5,8,0),1,1)) -> 300.209991 | F185: =IF(A185>$A$8,"",OFFSET(InputPriceData!E$15,CalculationsAndCharts!$A185+$A$11,IF($C$5,8,0),1,1)) -> 298.940002 | G185: =IF(A185>$A$8,"",OFFSET(InputPriceData!F$15,CalculationsAndCharts!$A185+$A$11,IF($C$5,8,0),1,1)) -> 299.98999 | H185: 2.019989 | I185: 19.869995 | J185: 13.119995 | K185: 0.2046075188 | L185: 0.8461538462 | N185: 0.7362637363 | T185: 0.2046075188 | U185: 0.8461538462 | AW185: 39048600
A186: 154 | B186: =IF(A186>$A$8,"",OFFSET(InputPriceData!B$15,$A186+$A$11,0,1,1)) -> 2019-10-18 | C186: =IF(A186>$A$8,"",OFFSET(InputPriceData!G$15,CalculationsAndCharts!$A186+$A$11,IF($C$5,8,0),1,1)) -> 64304000 | D186: =IF(A186>$A$8,"",OFFSET(InputPriceData!C$15,CalculationsAndCharts!$A186+$A$11,IF($C$5,8,0),1,1)) -> 298.690002 | E186: =IF(A186>$A$8,"",OFFSET(InputPriceData!D$15,CalculationsAndCharts!$A186+$A$11,IF($C$5,8,0),1,1)) -> 299.399994 | F186: =IF(A186>$A$8,"",OFFSET(InputPriceData!E$15,CalculationsAndCharts!$A186+$A$11,IF($C$5,8,0),1,1)) -> 297.029999 | G186: =IF(A186>$A$8,"",OFFSET(InputPriceData!F$15,CalculationsAndCharts!$A186+$A$11,IF($C$5,8,0),1,1)) -> 297.970001 | H186: -1.309998 | I186: 17.850006 | J186: 16.649994 | K186: 0.03478295652 | L186: 0.8021978022 | N186: 0.6153846154 | T186: 0.03478295652 | U186: 0.8021978022 | AX186: 64304000
A187: 155 | B187: =IF(A187>$A$8,"",OFFSET(InputPriceData!B$15,$A187+$A$11,0,1,1)) -> 2019-10-17 | C187: =IF(A187>$A$8,"",OFFSET(InputPriceData!G$15,CalculationsAndCharts!$A187+$A$11,IF($C$5,8,0),1,1)) -> 45736600 | D187: =IF(A187>$A$8,"",OFFSET(InputPriceData!C$15,CalculationsAndCharts!$A187+$A$11,IF($C$5,8,0),1,1)) -> 299.679993 | E187: =IF(A187>$A$8,"",OFFSET(InputPriceData!D$15,CalculationsAndCharts!$A187+$A$11,IF($C$5,8,0),1,1)) -> 300.23999 | F187: =IF(A187>$A$8,"",OFFSET(InputPriceData!E$15,CalculationsAndCharts!$A187+$A$11,IF($C$5,8,0),1,1)) -> 298.519989 | G187: =IF(A187>$A$8,"",OFFSET(InputPriceData!F$15,CalculationsAndCharts!$A187+$A$11,IF($C$5,8,0),1,1)) -> 299.279999 | H187: 0.880005 | I187: 19.220001 | J187: 15.339996 | K187: 0.1122686729 | L187: 0.6923076923 | N187: 0.4615384615 | T187: 0.1122686729 | U187: 0.6923076923 | AX187: 45736600
A188: 156 | B188: =IF(A188>$A$8,"",OFFSET(InputPriceData!B$15,$A188+$A$11,0,1,1)) -> 2019-10-16 | C188: =IF(A188>$A$8,"",OFFSET(InputPriceData!G$15,CalculationsAndCharts!$A188+$A$11,IF($C$5,8,0),1,1)) -> 48928200 | D188: =IF(A188>$A$8,"",OFFSET(InputPriceData!C$15,CalculationsAndCharts!$A188+$A$11,IF($C$5,8,0),1,1)) -> 298.369995 | E188: =IF(A188>$A$8,"",OFFSET(InputPriceData!D$15,CalculationsAndCharts!$A188+$A$11,IF($C$5,8,0),1,1)) -> 299.160004 | F188: =IF(A188>$A$8,"",OFFSET(InputPriceData!E$15,CalculationsAndCharts!$A188+$A$11,IF($C$5,8,0),1,1)) -> 297.920013 | G188: =IF(A188>$A$8,"",OFFSET(InputPriceData!F$15,CalculationsAndCharts!$A188+$A$11,IF($C$5,8,0),1,1)) -> 298.399994 | H188: -0.480011 | I188: 18.339996 | J188: 16.940002 | K188: 0.03968237186 | L188: 0.5384615385 | N188: 0.2857142857 | T188: 0.03968237186 | U188: 0.5384615385 | AW188: 48928200
A189: 157 | B189: =IF(A189>$A$8,"",OFFSET(InputPriceData!B$15,$A189+$A$11,0,1,1)) -> 2019-10-15 | C189: =IF(A189>$A$8,"",OFFSET(InputPriceData!G$15,CalculationsAndCharts!$A189+$A$11,IF($C$5,8,0),1,1)) -> 46754500 | D189: =IF(A189>$A$8,"",OFFSET(InputPriceData!C$15,CalculationsAndCharts!$A189+$A$11,IF($C$5,8,0),1,1)) -> 297.100006 | E189: =IF(A189>$A$8,"",OFFSET(InputPriceData!D$15,CalculationsAndCharts!$A189+$A$11,IF($C$5,8,0),1,1)) -> 299.700012 | F189: =IF(A189>$A$8,"",OFFSET(InputPriceData!E$15,CalculationsAndCharts!$A189+$A$11,IF($C$5,8,0),1,1)) -> 296.970001 | G189: =IF(A189>$A$8,"",OFFSET(InputPriceData!F$15,CalculationsAndCharts!$A189+$A$11,IF($C$5,8,0),1,1)) -> 298.880005 | H189: 2.929993 | I189: 18.339996 | J189: 17.079986 | K189: 0.03557342293 | L189: 0.3186813187 | N189: 0.04395604396 | T189: 0.03557342293 | U189: 0.3186813187 | AW189: 46754500
A190: 158 | B190: =IF(A190>$A$8,"",OFFSET(InputPriceData!B$15,$A190+$A$11,0,1,1)) -> 2019-10-14 | C190: =IF(A190>$A$8,"",OFFSET(InputPriceData!G$15,CalculationsAndCharts!$A190+$A$11,IF($C$5,8,0),1,1)) -> 40394800 | D190: =IF(A190>$A$8,"",OFFSET(InputPriceData!C$15,CalculationsAndCharts!$A190+$A$11,IF($C$5,8,0),1,1)) -> 295.929993 | E190: =IF(A190>$A$8,"",OFFSET(InputPriceData!D$15,CalculationsAndCharts!$A190+$A$11,IF($C$5,8,0),1,1)) -> 296.670013 | F190: =IF(A190>$A$8,"",OFFSET(InputPriceData!E$15,CalculationsAndCharts!$A190+$A$11,IF($C$5,8,0),1,1)) -> 295.570007 | G190: =IF(A190>$A$8,"",OFFSET(InputPriceData!F$15,CalculationsAndCharts!$A190+$A$11,IF($C$5,8,0),1,1)) -> 295.950012 | H190: -0.329987 | I190: 17.160003 | J190: 17.079986 | K190: 0.002336945844 | L190: 0.05494505495 | N190: -0.2417582418 | T190: 0.002336945844 | U190: 0.05494505495 | AW190: 40394800
A191: 159 | B191: =IF(A191>$A$8,"",OFFSET(InputPriceData!B$15,$A191+$A$11,0,1,1)) -> 2019-10-11 | C191: =IF(A191>$A$8,"",OFFSET(InputPriceData!G$15,CalculationsAndCharts!$A191+$A$11,IF($C$5,8,0),1,1)) -> 98720400 | D191: =IF(A191>$A$8,"",OFFSET(InputPriceData!C$15,CalculationsAndCharts!$A191+$A$11,IF($C$5,8,0),1,1)) -> 296.269989 | E191: =IF(A191>$A$8,"",OFFSET(InputPriceData!D$15,CalculationsAndCharts!$A191+$A$11,IF($C$5,8,0),1,1)) -> 298.73999 | F191: =IF(A191>$A$8,"",OFFSET(InputPriceData!E$15,CalculationsAndCharts!$A191+$A$11,IF($C$5,8,0),1,1)) -> 296.140015 | G191: =IF(A191>$A$8,"",OFFSET(InputPriceData!F$15,CalculationsAndCharts!$A191+$A$11,IF($C$5,8,0),1,1)) -> 296.279999 | H191: 3.040009 | I191: 17.160003 | J191: 19.089995 | K191: -0.05324116156 | L191: -0.2307692308 | N191: -0.3516483516 | T191: -0.05324116156 | U191: -0.2307692308 | AW191: 98720400
A192: 160 | B192: =IF(A192>$A$8,"",OFFSET(InputPriceData!B$15,$A192+$A$11,0,1,1)) -> 2019-10-10 | C192: =IF(A192>$A$8,"",OFFSET(InputPriceData!G$15,CalculationsAndCharts!$A192+$A$11,IF($C$5,8,0),1,1)) -> 55296300 | D192: =IF(A192>$A$8,"",OFFSET(InputPriceData!C$15,CalculationsAndCharts!$A192+$A$11,IF($C$5,8,0),1,1)) -> 291.179993 | E192: =IF(A192>$A$8,"",OFFSET(InputPriceData!D$15,CalculationsAndCharts!$A192+$A$11,IF($C$5,8,0),1,1)) -> 294.209991 | F192: =IF(A192>$A$8,"",OFFSET(InputPriceData!E$15,CalculationsAndCharts!$A192+$A$11,IF($C$5,8,0),1,1)) -> 291 | G192: =IF(A192>$A$8,"",OFFSET(InputPriceData!F$15,CalculationsAndCharts!$A192+$A$11,IF($C$5,8,0),1,1)) -> 293.23999 | H192: 1.970001 | I192: 14.119994 | J192: 19.160003 | K192: -0.1514425918 | L192: -0.4725274725 | N192: -0.5714285714 | T192: -0.1514425918 | U192: -0.4725274725 | AW192: 55296300
A193: 161 | B193: =IF(A193>$A$8,"",OFFSET(InputPriceData!B$15,$A193+$A$11,0,1,1)) -> 2019-10-09 | C193: =IF(A193>$A$8,"",OFFSET(InputPriceData!G$15,CalculationsAndCharts!$A193+$A$11,IF($C$5,8,0),1,1)) -> 62359400 | D193: =IF(A193>$A$8,"",OFFSET(InputPriceData!C$15,CalculationsAndCharts!$A193+$A$11,IF($C$5,8,0),1,1)) -> 290.75 | E193: =IF(A193>$A$8,"",OFFSET(InputPriceData!D$15,CalculationsAndCharts!$A193+$A$11,IF($C$5,8,0),1,1)) -> 292.299988 | F193: =IF(A193>$A$8,"",OFFSET(InputPriceData!E$15,CalculationsAndCharts!$A193+$A$11,IF($C$5,8,0),1,1)) -> 290.059998 | G193: =IF(A193>$A$8,"",OFFSET(InputPriceData!F$15,CalculationsAndCharts!$A193+$A$11,IF($C$5,8,0),1,1)) -> 291.269989 | H193: 2.73999 | I193: 12.149993 | J193: 21.959991 | K193: -0.2875990209 | L193: -0.6263736264 | N193: -0.6923076923 | T193: -0.2875990209 | U193: -0.6263736264 | AW193: 62359400
A194: 162 | B194: =IF(A194>$A$8,"",OFFSET(InputPriceData!B$15,$A194+$A$11,0,1,1)) -> 2019-10-08 | C194: =IF(A194>$A$8,"",OFFSET(InputPriceData!G$15,CalculationsAndCharts!$A194+$A$11,IF($C$5,8,0),1,1)) -> 95708100 | D194: =IF(A194>$A$8,"",OFFSET(InputPriceData!C$15,CalculationsAndCharts!$A194+$A$11,IF($C$5,8,0),1,1)) -> 291.040009 | E194: =IF(A194>$A$8,"",OFFSET(InputPriceData!D$15,CalculationsAndCharts!$A194+$A$11,IF($C$5,8,0),1,1)) -> 291.850006 | F194: =IF(A194>$A$8,"",OFFSET(InputPriceData!E$15,CalculationsAndCharts!$A194+$A$11,IF($C$5,8,0),1,1)) -> 288.48999 | G194: =IF(A194>$A$8,"",OFFSET(InputPriceData!F$15,CalculationsAndCharts!$A194+$A$11,IF($C$5,8,0),1,1)) -> 288.529999 | H194: -4.549988 | I194: 9.410003 | J194: 21.98001 | K194: -0.4004460591 | L194: -0.7362637363 | N194: -0.7582417582 | T194: -0.4004460591 | U194: -0.7362637363 | AX194: 95708100
A195: 163 | B195: =IF(A195>$A$8,"",OFFSET(InputPriceData!B$15,$A195+$A$11,0,1,1)) -> 2019-10-07 | C195: =IF(A195>$A$8,"",OFFSET(InputPriceData!G$15,CalculationsAndCharts!$A195+$A$11,IF($C$5,8,0),1,1)) -> 59610500 | D195: =IF(A195>$A$8,"",OFFSET(InputPriceData!C$15,CalculationsAndCharts!$A195+$A$11,IF($C$5,8,0),1,1)) -> 293.470001 | E195: =IF(A195>$A$8,"",OFFSET(InputPriceData!D$15,CalculationsAndCharts!$A195+$A$11,IF($C$5,8,0),1,1)) -> 295.26001 | F195: =IF(A195>$A$8,"",OFFSET(InputPriceData!E$15,CalculationsAndCharts!$A195+$A$11,IF($C$5,8,0),1,1)) -> 292.769989 | G195: =IF(A195>$A$8,"",OFFSET(InputPriceData!F$15,CalculationsAndCharts!$A195+$A$11,IF($C$5,8,0),1,1)) -> 293.079987 | H195: -1.270019 | I195: 9.589996 | J195: 17.430022 | K195: -0.2901562094 | L195: -0.8021978022 | N195: -0.7802197802 | T195: -0.2901562094 | U195: -0.8021978022 | AX195: 59610500
A196: 164 | B196: =IF(A196>$A$8,"",OFFSET(InputPriceData!B$15,$A196+$A$11,0,1,1)) -> 2019-10-04 | C196: =IF(A196>$A$8,"",OFFSET(InputPriceData!G$15,CalculationsAndCharts!$A196+$A$11,IF($C$5,8,0),1,1)) -> 65091200 | D196: =IF(A196>$A$8,"",OFFSET(InputPriceData!C$15,CalculationsAndCharts!$A196+$A$11,IF($C$5,8,0),1,1)) -> 291.140015 | E196: =IF(A196>$A$8,"",OFFSET(InputPriceData!D$15,CalculationsAndCharts!$A196+$A$11,IF($C$5,8,0),1,1)) -> 294.630005 | F196: =IF(A196>$A$8,"",OFFSET(InputPriceData!E$15,CalculationsAndCharts!$A196+$A$11,IF($C$5,8,0),1,1)) -> 291.079987 | G196: =IF(A196>$A$8,"",OFFSET(InputPriceData!F$15,CalculationsAndCharts!$A196+$A$11,IF($C$5,8,0),1,1)) -> 294.350006 | H196: 3.929993 | I196: 10.350005 | J196: 16.160003 | K196: -0.2191624386 | L196: -0.8681318681 | N196: -0.7802197802 | T196: -0.2191624386 | U196: -0.8681318681 | AW196: 65091200
A197: 165 | B197: =IF(A197>$A$8,"",OFFSET(InputPriceData!B$15,$A197+$A$11,0,1,1)) -> 2019-10-03 | C197: =IF(A197>$A$8,"",OFFSET(InputPriceData!G$15,CalculationsAndCharts!$A197+$A$11,IF($C$5,8,0),1,1)) -> 85278800 | D197: =IF(A197>$A$8,"",OFFSET(InputPriceData!C$15,CalculationsAndCharts!$A197+$A$11,IF($C$5,8,0),1,1)) -> 287.809998 | E197: =IF(A197>$A$8,"",OFFSET(InputPriceData!D$15,CalculationsAndCharts!$A197+$A$11,IF($C$5,8,0),1,1)) -> 290.450012 | F197: =IF(A197>$A$8,"",OFFSET(InputPriceData!E$15,CalculationsAndCharts!$A197+$A$11,IF($C$5,8,0),1,1)) -> 284.820007 | G197: =IF(A197>$A$8,"",OFFSET(InputPriceData!F$15,CalculationsAndCharts!$A197+$A$11,IF($C$5,8,0),1,1)) -> 290.420013 | H197: 2.360015 | I197: 6.420012 | J197: 17.089995 | K197: -0.4538485675 | L197: -0.8901098901 | N197: -0.7802197802 | T197: -0.4538485675 | U197: -0.8901098901 | AW197: 85278800
A198: 166 | B198: =IF(A198>$A$8,"",OFFSET(InputPriceData!B$15,$A198+$A$11,0,1,1)) -> 2019-10-02 | C198: =IF(A198>$A$8,"",OFFSET(InputPriceData!G$15,CalculationsAndCharts!$A198+$A$11,IF($C$5,8,0),1,1)) -> 122539500 | D198: =IF(A198>$A$8,"",OFFSET(InputPriceData!C$15,CalculationsAndCharts!$A198+$A$11,IF($C$5,8,0),1,1)) -> 291.5 | E198: =IF(A198>$A$8,"",OFFSET(InputPriceData!D$15,CalculationsAndCharts!$A198+$A$11,IF($C$5,8,0),1,1)) -> 291.51001 | F198: =IF(A198>$A$8,"",OFFSET(InputPriceData!E$15,CalculationsAndCharts!$A198+$A$11,IF($C$5,8,0),1,1)) -> 286.640015 | G198: =IF(A198>$A$8,"",OFFSET(InputPriceData!F$15,CalculationsAndCharts!$A198+$A$11,IF($C$5,8,0),1,1)) -> 288.059998 | H198: -5.179992 | I198: 4.059997 | J198: 17.290008 | K198: -0.6196725012 | L198: -0.9120879121 | N198: -0.7802197802 | T198: -0.6196725012 | U198: -0.9120879121 | AX198: 122539500
A199: 167 | B199: =IF(A199>$A$8,"",OFFSET(InputPriceData!B$15,$A199+$A$11,0,1,1)) -> 2019-10-01 | C199: =IF(A199>$A$8,"",OFFSET(InputPriceData!G$15,CalculationsAndCharts!$A199+$A$11,IF($C$5,8,0),1,1)) -> 88242400 | D199: =IF(A199>$A$8,"",OFFSET(InputPriceData!C$15,CalculationsAndCharts!$A199+$A$11,IF($C$5,8,0),1,1)) -> 297.73999 | E199: =IF(A199>$A$8,"",OFFSET(InputPriceData!D$15,CalculationsAndCharts!$A199+$A$11,IF($C$5,8,0),1,1)) -> 298.459991 | F199: =IF(A199>$A$8,"",OFFSET(InputPriceData!E$15,CalculationsAndCharts!$A199+$A$11,IF($C$5,8,0),1,1)) -> 293 | G199: =IF(A199>$A$8,"",OFFSET(InputPriceData!F$15,CalculationsAndCharts!$A199+$A$11,IF($C$5,8,0),1,1)) -> 293.23999 | H199: -3.529999 | I199: 5.100006 | J199: 12.110016 | K199: -0.4073213852 | L199: -0.7582417582 | N199: -0.7802197802 | T199: -0.4073213852 | U199: -0.7582417582 | AX199: 88242400
A200: 168 | B200: =IF(A200>$A$8,"",OFFSET(InputPriceData!B$15,$A200+$A$11,0,1,1)) -> 2019-09-30 | C200: =IF(A200>$A$8,"",OFFSET(InputPriceData!G$15,CalculationsAndCharts!$A200+$A$11,IF($C$5,8,0),1,1)) -> 51662400 | D200: =IF(A200>$A$8,"",OFFSET(InputPriceData!C$15,CalculationsAndCharts!$A200+$A$11,IF($C$5,8,0),1,1)) -> 295.970001 | E200: =IF(A200>$A$8,"",OFFSET(InputPriceData!D$15,CalculationsAndCharts!$A200+$A$11,IF($C$5,8,0),1,1)) -> 297.549988 | F200: =IF(A200>$A$8,"",OFFSET(InputPriceData!E$15,CalculationsAndCharts!$A200+$A$11,IF($C$5,8,0),1,1)) -> 295.920013 | G200: =IF(A200>$A$8,"",OFFSET(InputPriceData!F$15,CalculationsAndCharts!$A200+$A$11,IF($C$5,8,0),1,1)) -> 296.769989 | H200: 1.369995 | I200: 7.220001 | J200: 8.580017 | K200: -0.08607686396 | L200: -0.5824175824 | N200: -0.6703296703 | T200: -0.08607686396 | U200: -0.5824175824 | AW200: 51662400
A201: 169 | B201: =IF(A201>$A$8,"",OFFSET(InputPriceData!B$15,$A201+$A$11,0,1,1)) -> 2019-09-27 | C201: =IF(A201>$A$8,"",OFFSET(InputPriceData!G$15,CalculationsAndCharts!$A201+$A$11,IF($C$5,8,0),1,1)) -> 84746600 | D201: =IF(A201>$A$8,"",OFFSET(InputPriceData!C$15,CalculationsAndCharts!$A201+$A$11,IF($C$5,8,0),1,1)) -> 297.829987 | E201: =IF(A201>$A$8,"",OFFSET(InputPriceData!D$15,CalculationsAndCharts!$A201+$A$11,IF($C$5,8,0),1,1)) -> 297.950012 | F201: =IF(A201>$A$8,"",OFFSET(InputPriceData!E$15,CalculationsAndCharts!$A201+$A$11,IF($C$5,8,0),1,1)) -> 293.690002 | G201: =IF(A201>$A$8,"",OFFSET(InputPriceData!F$15,CalculationsAndCharts!$A201+$A$11,IF($C$5,8,0),1,1)) -> 295.399994 | H201: -1.600006 | I201: 5.850006 | J201: 8.650024 | K201: -0.1931042901 | L201: -0.4285714286 | N201: -0.5164835165 | T201: -0.1931042901 | U201: -0.4285714286 | AX201: 84746600
A202: 170 | B202: =IF(A202>$A$8,"",OFFSET(InputPriceData!B$15,$A202+$A$11,0,1,1)) -> 2019-09-26 | C202: =IF(A202>$A$8,"",OFFSET(InputPriceData!G$15,CalculationsAndCharts!$A202+$A$11,IF($C$5,8,0),1,1)) -> 56179700 | D202: =IF(A202>$A$8,"",OFFSET(InputPriceData!C$15,CalculationsAndCharts!$A202+$A$11,IF($C$5,8,0),1,1)) -> 297.630005 | E202: =IF(A202>$A$8,"",OFFSET(InputPriceData!D$15,CalculationsAndCharts!$A202+$A$11,IF($C$5,8,0),1,1)) -> 297.859985 | F202: =IF(A202>$A$8,"",OFFSET(InputPriceData!E$15,CalculationsAndCharts!$A202+$A$11,IF($C$5,8,0),1,1)) -> 295.450012 | G202: =IF(A202>$A$8,"",OFFSET(InputPriceData!F$15,CalculationsAndCharts!$A202+$A$11,IF($C$5,8,0),1,1)) -> 297 | H202: -0.619995 | I202: 6.00003 | J202: 7.050018 | K202: -0.08045855464 | L202: -0.2087912088 | N202: -0.3186813187 | T202: -0.08045855464 | U202: -0.2087912088 | AX202: 56179700
A203: 171 | B203: =IF(A203>$A$8,"",OFFSET(InputPriceData!B$15,$A203+$A$11,0,1,1)) -> 2019-09-25 | C203: =IF(A203>$A$8,"",OFFSET(InputPriceData!G$15,CalculationsAndCharts!$A203+$A$11,IF($C$5,8,0),1,1)) -> 71854000 | D203: =IF(A203>$A$8,"",OFFSET(InputPriceData!C$15,CalculationsAndCharts!$A203+$A$11,IF($C$5,8,0),1,1)) -> 295.959991 | E203: =IF(A203>$A$8,"",OFFSET(InputPriceData!D$15,CalculationsAndCharts!$A203+$A$11,IF($C$5,8,0),1,1)) -> 298.109985 | F203: =IF(A203>$A$8,"",OFFSET(InputPriceData!E$15,CalculationsAndCharts!$A203+$A$11,IF($C$5,8,0),1,1)) -> 294.329987 | G203: =IF(A203>$A$8,"",OFFSET(InputPriceData!F$15,CalculationsAndCharts!$A203+$A$11,IF($C$5,8,0),1,1)) -> 297.619995 | H203: 1.75 | I203: 6.230011 | J203: 6.430023 | K203: -0.01579869375 | L203: 0.01098901099 | N203: -0.0989010989 | T203: -0.01579869375 | U203: 0.01098901099 | AW203: 71854000
A204: 172 | B204: =IF(A204>$A$8,"",OFFSET(InputPriceData!B$15,$A204+$A$11,0,1,1)) -> 2019-09-24 | C204: =IF(A204>$A$8,"",OFFSET(InputPriceData!G$15,CalculationsAndCharts!$A204+$A$11,IF($C$5,8,0),1,1)) -> 94869400 | D204: =IF(A204>$A$8,"",OFFSET(InputPriceData!C$15,CalculationsAndCharts!$A204+$A$11,IF($C$5,8,0),1,1)) -> 299.410004 | E204: =IF(A204>$A$8,"",OFFSET(InputPriceData!D$15,CalculationsAndCharts!$A204+$A$11,IF($C$5,8,0),1,1)) -> 299.839996 | F204: =IF(A204>$A$8,"",OFFSET(InputPriceData!E$15,CalculationsAndCharts!$A204+$A$11,IF($C$5,8,0),1,1)) -> 294.809998 | G204: =IF(A204>$A$8,"",OFFSET(InputPriceData!F$15,CalculationsAndCharts!$A204+$A$11,IF($C$5,8,0),1,1)) -> 295.869995 | H204: -2.339996 | I204: 8.260009 | J204: 6.430023 | K204: 0.1245733161 | L204: 0.1428571429 | N204: 0.1428571429 | T204: 0.1245733161 | U204: 0.1428571429 | AX204: 94869400
A205: 173 | B205: =IF(A205>$A$8,"",OFFSET(InputPriceData!B$15,$A205+$A$11,0,1,1)) -> 2019-09-23 | C205: =IF(A205>$A$8,"",OFFSET(InputPriceData!G$15,CalculationsAndCharts!$A205+$A$11,IF($C$5,8,0),1,1)) -> 43476800 | D205: =IF(A205>$A$8,"",OFFSET(InputPriceData!C$15,CalculationsAndCharts!$A205+$A$11,IF($C$5,8,0),1,1)) -> 297.549988 | E205: =IF(A205>$A$8,"",OFFSET(InputPriceData!D$15,CalculationsAndCharts!$A205+$A$11,IF($C$5,8,0),1,1)) -> 299 | F205: =IF(A205>$A$8,"",OFFSET(InputPriceData!E$15,CalculationsAndCharts!$A205+$A$11,IF($C$5,8,0),1,1)) -> 297.269989 | G205: =IF(A205>$A$8,"",OFFSET(InputPriceData!F$15,CalculationsAndCharts!$A205+$A$11,IF($C$5,8,0),1,1)) -> 298.209991 | H205: -0.070008 | I205: 11.560028 | J205: 4.090027 | K205: 0.4773146804 | L205: 0.3406593407 | N205: 0.4285714286 | T205: 0.4773146804 | U205: 0.3406593407 | AW205: 43476800
A206: 174 | B206: =IF(A206>$A$8,"",OFFSET(InputPriceData!B$15,$A206+$A$11,0,1,1)) -> 2019-09-20 | C206: =IF(A206>$A$8,"",OFFSET(InputPriceData!G$15,CalculationsAndCharts!$A206+$A$11,IF($C$5,8,0),1,1)) -> 89565000 | D206: =IF(A206>$A$8,"",OFFSET(InputPriceData!C$15,CalculationsAndCharts!$A206+$A$11,IF($C$5,8,0),1,1)) -> 300.359985 | E206: =IF(A206>$A$8,"",OFFSET(InputPriceData!D$15,CalculationsAndCharts!$A206+$A$11,IF($C$5,8,0),1,1)) -> 300.670013 | F206: =IF(A206>$A$8,"",OFFSET(InputPriceData!E$15,CalculationsAndCharts!$A206+$A$11,IF($C$5,8,0),1,1)) -> 297.410004 | G206: =IF(A206>$A$8,"",OFFSET(InputPriceData!F$15,CalculationsAndCharts!$A206+$A$11,IF($C$5,8,0),1,1)) -> 298.279999 | H206: -2.799988 | I206: 11.560028 | J206: 5.730041 | K206: 0.3371870292 | L206: 0.4505494505 | N206: 0.6043956044 | T206: 0.3371870292 | U206: 0.4505494505 | AX206: 89565000
A207: 175 | B207: =IF(A207>$A$8,"",OFFSET(InputPriceData!B$15,$A207+$A$11,0,1,1)) -> 2019-09-19 | C207: =IF(A207>$A$8,"",OFFSET(InputPriceData!G$15,CalculationsAndCharts!$A207+$A$11,IF($C$5,8,0),1,1)) -> 76560500 | D207: =IF(A207>$A$8,"",OFFSET(InputPriceData!C$15,CalculationsAndCharts!$A207+$A$11,IF($C$5,8,0),1,1)) -> 301.529999 | E207: =IF(A207>$A$8,"",OFFSET(InputPriceData!D$15,CalculationsAndCharts!$A207+$A$11,IF($C$5,8,0),1,1)) -> 302.630005 | F207: =IF(A207>$A$8,"",OFFSET(InputPriceData!E$15,CalculationsAndCharts!$A207+$A$11,IF($C$5,8,0),1,1)) -> 300.709991 | G207: =IF(A207>$A$8,"",OFFSET(InputPriceData!F$15,CalculationsAndCharts!$A207+$A$11,IF($C$5,8,0),1,1)) -> 301.079987 | H207: -0.020019 | I207: 11.560028 | J207: 3.060028 | K207: 0.5813931219 | L207: 0.5604395604 | N207: 0.7362637363 | T207: 0.5813931219 | U207: 0.5604395604 | AX207: 76560500
A208: 176 | B208: =IF(A208>$A$8,"",OFFSET(InputPriceData!B$15,$A208+$A$11,0,1,1)) -> 2019-09-18 | C208: =IF(A208>$A$8,"",OFFSET(InputPriceData!G$15,CalculationsAndCharts!$A208+$A$11,IF($C$5,8,0),1,1)) -> 73375800 | D208: =IF(A208>$A$8,"",OFFSET(InputPriceData!C$15,CalculationsAndCharts!$A208+$A$11,IF($C$5,8,0),1,1)) -> 300.48999 | E208: =IF(A208>$A$8,"",OFFSET(InputPriceData!D$15,CalculationsAndCharts!$A208+$A$11,IF($C$5,8,0),1,1)) -> 301.220001 | F208: =IF(A208>$A$8,"",OFFSET(InputPriceData!E$15,CalculationsAndCharts!$A208+$A$11,IF($C$5,8,0),1,1)) -> 298.23999 | G208: =IF(A208>$A$8,"",OFFSET(InputPriceData!F$15,CalculationsAndCharts!$A208+$A$11,IF($C$5,8,0),1,1)) -> 301.100006 | H208: 0.179993 | I208: 15.25 | J208: 3.040009 | K208: 0.6675770909 | L208: 0.6263736264 | N208: 0.7582417582 | T208: 0.6675770909 | U208: 0.6263736264 | AW208: 73375800
A209: 177 | B209: =IF(A209>$A$8,"",OFFSET(InputPriceData!B$15,$A209+$A$11,0,1,1)) -> 2019-09-17 | C209: =IF(A209>$A$8,"",OFFSET(InputPriceData!G$15,CalculationsAndCharts!$A209+$A$11,IF($C$5,8,0),1,1)) -> 41475500 | D209: =IF(A209>$A$8,"",OFFSET(InputPriceData!C$15,CalculationsAndCharts!$A209+$A$11,IF($C$5,8,0),1,1)) -> 299.940002 | E209: =IF(A209>$A$8,"",OFFSET(InputPriceData!D$15,CalculationsAndCharts!$A209+$A$11,IF($C$5,8,0),1,1)) -> 301.019989 | F209: =IF(A209>$A$8,"",OFFSET(InputPriceData!E$15,CalculationsAndCharts!$A209+$A$11,IF($C$5,8,0),1,1)) -> 299.75 | G209: =IF(A209>$A$8,"",OFFSET(InputPriceData!F$15,CalculationsAndCharts!$A209+$A$11,IF($C$5,8,0),1,1)) -> 300.920013 | H209: 0.760009 | I209: 17.090027 | J209: 3.040009 | K209: 0.6979628849 | L209: 0.6703296703 | N209: 0.7802197802 | T209: 0.6979628849 | U209: 0.6703296703 | AW209: 41475500
A210: 178 | B210: =IF(A210>$A$8,"",OFFSET(InputPriceData!B$15,$A210+$A$11,0,1,1)) -> 2019-09-16 | C210: =IF(A210>$A$8,"",OFFSET(InputPriceData!G$15,CalculationsAndCharts!$A210+$A$11,IF($C$5,8,0),1,1)) -> 58191200 | D210: =IF(A210>$A$8,"",OFFSET(InputPriceData!C$15,CalculationsAndCharts!$A210+$A$11,IF($C$5,8,0),1,1)) -> 299.839996 | E210: =IF(A210>$A$8,"",OFFSET(InputPriceData!D$15,CalculationsAndCharts!$A210+$A$11,IF($C$5,8,0),1,1)) -> 301.140015 | F210: =IF(A210>$A$8,"",OFFSET(InputPriceData!E$15,CalculationsAndCharts!$A210+$A$11,IF($C$5,8,0),1,1)) -> 299.450012 | G210: =IF(A210>$A$8,"",OFFSET(InputPriceData!F$15,CalculationsAndCharts!$A210+$A$11,IF($C$5,8,0),1,1)) -> 300.160004 | H210: -0.929992 | I210: 16.330018 | J210: 4.170014 | K210: 0.5931700009 | L210: 0.6483516484 | N210: 0.8241758242 | T210: 0.5931700009 | U210: 0.6483516484 | AW210: 58191200
... 1072 more rows

Sheet Follow
A1: Stocks and Indexes I wish to follow
A3: To ease following a stock, enter a Yahoo Finance acceptable symbol in column "A" anywhere below cell "A9".
A4: Thereafter you may doubleclick the cell containing a symbol of interest to initiate data retrieval and charting for that symbol.
A7: Symbol
A8: To | B8: Description | C8: Last Trade as of most recent check
A9: Follow | C9: Date | D9: Time | E9: Open | F9: High | G9: Low | H9: Close | I9: Volume | J9: Change | K9: Retrieved @
A10: A | B10: Agilent Technologies, Inc. (A) -NYSE (Daily) | C10: 2020-03-09 | D10: 16:04:00 | E10: 72.589996 | F10: 74.190002 | G10: 70.169998 | H10: 70.75 | I10: 4591093 | J10: -7.809998 | K10: 2020-03-09T16:59:21
A11: AA | B11: Alcoa Corporation (AA) -NYSE (Daily) | C11: 2020-01-31 | D11: 16:04:00 | E11: 14.01 | F11: 14.24 | G11: 13.62 | H11: 13.95 | I11: 9931500 | J11: -0.34 | K11: 2020-02-02T15:07:13
A12: AAL | B12: American Airlines Group Inc. (AAL) -NasdaqGS (Daily) | C12: 2020-03-09 | D12: 16:00:00 | E12: 14.87 | F12: 15.79 | G12: 14.46 | H12: 14.75 | I12: 41078614 | J12: -1.22 | K12: 2020-03-09T17:00:15
A13: AAPL | B13: Apple Inc. (AAPL) -NasdaqGS (Daily) | C13: 2020-06-17 | D13: 16:00:00 | E13: 355.149994 | F13: 355.369995 | G13: 351.089996 | H13: 351.589996 | I13: 27604481 | J13: -0.489991 | K13: 2020-06-17T17:45:34
A14: ADM | B14: Archer-Daniels-Midland Company (ADM) -NYSE (Weekly) | C14: 2018-07-13 | D14: 16:00:00 | E14: 47.5 | F14: 47.84 | G14: 47.169998 | H14: 47.57 | I14: 2402809 | J14: 0
A15: ADBE | B15: Adobe Inc. (ADBE) -NasdaqGS (Daily) | C15: 2020-06-17 | D15: 16:00:00 | E15: 414 | F15: 417.425995 | G15: 411.429993 | H15: 413.48999 | I15: 2026063 | J15: 1.819977 | K15: 2020-06-17T17:42:59
A16: ALGN | B16: Align Technology, Inc. (ALGN) -NasdaqGS (Daily) | C16: 2020-01-30 | D16: 16:00:00 | E16: 248.740005 | F16: 264.450012 | G16: 248.350006 | H16: 262.890015 | I16: 1833160 | J16: 1.290009
A17: AMC | B17: AMC Entertainment Holdings, Inc. (AMC) -NYSE (Weekly) | C17: 2018-07-13 | D17: 16:02:00 | E17: 17.049999 | F17: 17.15 | G17: 16.525 | H17: 17.049999 | I17: 1442776 | J17: 0
A18: AMD | B18: Advanced Micro Devices, Inc. (AMD) -NasdaqGS (Daily) | C18: 2020-08-19 | D18: 12:40:00 | E18: 81.775703 | F18: 81.849998 | G18: 80.449997 | H18: 80.760002 | I18: 18434143 | J18: -0.900002 | K18: 2020-08-19T12:40:49
A19: BSX | B19: Boston Scientific Corporation C (BSX) -NYQ (Daily) | C19: 2015-03-13 | D19: 16:01:00 | E19: 16.84 | F19: 16.91 | G19: 16.44 | H19: 16.61 | I19: 7262460 | J19: -0.28
A20: CASY | B20: Casey's General Stores, Inc. (CASY) -NasdaqGS (Daily) | C20: 2019-04-10 | D20: 16:00:00 | E20: 128.979996 | F20: 130.330002 | G20: 128.779999 | H20: 130.179993 | I20: 351300 | J20: 1.489991
A21: CAT | B21: Caterpillar Inc. (CAT) -NYSE (Daily) | C21: 2020-03-13 | D21: 11:48:00 | E21: 98.389999 | F21: 99.910004 | G21: 90.150101 | H21: 90.269997 | I21: 3568294 | J21: -1.990005 | K21: 2020-03-13T11:48:53
A22: CSCO | B22: Cisco Systems, In (CSCO) -NasdaqNM (Daily) | C22: 2015-02-19 | D22: 16:00:00 | E22: 29.32 | F22: 29.39 | G22: 29.13 | H22: 29.31 | I22: 21469012 | J22: -0.18
A23: CVS | B23: CVS Health Corporation (CVS) -NYSE (Daily) | C23: 2020-03-09 | D23: 16:07:00 | E23: 59.75 | F23: 63 | G23: 59.599998 | H23: 61.299999 | I23: 13065424 | J23: -2.850003 | K23: 2020-03-09T17:51:54
A24: DIS | B24: The Walt Disney Company (DIS) -NYSE (Daily) | C24: 2020-03-09 | D24: 16:07:00 | E24: 108.690002 | F24: 110.43 | G24: 104.279999 | H24: 104.349998 | I24: 26101127 | J24: -10.919999 | K24: 2020-03-09T16:59:51
A25: F | B25: Ford Motor Company (F) -NYSE (Daily) | C25: 2020-01-31 | D25: 16:03:00 | E25: 8.78 | F25: 8.84 | G25: 8.74 | H25: 8.82 | I25: 59781000 | J25: -0.02 | K25: 2020-02-02T15:09:03
A26: FAS | B26: Direxion Daily Financial Bull 3X ETF (FAS) -NYSEArca (Daily) | C26: 2017-10-13 | D26: 16:00:00 | E26: 58.099998 | F26: 58.939999 | G26: 57.43 | H26: 58.450001 | I26: 1709300 | J26: 0.07
A27: FB | B27: Facebook, Inc. (FB) -NasdaqGS (Daily) | C27: 2020-02-14 | D27: 16:00:00 | E27: 214 | F27: 214.929993 | G27: 212.649994 | H27: 214.179993 | I27: 10727400 | J27: 1.039994 | K27: 2020-02-15T17:19:34
A28: GSK | B28: GlaxoSmithKline plc (GSK) -NYSE (Daily) | C28: 2019-08-14 | D28: 11:15:00 | E28: 40.060001 | F28: 40.209999 | G28: 39.895 | H28: 39.93 | I28: 941699 | J28: -0.310002
A29: GDX | B29: VanEck Vectors Gold Miners ETF (GDX) -NYSEArca (Daily) | C29: 2020-01-31 | D29: 16:00:00 | E29: 28.799999 | F29: 29.24 | G29: 28.76 | H29: 28.99 | I29: 41946000 | J29: 0.26 | K29: 2020-02-02T15:11:17
A30: GOOG | B30: Alphabet Inc. (GOOG) -NasdaqGS (Daily) | C30: 2020-02-14 | D30: 16:00:00 | E30: 1515.599976 | F30: 1520.73999 | G30: 1507.339966 | H30: 1520.73999 | I30: 1196700 | J30: 6.079956 | K30: 2020-02-15T17:20:39
A31: HAL | B31: Halliburton Company (HAL) -NYSE (Daily) | C31: 2020-09-17 | D31: 11:11:00 | E31: 14.73 | F31: 14.945 | G31: 14.57 | H31: 14.91 | I31: 4265279 | J31: -0.16 | K31: 2020-09-17T11:11:52
A32: HD | B32: The Home Depot, Inc. (HD) -NYSE (Daily) | C32: 2020-03-13 | D32: 11:54:00 | E32: 200.449997 | F32: 201.179993 | G32: 192.270096 | H32: 193.449997 | I32: 3274582 | J32: 2.860001 | K32: 2020-03-13T11:54:29
A33: HSY | B33: The Hershey Company (HSY) -NYSE (Daily) | C33: 2019-04-10 | D33: 16:02:00 | E33: 116.099998 | F33: 116.43 | G33: 115.75 | H33: 116.309998 | I33: 574600 | J33: 0.290001
A34: HTLD | B34: Heartland Express, Inc. (HTLD) -NasdaqGS (Daily) | C34: 2020-03-09 | D34: 16:00:00 | E34: 17.33 | F34: 17.690001 | G34: 16.82 | H34: 16.879999 | I34: 284762 | J34: -1.280001 | K34: 2020-03-09T17:00:56
A35: IBM | B35: International Business Machines Corporation (IBM) -NYSE (Daily) | C35: 2019-08-14 | D35: 11:24:00 | E35: 133.910004 | F35: 134.160004 | G35: 132.130005 | H35: 132.460098 | I35: 1281528 | J35: -1.659897
A36: INTC | B36: Intel Corporation (INTC) -NasdaqGS (Daily) | C36: 2020-02-14 | D36: 16:00:00 | E36: 67.519997 | F36: 67.860001 | G36: 66.82 | H36: 67.269997 | I36: 13402800 | J36: -0.170005 | K36: 2020-02-15T17:21:41
A37: JAH | B37: Jarden Corporation Common Stock (JAH) -NYQ (Daily) | C37: 2016-01-08 | D37: 16:02:00 | E37: 53.82 | F37: 53.88 | G37: 52.65 | H37: 52.73 | I37: 4519480 | J37: -0.81
A38: JNJ | B38: Johnson & Johnson (JNJ) -NYSE (Daily) | C38: 2019-08-14 | D38: 10:33:00 | E38: 132.529999 | F38: 132.539993 | G38: 131.419998 | H38: 131.759995 | I38: 870520 | J38: -0.169998
A39: KO | B39: The Coca-Cola Company (KO) -NYSE (Daily) | C39: 2020-03-09 | D39: 16:07:00 | E39: 52.049999 | F39: 53.580002 | G39: 51.474998 | H39: 51.860001 | I39: 27771279 | J39: -3.399997 | K39: 2020-03-09T17:05:43
A40: LOW | B40: Lowe's Companies, Inc. (LOW) -NYSE (Daily) | C40: 2020-03-09 | D40: 16:03:00 | E40: 97.82 | F40: 99.82 | G40: 93.150101 | H40: 94.220001 | I40: 8167579 | J40: -11.089997 | K40: 2020-03-09T16:57:19
A41: LMT | B41: Lockheed Martin Corporation (LMT) -NYSE (Daily) | C41: 2020-03-09 | D41: 16:06:00 | E41: 359.980011 | F41: 369.470001 | G41: 351.269989 | H41: 352.029999 | I41: 3067426 | J41: -30.440002 | K41: 2020-03-09T17:06:13
A42: MCD | B42: McDonald's Corporation (MCD) -NYSE (Daily) | C42: 2020-03-09 | D42: 16:01:00 | E42: 187.669998 | F42: 194.470001 | G42: 184.100006 | H42: 186.860001 | I42: 7601343 | J42: -12 | K42: 2020-03-09T16:58:16
A43: MDT | B43: Medtronic plc (MDT) -NYSE (Daily) | C43: 2020-03-09 | D43: 16:07:00 | E43: 94.019997 | F43: 95.470001 | G43: 91.709999 | H43: 92.400002 | I43: 9000931 | J43: -6.659996 | K43: 2020-03-09T17:48:45
A44: MGM | B44: MGM Resorts International (MGM) -NYSE (Daily) | C44: 2020-03-09 | D44: 16:02:00 | E44: 18.6 | F44: 19.58 | G44: 17.530001 | H44: 17.879999 | I44: 26050818 | J44: -2.51 | K44: 2020-03-09T17:13:53
A45: MO | B45: Altria Group, Inc. (MO) -NYSE (Daily) | C45: 2020-01-31 | D45: 16:05:00 | E45: 48.25 | F45: 48.799999 | G45: 47.240002 | H45: 47.529999 | I45: 11790800 | J45: -0.470001 | K45: 2020-02-02T15:20:55
A46: MSFT | B46: Microsoft Corporation (MSFT) -NasdaqGS (Daily) | C46: 2020-03-09 | D46: 16:00:00 | E46: 151 | F46: 157.75 | G46: 150 | H46: 150.619995 | I46: 69167627 | J46: -10.950012 | K46: 2020-03-09T17:06:41
A47: NFLX | B47: Netflix, Inc. (NFLX) -NasdaqGS (Daily) | C47: 2020-03-09 | D47: 16:00:00 | E47: 343.859985 | F47: 357.470001 | G47: 341.720886 | H47: 346.48999 | I47: 6746188 | J47: -22.480011 | K47: 2020-03-09T17:23:37
A48: NUGT | B48: Direxion Daily Gold Miners Index Bull 3X Shares (NUGT) -NYSEArca (Daily) | C48: 2020-01-31 | D48: 16:00:00 | E48: 32.439999 | F48: 33.830002 | G48: 32.240002 | H48: 33.02 | I48: 11325200 | J48: 0.84 | K48: 2020-02-02T15:21:51
A49: NVS | B49: Novartis AG (NVS) -NYSE (Daily) | C49: 2020-03-06 | D49: 16:02:00 | E49: 84.330002 | F49: 85.830002 | G49: 83.970001 | H49: 85.720001 | I49: 5624700 | J49: -0.089997 | K49: 2020-03-08T16:56:35
A50: NVDA | B50: NVIDIA Corporation (NVDA) -NasdaqGS (Daily) | C50: 2020-08-19 | D50: 12:42:00 | E50: 491.859985 | F50: 492.600006 | G50: 485.049988 | H50: 491.440002 | I50: 6145377 | J50: 1.010009 | K50: 2020-08-19T12:42:49
A51: PRU | B51: Prudential Financial, Inc. (PRU) -NYSE (Daily) | C51: 2020-03-09 | D51: 16:02:00 | E51: 63.75 | F51: 65.830002 | G51: 57.375 | H51: 58.240002 | I51: 7614493 | J51: -11.569996 | K51: 2020-03-09T17:11:43
A52: PSEC | B52: Prospect Capital Corporation (PSEC) -NasdaqGS (Daily) | C52: 2020-02-14 | D52: 16:00:00 | E52: 6.53 | F52: 6.56 | G52: 6.51 | H52: 6.52 | I52: 1235500 | J52: -0.04 | K52: 2020-02-15T14:43:16
A53: RPM | B53: RPM International Inc. (RPM) -NYSE (Daily) | C53: 2020-03-09 | D53: 16:02:00 | E53: 64.470001 | F53: 66.730003 | G53: 63.5 | H53: 65.290001 | I53: 1115882 | J53: -2.919998 | K53: 2020-03-09T17:10:08
A54: RSP | B54: Invesco S&P 500 Equal Weight ETF (RSP) -NYSEArca (Daily) | C54: 2020-01-31 | D54: 16:00:00 | E54: 115.279999 | F54: 115.32 | G54: 113.230003 | H54: 113.540001 | I54: 747600 | J54: -2.309997 | K54: 2020-02-02T15:28:52
A55: SPR | B55: Spirit AeroSystems Holdings, Inc. (SPR) -NYSE (Daily) | C55: 2020-03-09 | D55: 16:06:00 | E55: 43.700001 | F55: 43.880001 | G55: 41.5 | H55: 42.139999 | I55: 2091368 | J55: -5.23 | K55: 2020-03-09T17:09:37
A56: SQ | B56: Square, Inc. (SQ) -NYSE (Daily) | C56: 2020-10-02 | D56: 16:00:00 | E56: 164.050003 | F56: 171.240005 | G56: 163.800995 | H56: 169.610001 | I56: 11150500 | J56: 1.119996 | K56: 2020-10-04T20:00:52
A57: SWKS | B57: Skyworks Solutions, Inc. (SWKS) -NasdaqGS (Daily) | C57: 2020-01-31 | D57: 16:00:00 | E57: 115.5 | F57: 115.739998 | G57: 112.720001 | H57: 113.150002 | I57: 2444600 | J57: -3.080001 | K57: 2020-02-02T15:26:46
A58: TOL | B58: Toll Brothers, Inc. (TOL) -NYSE (Daily) | C58: 2020-03-09 | D58: 16:07:00 | E58: 34.759998 | F58: 35.314999 | G58: 32.060001 | H58: 34.110001 | I58: 3127968 | J58: -2.86 | K58: 2020-03-09T17:12:09
A59: TSLA | B59: Tesla, Inc. (TSLA) -NasdaqGS (Daily) | C59: 2020-03-13 | D59: 12:08:00 | E59: 595 | F59: 607.570007 | G59: 502.01001 | H59: 510 | I59: 12224537 | J59: -50.549988 | K59: 2020-03-13T12:08:39
A60: TXN | B60: Texas Instruments Incorporated (TXN) -NasdaqGS (Daily) | C60: 2020-06-19 | D60: 11:30:00 | E60: 128.059998 | F60: 128.179993 | G60: 126.07 | H60: 126.370003 | I60: 2078988 | J60: 0.39 | K60: 2020-06-19T11:31:00
A61: UNP | B61: Union Pacific Corporation (UNP) -NYSE (Daily) | C61: 2020-03-09 | D61: 16:07:00 | E61: 145.199997 | F61: 145.580002 | G61: 133.179993 | H61: 135.839996 | I61: 9380024 | J61: -20.25 | K61: 2020-03-09T17:11:21
A62: VZ | B62: Verizon Communications Inc. (VZ) -NYSE (Daily) | C62: 2019-04-10 | D62: 16:00:00 | E62: 58.400002 | F62: 58.700001 | G62: 58.360001 | H62: 58.610001 | I62: 8022000 | J62: 0.209999
A63: WBA | B63: Walgreens Boots Alliance, Inc. (WBA) -NasdaqGS (Daily) | C63: 2020-01-31 | D63: 16:00:00 | E63: 51.709999 | F63: 51.919998 | G63: 50.66 | H63: 50.849998 | I63: 6532300 | J63: -1.100003 | K63: 2020-02-02T15:28:06
A64: WMT | B64: Walmart Inc. (WMT) -NYSE (Daily) | C64: 2020-03-09 | D64: 16:01:00 | E64: 113.82 | F64: 120.629997 | G64: 112.730003 | H64: 117.160004 | I64: 19567750 | J64: -0.069999 | K64: 2020-03-09T17:10:39
A66: ^AEX | B66: AEX-INDEX (^AEX) -Amsterdam (Daily) | C66: 2020-03-09 | D66: 18:05:00 | E66: 506.950012 | F66: 506.950012 | G66: 485.730011 | H66: 490.660004 | I66: 0 | J66: -40.629974 | K66: 2020-03-09T17:41:58
A67: ^AORD | B67: ALL ORDINARIES (^AORD) -ASX (Daily) | C67: 2020-03-09 | D67: 16:17:00 | E67: 6472.399902 | F67: 6287.299805 | G67: 5822.399902 | H67: 5822.399902 | I67: 0 | J67: -465.100098 | K67: 2020-03-09T17:45:59
A68: ^DJI | B68: Dow Jones Industrial Average (^DJI) -DJI (Daily) | C68: 2020-03-09 | D68: 16:59:00 | E68: 24992.35938 | F68: 24992.35938 | G68: 23706.07031 | H68: 23851.01953 | I68: 750431083 | J68: -2013.759766 | K68: 2020-03-09T17:37:29
A69: ^FTSE | B69: FTSE 100 (^FTSE) -FTSE Index (Daily) | C69: 2020-03-09 | D69: 16:45:00 | E69: 6462.549805 | F69: 6462.549805 | G69: 5891.560059 | H69: 5965.77002 | I69: 0 | J69: -496.830078 | K69: 2020-03-09T17:43:57
A70: ^GSPC | B70: S&P 500 (^GSPC) -SNP (Daily) | C70: 2020-06-12 | D70: 17:38:00 | E70: 3071.040039 | F70: 3088.419922 | G70: 2984.469971 | H70: 3041.310059 | I70: 5832250000 | J70: 39.209961 | K70: 2020-06-13T08:34:26
A71: ^HSI | B71: HANG SENG INDEX (^HSI) -HKSE (Daily) | C71: 2020-03-09 | D71: 16:08:00 | E71: 25134.01953 | F71: 25321.2793 | G71: 24948.38086 | H71: 25040.46094 | I71: 0 | J71: -1106.208984 | K71: 2020-03-09T17:39:06
A72: ^MID | B72: S&P MID CAP 400 INDEX (^MID) -NYSE (Daily) | C72: 2020-02-14 | D72: 16:06:00 | E72: 2099.459961 | F72: 2100.51001 | G72: 2089.610107 | H72: 2096.610107 | I72: 0 | J72: -0.679932 | K72: 2020-02-14T21:04:41
A73: ^NDX | B73: NASDAQ 100 (^NDX) -Nasdaq GIDS (Daily) | C73: 2020-02-14 | D73: 16:51:00 | E73: 9613.881836 | F73: 9634.750977 | G73: 9583.083008 | H73: 9623.580078 | I73: 469910279 | J73: 27.879883 | K73: 2020-02-14T16:52:02
A74: ^NYA | B74: NYSE COMPOSITE (DJ) (^NYA) -NYSE (Daily) | C74: 2020-03-13 | D74: 13:53:00 | E74: 10445.44043 | F74: 10642.39844 | G74: 10060.35352 | H74: 10464.54883 | I74: 0 | J74: 403.789062 | K74: 2020-03-13T14:08:31
A75: ^OEX | B75: S&P 100 INDEX (^OEX) -Chicago Options (Daily) | C75: 2019-09-13 | D75: 16:56:00 | E75: 1332.27002 | F75: 1334.420044 | G75: 1328.73999 | H75: 1330.969971 | I75: 3520060000 | J75: -1.010009
A76: ^RUT | B76: Russell 2000 (^RUT) -Chicago Options (Daily) | C76: 2019-09-13 | D76: 16:30:00 | E76: 1579.22998 | F76: 1589.449951 | G76: 1577.109985 | H76: 1578.140015 | I76: 35200600 | J76: 3.070069
A77: ^SSEC | B77: SSE Composite Index (^SSEC) -Shanghai (Daily) | C77: 2020-03-09 | D77: 15:00:00 | E77: 3039.939453 | F77: 2989.205078 | G77: 2940.713867 | H77: 2943.290771 | I77: 2801367936 | J77: -388.231202 | K77: 2020-03-09T17:38:09
A78: ^VIX | B78: CBOE Volatility Index (^VIX) -Chicago Options (Daily) | C78: 2020-03-09 | D78: 16:14:00 | E78: 41.939999 | F78: 62.119999 | G78: 41.939999 | H78: 54.459999 | I78: 0 | J78: 12.52 | K78: 2020-03-09T17:38:36
A79: IWM | B79: iShares Russell 2000 ETF (IWM) -NYSEArca (Daily) | C79: 2018-04-13 | D79: 16:00:00 | E79: 155.289993 | F79: 155.330002 | G79: 153.509995 | H79: 153.949997 | I79: 19710100 | J79: -0.809998
A80: QQQ | B80: Invesco QQQ Trust (QQQ) -NasdaqGM (Daily) | C80: 2020-08-27 | D80: 15:01:00 | E80: 293.079987 | F80: 293.851013 | G80: 288.704987 | H80: 291.994995 | I80: 41822663 | J80: 0.035004 | K80: 2020-08-27T15:02:03
A81: XLE | B81: Energy Select Sector SPDR Fund (XLE) -NYSEArca (Daily) | C81: 2020-07-10 | D81: 16:00:00 | E81: 34.240002 | F81: 35.580002 | G81: 34.240002 | H81: 35.540001 | I81: 25223900 | J81: 1.100002 | K81: 2020-07-11T16:34:13
A82: SPY | B82: SPDR S&P 500 ETF Trust (SPY) -NYSEArca (Daily) | C82: 2020-10-05 | D82: 13:14:00 | E82: 336.059998 | F82: 338.869995 | G82: 336.01001 | H82: 338.730011 | I82: 18602671 | J82: 4.890015 | K82: 2020-10-05T13:15:00
A84: ACAD | B84: ACADIA Pharmaceut (ACAD) -NasdaqNM (Daily) | C84: 2014-07-21 | D84: 16:00:00 | E84: 20.13 | F84: 20.55 | G84: 19.8101 | H84: 20.31 | I84: 691016
A85: CLDX | B85: Celldex Therapeut (CLDX) -NasdaqNM (Daily) | C85: 2015-02-02 | D85: 16:00:00 | E85: 21.47 | F85: 21.69 | G85: 20.11 | H85: 21.02 | I85: 1570418 | J85: -0.4
A86: ICPT | B86: Intercept Pharmac (ICPT) -NasdaqNM (Daily) | C86: 2014-07-21 | D86: 16:00:00 | E86: 215.97 | F86: 218.43 | G86: 213.05 | H86: 218.14 | I86: 191276
A87: INO | B87: Inovio Pharmaceut (INO) -AMEX (Daily) | C87: 2014-07-21 | D87: 16:00:00 | E87: 10.3 | F87: 11.08 | G87: 10.1 | H87: 11.01 | I87: 1800796
A88: JCP | B88: J. C. Penney Company, Inc. (JCP) -NYSE (Daily) | C88: 2017-12-07 | D88: 16:01:00 | E88: 3.34 | F88: 3.4 | G88: 3.25 | H88: 3.27 | I88: 14485464 | J88: -0.07
A89: LCI | B89: Lannett Co Inc Co (LCI) -NYSE (Daily) | C89: 2014-07-21 | D89: 16:02:00 | E89: 38.09 | F89: 38.803 | G89: 36.5101 | H89: 37.76 | I89: 611367
A90: NPSP | B90: NPS Pharmaceutica (NPSP) -NasdaqNM (Daily) | C90: 2014-07-21 | D90: 15:59:00 | E90: 28.75 | F90: 29.43 | G90: 28.31 | H90: 29.29 | I90: 1126758
A91: PBYI | B91: Puma Biotechnolog (PBYI) -NYSE (Daily) | C91: 2014-07-21 | D91: 16:02:00 | E91: 58.27 | F91: 59.46 | G91: 57.39 | H91: 58.98 | I91: 348030
